Workbook

Sheet Cover

Sheet Info
A1: Provider Cost Report Certification | H1: Part I
C3: TARGETED CASE MANAGEMENT (TCM)
A4: ANNUAL COST REPORT
C34: Nancy Leidelmeijer
C35: Print Name | E35: Signature
C37: LGA Coordinator
C38: Title | E38: Date
A40: Provider Identification | H40: Part II
A42: 1 | B42: LGA Name: | C42: ABC County | E42: LGA NPI: | F42: 1200XXXX
A43: 2 | B43: Reporting Period: | C43: July 1, 2015 to June 30, 2016 | E43: Report Prepared By: | F43: Nancy Leidelmeijer
B45: Description | C45: LGA Subdivision or LGA Governmental Subcontractor | D45: Description | E45: No. | F45: LGA Non-governmental Subcontractor Name
C46: 1 | E46: 2 | F46: 3
A47: 3 | B47: Budget Unit 1 | C47: Public Health | D47: Contractor | F47: XYZ CBO
A48: 4 | D48: Contractor
A49: 5 | D49: Contractor
A50: 6 | D50: Contractor
A51: 7 | D51: Contractor
A52: 8 | D52: Contractor
A53: 9 | D53: Contractor
A54: 10 | D54: Contractor
A56: 11 | B56: Budget Unit 2 | D56: Contractor
A57: 12 | D57: Contractor
A58: 13 | D58: Contractor
A59: 14 | D59: Contractor
A60: 15 | D60: Contractor
A61: 16 | D61: Contractor
A62: 17 | D62: Contractor
A63: 18 | D63: Contractor
A65: 19 | B65: Budget Unit 3 | D65: Contractor
A66: 20 | D66: Contractor
A67: 21 | D67: Contractor
A68: 22 | D68: Contractor
A69: 23 | D69: Contractor
A70: 24 | D70: Contractor
A71: 25 | D71: Contractor
A72: 26 | D72: Contractor
A74: 27 | B74: Budget Unit 4 | D74: Contractor
A75: 28 | D75: Contractor
A76: 29 | D76: Contractor
A77: 30 | D77: Contractor
A78: 31 | D78: Contractor
A79: 32 | D79: Contractor
A80: 33 | D80: Contractor
A81: 34 | D81: Contractor

Sheet Worksheet A
B2: LGA Name: | C2: =Info!C42 -> ABC County | L2: =Info!C42 -> ABC County | R2: =Info!C42 -> ABC County
B3: LGA NPI: | C3: =Info!F42 -> 1200XXXX | L3: =Info!F42 -> 1200XXXX | R3: =Info!F42 -> 1200XXXX
B4: Reporting Period: | C4: =Info!C43 -> July 1, 2015 to June 30, 2016 | L4: =Info!C43 -> July 1, 2015 to June 30, 2016 | R4: =Info!C43 -> July 1, 2015 to June 30, 2016
G6: From Worksheet A-1 | L6: From Worksheet A-2
C7: From General Ledger / Financial Statement | G7: Reclassifications | L7: Adjustments | R7: Net Reported Expense after Reclassifications and Adjustments
B8: Description | C8: Salary | D8: Benefits | E8: Other | F8: Total Expense | G8: Salaries and Benefits | H8: Other Expense by Employee | I8: Other Expense by Program | J8: Other | K8: Total Reclassifications | L8: Salaries and Benefits | M8: Other Expense by Employee | N8: Other Expense by Program | O8: TCM Expense Outside the Budget Unit | P8: Other | Q8: Total Adjustments | R8: Salaries and Benefits | S8: Other Expense by Employee | T8: Other Expense by Program | U8: TCM Expense Outside the Budget Unit | V8: Other Expense Subject to Allocation | W8: Total Net Expenses
C9: 1 | D9: 2 | E9: 3 | F9: 4 | G9: 5 | H9: 6 | I9: 7 | J9: 8 | K9: 9 | L9: 10 | M9: 11 | N9: 12 | O9: 13 | P9: 14 | Q9: 15 | R9: 16 | S9: 17 | T9: 18 | U9: 19 | V9: 20 | W9: 21
B10: Budget Unit 1
A11: 1 | B11: TCM | C11: 897285.561 | D11: 413176.3195 | F11: =SUM(C11:E11) -> 1310461.88 | G11: ='Worksheet A-1'!K48 -> 0 | H11: ='Worksheet A-1'!L48 -> 0 | I11: ='Worksheet A-1'!M48 -> 2165.44 | K11: =SUM(G11:J11) -> 2165.44 | L11: ='Worksheet A-2'!L48 -> 0 | M11: ='Worksheet A-2'!M48 -> 0 | N11: ='Worksheet A-2'!N48 -> 0 | O11: ='Worksheet A-2'!O48 -> 0 | Q11: =SUM(L11:P11) -> 0 | R11: =F11+G11+L11 -> 1310461.88 | S11: =H11+M11 -> 0 | T11: =I11+N11 -> 2165.44 | U11: =O11 -> 0 | W11: =SUM(R11:V11) -> 1312627.32
A12: 2 | B12: Non TCM | C12: 180064.19 | D12: 88036.83445 | F12: =SUM(C12:E12) -> 268101.0245 | G12: ='Worksheet A-1'!N48 -> 0 | H12: ='Worksheet A-1'!O48 -> 0 | I12: ='Worksheet A-1'!P48 -> 0 | K12: =SUM(G12:J12) -> 0 | L12: ='Worksheet A-2'!P48 -> 0 | M12: ='Worksheet A-2'!Q48 -> 0 | N12: ='Worksheet A-2'!R48 -> 0 | Q12: =SUM(L12:P12) -> 0 | R12: =F12+G12+L12 -> 268101.0245 | S12: =H12+M12 -> 0 | T12: =I12+N12 -> 0 | W12: =SUM(R12:V12) -> 268101.0245
A13: 3 | B13: General & Admin | C13: 32454.4962 | D13: 16750.56886 | F13: =SUM(C13:E13) -> 49205.06506 | G13: ='Worksheet A-1'!Q48 -> 0 | H13: ='Worksheet A-1'!R48 -> 0 | I13: ='Worksheet A-1'!S48 -> 0 | K13: 0 | L13: ='Worksheet A-2'!S48 -> 0 | M13: ='Worksheet A-2'!T48 -> 0 | N13: ='Worksheet A-2'!U48 -> 0 | Q13: 0 | R13: 49205.06506 | S13: 0 | T13: 0 | W13: 49205.06506
A14: 4 | B14: Indirect | E14: 445352 | F14: =SUM(C14:E14) -> 445352 | J14: ='Worksheet A-1'!T48 -> -2165.44 | K14: -2165.44 | P14: ='Worksheet A-2'!V48 -> 0 | Q14: 0 | V14: =F14+J14+P14 -> 443186.56 | W14: 443186.56
A15: 5 | B15: Subtotal Budget Unit 1 | C15: =SUM(C11:C14) -> 1109804.247 | D15: =SUM(D11:D14) -> 517963.7228 | E15: 445352 | F15: =SUM(F11:F14) -> 2073119.97 | G15: =SUM(G11:G14) -> 0 | H15: =SUM(H11:H14) -> 0 | I15: 2165.44 | J15: -2165.44 | K15: =SUM(K11:K14) -> 0 | L15: =SUM(L11:L14) -> 0 | M15: =SUM(M11:M14) -> 0 | N15: =SUM(N11:N14) -> 0 | O15: =O11 -> 0 | P15: =SUM(P11:P14) -> 0 | Q15: =SUM(Q11:Q14) -> 0 | R15: =SUM(R11:R14) -> 1627767.97 | S15: =SUM(S11:S14) -> 0 | T15: =SUM(T11:T14) -> 2165.44 | U15: 0 | V15: =SUM(V11:V14) -> 443186.56 | W15: =SUM(W11:W14) -> 2073119.97
O16: =IF(Q15='Worksheet A-2'!I48,"","ERROR:Total Adjustments do not match W/S A-2") -> 
B17: Budget Unit 2
A18: 6 | B18: TCM | F18: =SUM(C18:E18) -> 0 | G18: ='Worksheet A-1'!K98 -> 0 | H18: ='Worksheet A-1'!L98 -> 0 | I18: ='Worksheet A-1'!M98 -> 0 | K18: =SUM(G18:J18) -> 0 | L18: ='Worksheet A-2'!L96 -> 0 | M18: ='Worksheet A-2'!M96 -> 0 | N18: ='Worksheet A-2'!N96 -> 0 | O18: ='Worksheet A-2'!O96 -> 0 | Q18: =SUM(L18:P18) -> 0 | R18: =F18+G18+L18 -> 0 | S18: =H18+M18 -> 0 | T18: =I18+N18 -> 0 | U18: =O18 -> 0 | W18: =SUM(R18:V18) -> 0
A19: 7 | B19: Non TCM | F19: =SUM(C19:E19) -> 0 | G19: ='Worksheet A-1'!N98 -> 0 | H19: ='Worksheet A-1'!O98 -> 0 | I19: ='Worksheet A-1'!P98 -> 0 | K19: =SUM(G19:J19) -> 0 | L19: ='Worksheet A-2'!P96 -> 0 | M19: ='Worksheet A-2'!Q96 -> 0 | N19: ='Worksheet A-2'!R96 -> 0 | Q19: =SUM(L19:P19) -> 0 | R19: =F19+G19+L19 -> 0 | S19: =H19+M19 -> 0 | T19: =I19+N19 -> 0 | U19: =O19 -> 0 | W19: =SUM(R19:V19) -> 0
A20: 8 | B20: General & Admin | F20: =SUM(C20:E20) -> 0 | G20: ='Worksheet A-1'!Q98 -> 0 | H20: ='Worksheet A-1'!R98 -> 0 | I20: ='Worksheet A-1'!S98 -> 0 | K20: 0 | L20: ='Worksheet A-2'!S96 -> 0 | M20: ='Worksheet A-2'!T96 -> 0 | N20: ='Worksheet A-2'!U96 -> 0 | Q20: 0 | R20: 0 | S20: 0 | T20: 0 | U20: 0 | W20: 0
A21: 9 | B21: Indirect | F21: =SUM(C21:E21) -> 0 | J21: ='Worksheet A-1'!T98 -> 0 | K21: 0 | P21: ='Worksheet A-2'!V96 -> 0 | Q21: 0 | V21: =F21+J21+P21 -> 0 | W21: 0
A22: 10 | B22: Subtotal Budget Unit 2 | C22: =SUM(C18:C21) -> 0 | D22: =SUM(D18:D21) -> 0 | E22: =SUM(E18:E21) -> 0 | F22: =SUM(F18:F21) -> 0 | G22: =SUM(G18:G21) -> 0 | H22: =SUM(H18:H21) -> 0 | I22: =SUM(I18:I21) -> 0 | J22: 0 | K22: 0 | L22: =SUM(L18:L21) -> 0 | M22: =SUM(M18:M21) -> 0 | N22: =SUM(N18:N21) -> 0 | O22: =O18 -> 0 | P22: =SUM(P18:P21) -> 0 | Q22: =SUM(Q18:Q21) -> 0 | R22: =SUM(R18:R21) -> 0 | S22: =SUM(S18:S21) -> 0 | T22: =SUM(T18:T21) -> 0 | U22: 0 | V22: =SUM(V18:V21) -> 0 | W22: =SUM(W18:W21) -> 0
O23: =IF(Q22='Worksheet A-2'!I96,"","ERROR:Total Adjustments do not match W/S A-2") -> 
B24: Budget Unit 3
A25: 11 | B25: TCM | F25: =SUM(C25:E25) -> 0 | G25: ='Worksheet A-1'!K148 -> 0 | H25: ='Worksheet A-1'!L148 -> 0 | I25: ='Worksheet A-1'!M148 -> 0 | K25: =SUM(G25:J25) -> 0 | L25: ='Worksheet A-2'!L144 -> 0 | M25: ='Worksheet A-2'!M144 -> 0 | N25: ='Worksheet A-2'!N144 -> 0 | O25: ='Worksheet A-2'!O144 -> 0 | Q25: =SUM(L25:P25) -> 0 | R25: =F25+G25+L25 -> 0 | S25: =H25+M25 -> 0 | T25: =I25+N25 -> 0 | U25: =O25 -> 0 | W25: =SUM(R25:V25) -> 0
A26: 12 | B26: Non TCM | F26: =SUM(C26:E26) -> 0 | G26: ='Worksheet A-1'!N148 -> 0 | H26: ='Worksheet A-1'!O148 -> 0 | I26: ='Worksheet A-1'!P148 -> 0 | K26: =SUM(G26:J26) -> 0 | L26: ='Worksheet A-2'!P144 -> 0 | M26: ='Worksheet A-2'!Q144 -> 0 | N26: ='Worksheet A-2'!R144 -> 0 | Q26: =SUM(L26:P26) -> 0 | R26: =F26+G26+L26 -> 0 | S26: =H26+M26 -> 0 | T26: =I26+N26 -> 0 | U26: =O26 -> 0 | W26: =SUM(R26:V26) -> 0
A27: 13 | B27: General & Admin | F27: =SUM(C27:E27) -> 0 | G27: ='Worksheet A-1'!Q148 -> 0 | H27: ='Worksheet A-1'!R148 -> 0 | I27: ='Worksheet A-1'!S148 -> 0 | K27: 0 | L27: ='Worksheet A-2'!S144 -> 0 | M27: ='Worksheet A-2'!T144 -> 0 | N27: ='Worksheet A-2'!U144 -> 0 | Q27: 0 | R27: =F27+G27+L27 -> 0 | S27: 0 | T27: 0 | U27: 0 | W27: 0
A28: 14 | B28: Indirect | F28: =SUM(C28:E28) -> 0 | J28: ='Worksheet A-1'!T148 -> 0 | K28: =SUM(G28:J28) -> 0 | P28: ='Worksheet A-2'!V144 -> 0 | Q28: 0 | V28: =F28+K28+Q28 -> 0 | W28: 0
A29: 15 | B29: Subtotal Budget Unit 3 | C29: =SUM(C25:C28) -> 0 | D29: =SUM(D25:D28) -> 0 | E29: =SUM(E25:E28) -> 0 | F29: =SUM(F25:F28) -> 0 | G29: =SUM(G25:G28) -> 0 | H29: =SUM(H25:H28) -> 0 | I29: =SUM(I25:I28) -> 0 | J29: 0 | K29: 0 | L29: =SUM(L25:L28) -> 0 | M29: =SUM(M25:M28) -> 0 | N29: =SUM(N25:N28) -> 0 | O29: =O25 -> 0 | P29: =SUM(P25:P28) -> 0 | Q29: =SUM(Q25:Q28) -> 0 | R29: =SUM(R25:R28) -> 0 | S29: =SUM(S25:S28) -> 0 | T29: =SUM(T25:T28) -> 0 | U29: 0 | V29: =SUM(V25:V28) -> 0 | W29: =SUM(W25:W28) -> 0
O30: =IF(Q29='Worksheet A-2'!I144,"","ERROR:Total Adjustments do not match W/S A-2") -> 
B31: Budget Unit 4
A32: 16 | B32: TCM | F32: =SUM(C32:E32) -> 0 | G32: ='Worksheet A-1'!K198 -> 0 | H32: ='Worksheet A-1'!L198 -> 0 | I32: ='Worksheet A-1'!M198 -> 0 | K32: =SUM(G32:J32) -> 0 | L32: ='Worksheet A-2'!L192 -> 0 | M32: ='Worksheet A-2'!M192 -> 0 | N32: ='Worksheet A-2'!N192 -> 0 | O32: ='Worksheet A-2'!O192 -> 0 | Q32: =SUM(L32:P32) -> 0 | R32: =F32+G32+L32 -> 0 | S32: =H32+M32 -> 0 | T32: =I32+N32 -> 0 | U32: =O32 -> 0 | W32: =SUM(R32:V32) -> 0
A33: 17 | B33: Non TCM | F33: =SUM(C33:E33) -> 0 | G33: ='Worksheet A-1'!N198 -> 0 | H33: ='Worksheet A-1'!O198 -> 0 | I33: ='Worksheet A-1'!P198 -> 0 | K33: =SUM(G33:J33) -> 0 | L33: ='Worksheet A-2'!P192 -> 0 | M33: ='Worksheet A-2'!Q192 -> 0 | N33: ='Worksheet A-2'!R192 -> 0 | Q33: =SUM(L33:P33) -> 0 | R33: =F33+G33+L33 -> 0 | S33: =H33+M33 -> 0 | T33: =I33+N33 -> 0 | U33: =O33 -> 0 | W33: =SUM(R33:V33) -> 0
A34: 18 | B34: General & Admin | F34: =SUM(C34:E34) -> 0 | G34: ='Worksheet A-1'!Q198 -> 0 | H34: ='Worksheet A-1'!R198 -> 0 | I34: ='Worksheet A-1'!S198 -> 0 | K34: 0 | L34: ='Worksheet A-2'!S192 -> 0 | M34: ='Worksheet A-2'!T192 -> 0 | N34: ='Worksheet A-2'!U192 -> 0 | Q34: 0 | R34: =F34+G34+L34 -> 0 | S34: 0 | T34: 0 | U34: 0 | W34: 0
A35: 19 | B35: Indirect | F35: =SUM(C35:E35) -> 0 | J35: ='Worksheet A-1'!T198 -> 0 | K35: =SUM(G35:J35) -> 0 | P35: ='Worksheet A-2'!V192 -> 0 | Q35: 0 | V35: =F35+K35+Q35 -> 0 | W35: 0
A36: 20 | B36: Subtotal Budget Unit 4 | C36: =SUM(C32:C35) -> 0 | D36: =SUM(D32:D35) -> 0 | E36: =SUM(E32:E35) -> 0 | F36: =SUM(F32:F35) -> 0 | G36: =SUM(G32:G35) -> 0 | H36: =SUM(H32:H35) -> 0 | I36: =SUM(I32:I35) -> 0 | J36: 0 | K36: 0 | L36: =SUM(L32:L35) -> 0 | M36: =SUM(M32:M35) -> 0 | N36: =SUM(N32:N35) -> 0 | O36: =O32 -> 0 | P36: =SUM(P32:P35) -> 0 | Q36: =SUM(Q32:Q35) -> 0 | R36: =SUM(R32:R35) -> 0 | S36: =SUM(S32:S35) -> 0 | T36: =SUM(T32:T35) -> 0 | U36: 0 | V36: =SUM(V32:V35) -> 0 | W36: =SUM(W32:W35) -> 0
O37: =IF(Q36='Worksheet A-2'!I192,"","ERROR:Total Adjustments do not match W/S A-2") -> 
A38: 21 | B38: Grand Total | C38: =C15+C22+C29+C36 -> 1109804.247 | D38: 517963.7228 | E38: 445352 | F38: 2073119.97 | G38: 0 | H38: 0 | I38: 2165.44 | J38: -2165.44 | K38: 0 | L38: =L15+L22+L29+L36 -> 0 | M38: 0 | N38: 0 | O38: 0 | P38: 0 | Q38: 0 | R38: =R15+R22+R29+R36 -> 1627767.97 | S38: 0 | T38: 2165.44 | U38: 0 | V38: =V15+V22+V29+V36 -> 443186.56 | W38: =W15+W22+W29+W36 -> 2073119.97
K39: =IF(K38<>0,"ERROR: Total Reclassification must equal 0, check W/S A-1 data!","") -> 

Sheet Worksheet A-1
B2: LGA Name: | C2: =Info!C42 -> ABC County | F2: LGA NPI: | G2: =Info!F42 -> 1200XXXX
B3: Reporting Period: | C3: =Info!C43 -> July 1, 2015 to June 30, 2016
B5: Description | C5: Salaries | D5: Benefits | E5: Other Expense by Employee | F5: Other Expense by Program | G5: Other | H5: Subtotal | I5: Explanation of Reclassification | K5: TCM | N5: Non TCM | Q5: General & Admin | T5: Indirect
B6: 1 | C6: 2 | D6: 3 | E6: 4 | F6: 5 | G6: 6 | H6: 7 | I6: 8 | K6: A-col.5 | L6: A-col.6 | M6: A-col.7 | N6: A-col.5 | O6: A-col.6 | P6: A-col.7 | Q6: A-col.5 | R6: A-col.6 | S6: A-col.7 | T6: A-col.8
B7: Budget Unit 1
A8: 1 | B8: Indirect | G8: -2165.44 | H8: =SUM(C8:G8) -> -2165.44 | I8: S&S to TCM - TCM documentation system | K8: =IF(LEFT(B8,3)="TCM", C8+D8, 0) -> 0 | L8: =IF(LEFT(B8,3)="TCM", E8, 0) -> 0 | M8: =IF(LEFT(B8,3)="TCM", F8, 0) -> 0 | N8: =IF(LEFT(B8,3)="Non", C8+D8, 0) -> 0 | O8: =IF(LEFT(B8,3)="Non", E8, 0) -> 0 | P8: =IF(LEFT(B8,3)="Non", F8, 0) -> 0 | Q8: =IF(LEFT(B8,3)="Gen", C8+D8, 0) -> 0 | R8: =IF(LEFT(B8,3)="Gen", E8, 0) -> 0 | S8: =IF(LEFT(B8,3)="Gen", F8, 0) -> 0 | T8: =IF(LEFT(B8,3)="Ind", G8, 0) -> -2165.44
A9: 2 | B9: TCM | F9: 2165.44 | H9: =SUM(C9:G9) -> 2165.44 | I9: S&S to TCM - TCM documentation system | K9: =IF(LEFT(B9,3)="TCM", C9+D9, 0) -> 0 | L9: =IF(LEFT(B9,3)="TCM", E9, 0) -> 0 | M9: =IF(LEFT(B9,3)="TCM", F9, 0) -> 2165.44 | N9: =IF(LEFT(B9,3)="Non", C9+D9, 0) -> 0 | O9: =IF(LEFT(B9,3)="Non", E9, 0) -> 0 | P9: =IF(LEFT(B9,3)="Non", F9, 0) -> 0 | Q9: =IF(LEFT(B9,3)="Gen", C9+D9, 0) -> 0 | R9: =IF(LEFT(B9,3)="Gen", E9, 0) -> 0 | S9: =IF(LEFT(B9,3)="Gen", F9, 0) -> 0 | T9: =IF(LEFT(B9,3)="Ind", G9, 0) -> 0
A10: 3 | H10: =SUM(C10:G10) -> 0 | K10: =IF(LEFT(B10,3)="TCM", C10+D10, 0) -> 0 | L10: =IF(LEFT(B10,3)="TCM", E10, 0) -> 0 | M10: =IF(LEFT(B10,3)="TCM", F10, 0) -> 0 | N10: =IF(LEFT(B10,3)="Non", C10+D10, 0) -> 0 | O10: =IF(LEFT(B10,3)="Non", E10, 0) -> 0 | P10: =IF(LEFT(B10,3)="Non", F10, 0) -> 0 | Q10: =IF(LEFT(B10,3)="Gen", C10+D10, 0) -> 0 | R10: =IF(LEFT(B10,3)="Gen", E10, 0) -> 0 | S10: =IF(LEFT(B10,3)="Gen", F10, 0) -> 0 | T10: =IF(LEFT(B10,3)="Ind", G10, 0) -> 0
A11: 4 | H11: =SUM(C11:G11) -> 0 | K11: =IF(LEFT(B11,3)="TCM", C11+D11, 0) -> 0 | L11: =IF(LEFT(B11,3)="TCM", E11, 0) -> 0 | M11: =IF(LEFT(B11,3)="TCM", F11, 0) -> 0 | N11: =IF(LEFT(B11,3)="Non", C11+D11, 0) -> 0 | O11: =IF(LEFT(B11,3)="Non", E11, 0) -> 0 | P11: =IF(LEFT(B11,3)="Non", F11, 0) -> 0 | Q11: =IF(LEFT(B11,3)="Gen", C11+D11, 0) -> 0 | R11: =IF(LEFT(B11,3)="Gen", E11, 0) -> 0 | S11: =IF(LEFT(B11,3)="Gen", F11, 0) -> 0 | T11: =IF(LEFT(B11,3)="Ind", G11, 0) -> 0
A12: 5 | H12: =SUM(C12:G12) -> 0 | K12: =IF(LEFT(B12,3)="TCM", C12+D12, 0) -> 0 | L12: =IF(LEFT(B12,3)="TCM", E12, 0) -> 0 | M12: =IF(LEFT(B12,3)="TCM", F12, 0) -> 0 | N12: =IF(LEFT(B12,3)="Non", C12+D12, 0) -> 0 | O12: =IF(LEFT(B12,3)="Non", E12, 0) -> 0 | P12: =IF(LEFT(B12,3)="Non", F12, 0) -> 0 | Q12: =IF(LEFT(B12,3)="Gen", C12+D12, 0) -> 0 | R12: =IF(LEFT(B12,3)="Gen", E12, 0) -> 0 | S12: =IF(LEFT(B12,3)="Gen", F12, 0) -> 0 | T12: =IF(LEFT(B12,3)="Ind", G12, 0) -> 0
A13: 6 | H13: 0 | K13: 0 | L13: 0 | M13: 0 | N13: 0 | O13: 0 | P13: 0 | Q13: 0 | R13: 0 | S13: 0 | T13: 0
A14: 7 | H14: 0 | K14: 0 | L14: 0 | M14: 0 | N14: 0 | O14: 0 | P14: 0 | Q14: 0 | R14: 0 | S14: 0 | T14: 0
A15: 8 | H15: 0 | K15: 0 | L15: 0 | M15: 0 | N15: 0 | O15: 0 | P15: 0 | Q15: 0 | R15: 0 | S15: 0 | T15: 0
A16: 9 | H16: 0 | K16: 0 | L16: 0 | M16: 0 | N16: 0 | O16: 0 | P16: 0 | Q16: 0 | R16: 0 | S16: 0 | T16: 0
A17: 10 | H17: 0 | K17: 0 | L17: 0 | M17: 0 | N17: 0 | O17: 0 | P17: 0 | Q17: 0 | R17: 0 | S17: 0 | T17: 0
A18: 11 | H18: 0 | K18: 0 | L18: 0 | M18: 0 | N18: 0 | O18: 0 | P18: 0 | Q18: 0 | R18: 0 | S18: 0 | T18: 0
A19: 12 | H19: 0 | K19: 0 | L19: 0 | M19: 0 | N19: 0 | O19: 0 | P19: 0 | Q19: 0 | R19: 0 | S19: 0 | T19: 0
A20: 13 | H20: 0 | K20: 0 | L20: 0 | M20: 0 | N20: 0 | O20: 0 | P20: 0 | Q20: 0 | R20: 0 | S20: 0 | T20: 0
A21: 14 | H21: 0 | K21: 0 | L21: 0 | M21: 0 | N21: 0 | O21: 0 | P21: 0 | Q21: 0 | R21: 0 | S21: 0 | T21: 0
A22: 15 | H22: 0 | K22: 0 | L22: 0 | M22: 0 | N22: 0 | O22: 0 | P22: 0 | Q22: 0 | R22: 0 | S22: 0 | T22: 0
A23: 16 | H23: 0 | K23: 0 | L23: 0 | M23: 0 | N23: 0 | O23: 0 | P23: 0 | Q23: 0 | R23: 0 | S23: 0 | T23: 0
A24: 17 | H24: 0 | K24: 0 | L24: 0 | M24: 0 | N24: 0 | O24: 0 | P24: 0 | Q24: 0 | R24: 0 | S24: 0 | T24: 0
A25: 18 | H25: 0 | K25: 0 | L25: 0 | M25: 0 | N25: 0 | O25: 0 | P25: 0 | Q25: 0 | R25: 0 | S25: 0 | T25: 0
A26: 19 | H26: 0 | K26: 0 | L26: 0 | M26: 0 | N26: 0 | O26: 0 | P26: 0 | Q26: 0 | R26: 0 | S26: 0 | T26: 0
A27: 20 | H27: 0 | K27: 0 | L27: 0 | M27: 0 | N27: 0 | O27: 0 | P27: 0 | Q27: 0 | R27: 0 | S27: 0 | T27: 0
A28: 21 | H28: 0 | K28: 0 | L28: 0 | M28: 0 | N28: 0 | O28: 0 | P28: 0 | Q28: 0 | R28: 0 | S28: 0 | T28: 0
A29: 22 | H29: 0 | K29: 0 | L29: =IF(LEFT(B29,3)="TCM", E29, 0) -> 0 | M29: 0 | N29: 0 | O29: 0 | P29: 0 | Q29: 0 | R29: 0 | S29: 0 | T29: 0
A30: 23 | H30: 0 | K30: 0 | L30: 0 | M30: 0 | N30: 0 | O30: 0 | P30: 0 | Q30: 0 | R30: 0 | S30: 0 | T30: 0
A31: 24 | H31: 0 | K31: 0 | L31: 0 | M31: =IF(LEFT(B31,3)="TCM", F31, 0) -> 0 | N31: 0 | O31: 0 | P31: 0 | Q31: 0 | R31: 0 | S31: 0 | T31: 0
A32: 25 | H32: 0 | K32: =IF(LEFT(B32,3)="TCM", C32+D32, 0) -> 0 | L32: 0 | M32: 0 | N32: 0 | O32: 0 | P32: 0 | Q32: 0 | R32: 0 | S32: 0 | T32: 0
A33: 26 | H33: 0 | K33: 0 | L33: 0 | M33: 0 | N33: 0 | O33: 0 | P33: 0 | Q33: 0 | R33: 0 | S33: 0 | T33: 0
A34: 27 | H34: 0 | K34: 0 | L34: 0 | M34: 0 | N34: 0 | O34: 0 | P34: 0 | Q34: 0 | R34: 0 | S34: 0 | T34: 0
A35: 28 | H35: 0 | K35: 0 | L35: 0 | M35: 0 | N35: 0 | O35: 0 | P35: 0 | Q35: 0 | R35: 0 | S35: 0 | T35: 0
A36: 29 | H36: 0 | K36: 0 | L36: 0 | M36: 0 | N36: 0 | O36: 0 | P36: 0 | Q36: 0 | R36: 0 | S36: 0 | T36: 0
A37: 30 | H37: 0 | K37: 0 | L37: 0 | M37: 0 | N37: 0 | O37: 0 | P37: 0 | Q37: 0 | R37: 0 | S37: 0 | T37: 0
A38: 31 | H38: 0 | K38: 0 | L38: 0 | M38: 0 | N38: 0 | O38: 0 | P38: 0 | Q38: 0 | R38: 0 | S38: 0 | T38: 0
A39: 32 | H39: 0 | K39: 0 | L39: 0 | M39: 0 | N39: 0 | O39: 0 | P39: 0 | Q39: 0 | R39: 0 | S39: 0 | T39: 0
A40: 33 | H40: 0 | K40: 0 | L40: 0 | M40: 0 | N40: 0 | O40: 0 | P40: 0 | Q40: 0 | R40: 0 | S40: 0 | T40: 0
A41: 34 | H41: 0 | K41: 0 | L41: 0 | M41: 0 | N41: 0 | O41: 0 | P41: 0 | Q41: 0 | R41: 0 | S41: 0 | T41: 0
A42: 35 | H42: 0 | K42: 0 | L42: 0 | M42: 0 | N42: 0 | O42: 0 | P42: 0 | Q42: 0 | R42: 0 | S42: 0 | T42: 0
A43: 36 | H43: 0 | K43: 0 | L43: 0 | M43: 0 | N43: 0 | O43: 0 | P43: 0 | Q43: 0 | R43: 0 | S43: 0 | T43: 0
A44: 37 | H44: 0 | K44: 0 | L44: 0 | M44: 0 | N44: 0 | O44: 0 | P44: 0 | Q44: 0 | R44: 0 | S44: 0 | T44: 0
A45: 38 | H45: 0 | K45: 0 | L45: 0 | M45: 0 | N45: 0 | O45: 0 | P45: 0 | Q45: 0 | R45: 0 | S45: 0 | T45: 0
A46: 39 | H46: 0 | K46: 0 | L46: 0 | M46: 0 | N46: 0 | O46: 0 | P46: 0 | Q46: 0 | R46: 0 | S46: 0 | T46: 0
A47: 40 | H47: 0 | K47: 0 | L47: 0 | M47: 0 | N47: 0 | O47: 0 | P47: 0 | Q47: 0 | R47: 0 | S47: 0 | T47: 0
B48: Subtotal - Budget Unit 1 | C48: =SUM(C8:C47) -> 0 | D48: =SUM(D8:D47) -> 0 | E48: =SUM(E8:E47) -> 0 | F48: =SUM(F8:F47) -> 2165.44 | G48: =SUM(G8:G47) -> -2165.44 | H48: =SUM(H8:H47) -> 0 | I48: =IF(H48<>0,"ERROR: Total must equal 0!","") ->  | K48: =SUM(K8:K47) -> 0 | L48: =SUM(L8:L47) -> 0 | M48: 2165.44 | N48: =SUM(N8:N47) -> 0 | O48: =SUM(O8:O47) -> 0 | P48: =SUM(P8:P47) -> 0 | Q48: =SUM(Q8:Q47) -> 0 | R48: =SUM(R8:R47) -> 0 | S48: =SUM(S8:S47) -> 0 | T48: =SUM(T8:T47) -> -2165.44
B50: Make sure the reclassifications match with worksheet A column 5 through 8 and the reclassification subtotal is ALWAYS equal to $0.
B52: LGA Name: | C52: =Info!C42 -> ABC County | F52: LGA NPI: | G52: =Info!F42 -> 1200XXXX
B53: Reporting Period: | C53: =Info!C43 -> July 1, 2015 to June 30, 2016
B55: Description | C55: Salaries | D55: Benefits | E55: Other Expense by Employee | F55: Other Expense by Program | G55: Other | H55: Subtotal | I55: Explanation of Reclassification | K55: TCM | N55: Non TCM | Q55: General & Admin | T55: Indirect
B56: 1 | C56: 2 | D56: 3 | E56: 4 | F56: 5 | G56: 6 | H56: 7 | I56: 8 | K56: A-col.5 | L56: A-col.6 | M56: A-col.7 | N56: A-col.5 | O56: A-col.6 | P56: A-col.7 | Q56: A-col.5 | R56: A-col.6 | S56: A-col.7 | T56: A-col.8
B57: Budget Unit 2
A58: 1 | H58: =SUM(C58:G58) -> 0 | K58: =IF(LEFT(B58,3)="TCM", C58+D58, 0) -> 0 | L58: =IF(LEFT(B58,3)="TCM", E58, 0) -> 0 | M58: =IF(LEFT(B58,3)="TCM", F58, 0) -> 0 | N58: =IF(LEFT(B58,3)="Non", C58+D58, 0) -> 0 | O58: =IF(LEFT(B58,3)="Non", E58, 0) -> 0 | P58: =IF(LEFT(B58,3)="Non", F58, 0) -> 0 | Q58: =IF(LEFT(B58,3)="Gen", C58+D58, 0) -> 0 | R58: =IF(LEFT(B58,3)="Gen", E58, 0) -> 0 | S58: =IF(LEFT(B58,3)="Gen", F58, 0) -> 0 | T58: =IF(LEFT(B58,3)="Ind", G58, 0) -> 0
A59: 2 | H59: 0 | K59: =IF(LEFT(B59,3)="TCM", C59+D59, 0) -> 0 | L59: =IF(LEFT(B59,3)="TCM", E59, 0) -> 0 | M59: =IF(LEFT(B59,3)="TCM", F59, 0) -> 0 | N59: =IF(LEFT(B59,3)="Non", C59+D59, 0) -> 0 | O59: =IF(LEFT(B59,3)="Non", E59, 0) -> 0 | P59: =IF(LEFT(B59,3)="Non", F59, 0) -> 0 | Q59: =IF(LEFT(B59,3)="Gen", C59+D59, 0) -> 0 | R59: =IF(LEFT(B59,3)="Gen", E59, 0) -> 0 | S59: =IF(LEFT(B59,3)="Gen", F59, 0) -> 0 | T59: =IF(LEFT(B59,3)="Ind", G59, 0) -> 0
A60: 3 | H60: 0 | K60: 0 | L60: 0 | M60: 0 | N60: 0 | O60: 0 | P60: 0 | Q60: 0 | R60: 0 | S60: 0 | T60: 0
A61: 4 | H61: 0 | K61: 0 | L61: 0 | M61: 0 | N61: 0 | O61: 0 | P61: 0 | Q61: 0 | R61: 0 | S61: 0 | T61: 0
A62: 5 | H62: 0 | K62: 0 | L62: 0 | M62: 0 | N62: 0 | O62: 0 | P62: 0 | Q62: 0 | R62: 0 | S62: 0 | T62: 0
A63: 6 | H63: 0 | K63: 0 | L63: 0 | M63: 0 | N63: 0 | O63: 0 | P63: 0 | Q63: 0 | R63: 0 | S63: 0 | T63: 0
A64: 7 | H64: 0 | K64: 0 | L64: 0 | M64: 0 | N64: 0 | O64: 0 | P64: 0 | Q64: 0 | R64: 0 | S64: 0 | T64: 0
A65: 8 | H65: 0 | K65: 0 | L65: 0 | M65: 0 | N65: 0 | O65: 0 | P65: 0 | Q65: 0 | R65: 0 | S65: 0 | T65: 0
A66: 9 | H66: 0 | K66: 0 | L66: 0 | M66: 0 | N66: 0 | O66: 0 | P66: 0 | Q66: 0 | R66: 0 | S66: 0 | T66: 0
A67: 10 | H67: 0 | K67: 0 | L67: 0 | M67: 0 | N67: 0 | O67: 0 | P67: 0 | Q67: 0 | R67: 0 | S67: 0 | T67: 0
A68: 11 | H68: 0 | K68: 0 | L68: 0 | M68: 0 | N68: 0 | O68: 0 | P68: 0 | Q68: 0 | R68: 0 | S68: 0 | T68: 0
A69: 12 | H69: 0 | K69: 0 | L69: 0 | M69: 0 | N69: 0 | O69: 0 | P69: 0 | Q69: 0 | R69: 0 | S69: 0 | T69: 0
A70: 13 | H70: 0 | K70: 0 | L70: 0 | M70: 0 | N70: 0 | O70: 0 | P70: 0 | Q70: 0 | R70: 0 | S70: 0 | T70: 0
A71: 14 | H71: 0 | K71: 0 | L71: 0 | M71: 0 | N71: 0 | O71: 0 | P71: 0 | Q71: 0 | R71: 0 | S71: 0 | T71: 0
A72: 15 | H72: 0 | K72: 0 | L72: 0 | M72: 0 | N72: 0 | O72: 0 | P72: 0 | Q72: 0 | R72: 0 | S72: 0 | T72: 0
A73: 16 | H73: 0 | K73: 0 | L73: 0 | M73: 0 | N73: 0 | O73: 0 | P73: 0 | Q73: 0 | R73: 0 | S73: 0 | T73: 0
A74: 17 | H74: 0 | K74: 0 | L74: 0 | M74: 0 | N74: 0 | O74: 0 | P74: 0 | Q74: 0 | R74: 0 | S74: 0 | T74: 0
A75: 18 | H75: 0 | K75: 0 | L75: 0 | M75: 0 | N75: 0 | O75: 0 | P75: 0 | Q75: 0 | R75: 0 | S75: 0 | T75: 0
A76: 19 | H76: 0 | K76: 0 | L76: 0 | M76: 0 | N76: 0 | O76: 0 | P76: 0 | Q76: 0 | R76: 0 | S76: 0 | T76: 0
A77: 20 | H77: 0 | K77: 0 | L77: 0 | M77: 0 | N77: 0 | O77: 0 | P77: 0 | Q77: 0 | R77: 0 | S77: 0 | T77: 0
A78: 21 | H78: 0 | K78: 0 | L78: 0 | M78: 0 | N78: 0 | O78: 0 | P78: 0 | Q78: 0 | R78: 0 | S78: 0 | T78: 0
A79: 22 | H79: 0 | K79: 0 | L79: 0 | M79: 0 | N79: 0 | O79: 0 | P79: 0 | Q79: 0 | R79: 0 | S79: 0 | T79: 0
A80: 23 | H80: 0 | K80: 0 | L80: 0 | M80: 0 | N80: 0 | O80: 0 | P80: 0 | Q80: 0 | R80: 0 | S80: 0 | T80: 0
A81: 24 | H81: 0 | K81: 0 | L81: 0 | M81: 0 | N81: 0 | O81: 0 | P81: 0 | Q81: 0 | R81: 0 | S81: 0 | T81: 0
A82: 25 | H82: 0 | K82: 0 | L82: 0 | M82: 0 | N82: 0 | O82: 0 | P82: 0 | Q82: 0 | R82: 0 | S82: 0 | T82: 0
A83: 26 | H83: 0 | K83: 0 | L83: 0 | M83: 0 | N83: 0 | O83: 0 | P83: 0 | Q83: 0 | R83: 0 | S83: 0 | T83: 0
A84: 27 | H84: 0 | K84: 0 | L84: 0 | M84: 0 | N84: 0 | O84: 0 | P84: 0 | Q84: 0 | R84: 0 | S84: 0 | T84: 0
A85: 28 | H85: 0 | K85: 0 | L85: 0 | M85: 0 | N85: 0 | O85: 0 | P85: 0 | Q85: 0 | R85: 0 | S85: 0 | T85: 0
A86: 29 | H86: 0 | K86: 0 | L86: 0 | M86: 0 | N86: 0 | O86: 0 | P86: 0 | Q86: 0 | R86: 0 | S86: 0 | T86: 0
A87: 30 | H87: 0 | K87: 0 | L87: 0 | M87: 0 | N87: 0 | O87: 0 | P87: 0 | Q87: 0 | R87: 0 | S87: 0 | T87: 0
A88: 31 | H88: 0 | K88: 0 | L88: 0 | M88: 0 | N88: 0 | O88: 0 | P88: 0 | Q88: 0 | R88: 0 | S88: 0 | T88: 0
A89: 32 | H89: 0 | K89: 0 | L89: 0 | M89: 0 | N89: 0 | O89: 0 | P89: 0 | Q89: 0 | R89: 0 | S89: 0 | T89: 0
A90: 33 | H90: 0 | K90: 0 | L90: 0 | M90: 0 | N90: 0 | O90: 0 | P90: 0 | Q90: 0 | R90: 0 | S90: 0 | T90: 0
A91: 34 | H91: 0 | K91: 0 | L91: 0 | M91: 0 | N91: 0 | O91: 0 | P91: 0 | Q91: 0 | R91: 0 | S91: 0 | T91: 0
A92: 35 | H92: 0 | K92: 0 | L92: 0 | M92: 0 | N92: 0 | O92: 0 | P92: 0 | Q92: 0 | R92: 0 | S92: 0 | T92: 0
A93: 36 | H93: 0 | K93: 0 | L93: 0 | M93: 0 | N93: 0 | O93: 0 | P93: 0 | Q93: 0 | R93: 0 | S93: 0 | T93: 0
A94: 37 | H94: 0 | K94: 0 | L94: 0 | M94: 0 | N94: 0 | O94: 0 | P94: 0 | Q94: 0 | R94: 0 | S94: 0 | T94: 0
A95: 38 | H95: 0 | K95: 0 | L95: 0 | M95: 0 | N95: 0 | O95: 0 | P95: 0 | Q95: 0 | R95: 0 | S95: 0 | T95: 0
A96: 39 | H96: 0 | K96: 0 | L96: 0 | M96: 0 | N96: 0 | O96: 0 | P96: 0 | Q96: 0 | R96: 0 | S96: 0 | T96: 0
A97: 40 | H97: 0 | K97: 0 | L97: 0 | M97: 0 | N97: 0 | O97: 0 | P97: 0 | Q97: 0 | R97: 0 | S97: 0 | T97: 0
B98: Subtotal - Budget Unit 2 | C98: =SUM(C58:C97) -> 0 | D98: 0 | E98: 0 | F98: 0 | G98: 0 | H98: 0 | I98: =IF(H98<>0,"ERROR: Total must equal 0!","") ->  | K98: =SUM(K58:K97) -> 0 | L98: =SUM(L58:L97) -> 0 | M98: 0 | N98: 0 | O98: 0 | P98: 0 | Q98: 0 | R98: 0 | S98: 0 | T98: 0
B100: Make sure the reclassifications match with worksheet A column 5 through 8 and the reclassification subtotal is ALWAYS equal to $0.
B102: LGA Name: | C102: =Info!C42 -> ABC County | F102: LGA NPI: | G102: =Info!F42 -> 1200XXXX
B103: Reporting Period: | C103: =Info!C43 -> July 1, 2015 to June 30, 2016
B105: Description | C105: Salaries | D105: Benefits | E105: Other Expense by Employee | F105: Other Expense by Program | G105: Other | H105: Subtotal | I105: Explanation of Reclassification | K105: TCM | N105: Non TCM | Q105: General & Admin | T105: Indirect
B106: 1 | C106: 2 | D106: 3 | E106: 4 | F106: 5 | G106: 6 | H106: 7 | I106: 8 | K106: A-col.5 | L106: A-col.6 | M106: A-col.7 | N106: A-col.5 | O106: A-col.6 | P106: A-col.7 | Q106: A-col.5 | R106: A-col.6 | S106: A-col.7 | T106: A-col.8
B107: Budget Unit 3
A108: 1 | H108: =SUM(C108:G108) -> 0 | K108: =IF(LEFT(B108,3)="TCM", C108+D108, 0) -> 0 | L108: =IF(LEFT(B108,3)="TCM", E108, 0) -> 0 | M108: =IF(LEFT(B108,3)="TCM", F108, 0) -> 0 | N108: =IF(LEFT(B108,3)="Non", C108+D108, 0) -> 0 | O108: =IF(LEFT(B108,3)="Non", E108, 0) -> 0 | P108: =IF(LEFT(B108,3)="Non", F108, 0) -> 0 | Q108: =IF(LEFT(B108,3)="Gen", C108+D108, 0) -> 0 | R108: =IF(LEFT(B108,3)="Gen", E108, 0) -> 0 | S108: =IF(LEFT(B108,3)="Gen", F108, 0) -> 0 | T108: =IF(LEFT(B108,3)="Ind", G108, 0) -> 0
A109: 2 | H109: 0 | K109: =IF(LEFT(B109,3)="TCM", C109+D109, 0) -> 0 | L109: =IF(LEFT(B109,3)="TCM", E109, 0) -> 0 | M109: =IF(LEFT(B109,3)="TCM", F109, 0) -> 0 | N109: =IF(LEFT(B109,3)="Non", C109+D109, 0) -> 0 | O109: =IF(LEFT(B109,3)="Non", E109, 0) -> 0 | P109: =IF(LEFT(B109,3)="Non", F109, 0) -> 0 | Q109: =IF(LEFT(B109,3)="Gen", C109+D109, 0) -> 0 | R109: =IF(LEFT(B109,3)="Gen", E109, 0) -> 0 | S109: =IF(LEFT(B109,3)="Gen", F109, 0) -> 0 | T109: =IF(LEFT(B109,3)="Ind", G109, 0) -> 0
A110: 3 | H110: 0 | K110: 0 | L110: 0 | M110: 0 | N110: 0 | O110: 0 | P110: 0 | Q110: 0 | R110: 0 | S110: 0 | T110: 0
A111: 4 | H111: 0 | K111: 0 | L111: 0 | M111: 0 | N111: 0 | O111: 0 | P111: 0 | Q111: 0 | R111: 0 | S111: 0 | T111: 0
A112: 5 | H112: 0 | K112: 0 | L112: 0 | M112: 0 | N112: 0 | O112: 0 | P112: 0 | Q112: 0 | R112: 0 | S112: 0 | T112: 0
A113: 6 | H113: 0 | K113: 0 | L113: 0 | M113: 0 | N113: 0 | O113: 0 | P113: 0 | Q113: 0 | R113: 0 | S113: 0 | T113: 0
A114: 7 | H114: 0 | K114: 0 | L114: 0 | M114: 0 | N114: 0 | O114: 0 | P114: 0 | Q114: 0 | R114: 0 | S114: 0 | T114: 0
A115: 8 | H115: 0 | K115: 0 | L115: 0 | M115: 0 | N115: 0 | O115: 0 | P115: 0 | Q115: 0 | R115: 0 | S115: 0 | T115: 0
A116: 9 | H116: 0 | K116: 0 | L116: 0 | M116: 0 | N116: 0 | O116: 0 | P116: 0 | Q116: 0 | R116: 0 | S116: 0 | T116: 0
A117: 10 | H117: 0 | K117: 0 | L117: 0 | M117: 0 | N117: 0 | O117: 0 | P117: 0 | Q117: 0 | R117: 0 | S117: 0 | T117: 0
A118: 11 | H118: 0 | K118: 0 | L118: 0 | M118: 0 | N118: 0 | O118: 0 | P118: 0 | Q118: 0 | R118: 0 | S118: 0 | T118: 0
A119: 12 | H119: 0 | K119: 0 | L119: 0 | M119: 0 | N119: 0 | O119: 0 | P119: 0 | Q119: 0 | R119: 0 | S119: 0 | T119: 0
A120: 13 | H120: 0 | K120: 0 | L120: 0 | M120: 0 | N120: 0 | O120: 0 | P120: 0 | Q120: 0 | R120: 0 | S120: 0 | T120: 0
A121: 14 | H121: 0 | K121: 0 | L121: 0 | M121: 0 | N121: 0 | O121: 0 | P121: 0 | Q121: 0 | R121: 0 | S121: 0 | T121: 0
A122: 15 | H122: 0 | K122: 0 | L122: 0 | M122: 0 | N122: 0 | O122: 0 | P122: 0 | Q122: 0 | R122: 0 | S122: 0 | T122: 0
A123: 16 | H123: 0 | K123: 0 | L123: 0 | M123: 0 | N123: 0 | O123: 0 | P123: 0 | Q123: 0 | R123: 0 | S123: 0 | T123: 0
A124: 17 | H124: 0 | K124: 0 | L124: 0 | M124: 0 | N124: 0 | O124: 0 | P124: 0 | Q124: 0 | R124: 0 | S124: 0 | T124: 0
A125: 18 | H125: 0 | K125: 0 | L125: 0 | M125: 0 | N125: 0 | O125: 0 | P125: 0 | Q125: 0 | R125: 0 | S125: 0 | T125: 0
A126: 19 | H126: 0 | K126: 0 | L126: 0 | M126: 0 | N126: 0 | O126: 0 | P126: 0 | Q126: 0 | R126: 0 | S126: 0 | T126: 0
A127: 20 | H127: 0 | K127: 0 | L127: 0 | M127: 0 | N127: 0 | O127: 0 | P127: 0 | Q127: 0 | R127: 0 | S127: 0 | T127: 0
A128: 21 | H128: 0 | K128: 0 | L128: 0 | M128: 0 | N128: 0 | O128: 0 | P128: 0 | Q128: 0 | R128: 0 | S128: 0 | T128: 0
A129: 22 | H129: 0 | K129: 0 | L129: 0 | M129: 0 | N129: 0 | O129: 0 | P129: 0 | Q129: 0 | R129: 0 | S129: 0 | T129: 0
A130: 23 | H130: 0 | K130: 0 | L130: 0 | M130: 0 | N130: 0 | O130: 0 | P130: 0 | Q130: 0 | R130: 0 | S130: 0 | T130: 0
A131: 24 | H131: 0 | K131: 0 | L131: 0 | M131: 0 | N131: 0 | O131: 0 | P131: 0 | Q131: 0 | R131: 0 | S131: 0 | T131: 0
A132: 25 | H132: 0 | K132: 0 | L132: 0 | M132: 0 | N132: 0 | O132: 0 | P132: 0 | Q132: 0 | R132: 0 | S132: 0 | T132: 0
A133: 26 | H133: 0 | K133: 0 | L133: 0 | M133: 0 | N133: 0 | O133: 0 | P133: 0 | Q133: 0 | R133: 0 | S133: 0 | T133: 0
A134: 27 | H134: 0 | K134: 0 | L134: 0 | M134: 0 | N134: 0 | O134: 0 | P134: 0 | Q134: 0 | R134: 0 | S134: 0 | T134: 0
A135: 28 | H135: 0 | K135: 0 | L135: 0 | M135: 0 | N135: 0 | O135: 0 | P135: 0 | Q135: 0 | R135: 0 | S135: 0 | T135: 0
A136: 29 | H136: 0 | K136: 0 | L136: 0 | M136: 0 | N136: 0 | O136: 0 | P136: 0 | Q136: 0 | R136: 0 | S136: 0 | T136: 0
A137: 30 | H137: 0 | K137: 0 | L137: 0 | M137: 0 | N137: 0 | O137: 0 | P137: 0 | Q137: 0 | R137: 0 | S137: 0 | T137: 0
A138: 31 | H138: 0 | K138: 0 | L138: 0 | M138: 0 | N138: 0 | O138: 0 | P138: 0 | Q138: 0 | R138: 0 | S138: 0 | T138: 0
A139: 32 | H139: 0 | K139: 0 | L139: 0 | M139: 0 | N139: 0 | O139: 0 | P139: 0 | Q139: 0 | R139: 0 | S139: 0 | T139: 0
A140: 33 | H140: 0 | K140: 0 | L140: 0 | M140: 0 | N140: 0 | O140: 0 | P140: 0 | Q140: 0 | R140: 0 | S140: 0 | T140: 0
A141: 34 | H141: 0 | K141: 0 | L141: 0 | M141: 0 | N141: 0 | O141: 0 | P141: 0 | Q141: 0 | R141: 0 | S141: 0 | T141: 0
A142: 35 | H142: 0 | K142: 0 | L142: 0 | M142: 0 | N142: 0 | O142: 0 | P142: 0 | Q142: 0 | R142: 0 | S142: 0 | T142: 0
A143: 36 | H143: 0 | K143: 0 | L143: 0 | M143: 0 | N143: 0 | O143: 0 | P143: 0 | Q143: 0 | R143: 0 | S143: 0 | T143: 0
A144: 37 | H144: 0 | K144: 0 | L144: 0 | M144: 0 | N144: 0 | O144: 0 | P144: 0 | Q144: 0 | R144: 0 | S144: 0 | T144: 0
A145: 38 | H145: 0 | K145: 0 | L145: 0 | M145: 0 | N145: 0 | O145: 0 | P145: 0 | Q145: 0 | R145: 0 | S145: 0 | T145: 0
A146: 39 | H146: 0 | K146: 0 | L146: 0 | M146: 0 | N146: 0 | O146: 0 | P146: 0 | Q146: 0 | R146: 0 | S146: 0 | T146: 0
A147: 40 | H147: 0 | K147: 0 | L147: 0 | M147: 0 | N147: 0 | O147: 0 | P147: 0 | Q147: 0 | R147: 0 | S147: 0 | T147: 0
B148: Subtotal - Budget Unit 3 | C148: =SUM(C108:C147) -> 0 | D148: 0 | E148: 0 | F148: 0 | G148: 0 | H148: 0 | I148: =IF(H148<>0,"ERROR: Total must equal 0!","") ->  | K148: =SUM(K108:K147) -> 0 | L148: =SUM(L108:L147) -> 0 | M148: 0 | N148: 0 | O148: 0 | P148: 0 | Q148: 0 | R148: 0 | S148: 0 | T148: 0
B150: Make sure the reclassifications match with worksheet A column 5 through 8 and the reclassification subtotal is ALWAYS equal to $0.
B152: LGA Name: | C152: =Info!C42 -> ABC County | F152: LGA NPI: | G152: =Info!F42 -> 1200XXXX
B153: Reporting Period: | C153: =Info!C43 -> July 1, 2015 to June 30, 2016
B155: Description | C155: Salaries | D155: Benefits | E155: Other Expense by Employee | F155: Other Expense by Program | G155: Other | H155: Subtotal | I155: Explanation of Reclassification | K155: TCM | N155: Non TCM | Q155: General & Admin | T155: Indirect
B156: 1 | C156: 2 | D156: 3 | E156: 4 | F156: 5 | G156: 6 | H156: 7 | I156: 8 | K156: A-col.5 | L156: A-col.6 | M156: A-col.7 | N156: A-col.5 | O156: A-col.6 | P156: A-col.7 | Q156: A-col.5 | R156: A-col.6 | S156: A-col.7 | T156: A-col.8
B157: Budget Unit 4
A158: 1 | H158: =SUM(C158:G158) -> 0 | K158: =IF(LEFT(B158,3)="TCM", C158+D158, 0) -> 0 | L158: =IF(LEFT(B158,3)="TCM", E158, 0) -> 0 | M158: =IF(LEFT(B158,3)="TCM", F158, 0) -> 0 | N158: =IF(LEFT(B158,3)="Non", C158+D158, 0) -> 0 | O158: =IF(LEFT(B158,3)="Non", E158, 0) -> 0 | P158: =IF(LEFT(B158,3)="Non", F158, 0) -> 0 | Q158: =IF(LEFT(B158,3)="Gen", C158+D158, 0) -> 0 | R158: =IF(LEFT(B158,3)="Gen", E158, 0) -> 0 | S158: =IF(LEFT(B158,3)="Gen", F158, 0) -> 0 | T158: =IF(LEFT(B158,3)="Ind", G158, 0) -> 0
A159: 2 | H159: 0 | K159: =IF(LEFT(B159,3)="TCM", C159+D159, 0) -> 0 | L159: =IF(LEFT(B159,3)="TCM", E159, 0) -> 0 | M159: =IF(LEFT(B159,3)="TCM", F159, 0) -> 0 | N159: =IF(LEFT(B159,3)="Non", C159+D159, 0) -> 0 | O159: =IF(LEFT(B159,3)="Non", E159, 0) -> 0 | P159: =IF(LEFT(B159,3)="Non", F159, 0) -> 0 | Q159: =IF(LEFT(B159,3)="Gen", C159+D159, 0) -> 0 | R159: =IF(LEFT(B159,3)="Gen", E159, 0) -> 0 | S159: =IF(LEFT(B159,3)="Gen", F159, 0) -> 0 | T159: =IF(LEFT(B159,3)="Ind", G159, 0) -> 0
A160: 3 | H160: 0 | K160: 0 | L160: 0 | M160: 0 | N160: 0 | O160: 0 | P160: 0 | Q160: 0 | R160: 0 | S160: 0 | T160: 0
A161: 4 | H161: 0 | K161: 0 | L161: 0 | M161: 0 | N161: 0 | O161: 0 | P161: 0 | Q161: 0 | R161: 0 | S161: 0 | T161: 0
A162: 5 | H162: 0 | K162: 0 | L162: 0 | M162: 0 | N162: 0 | O162: 0 | P162: 0 | Q162: 0 | R162: 0 | S162: 0 | T162: 0
A163: 6 | H163: 0 | K163: 0 | L163: 0 | M163: 0 | N163: 0 | O163: 0 | P163: 0 | Q163: 0 | R163: 0 | S163: 0 | T163: 0
A164: 7 | H164: 0 | K164: 0 | L164: 0 | M164: 0 | N164: 0 | O164: 0 | P164: 0 | Q164: 0 | R164: 0 | S164: 0 | T164: 0
A165: 8 | H165: 0 | K165: 0 | L165: 0 | M165: 0 | N165: 0 | O165: 0 | P165: 0 | Q165: 0 | R165: 0 | S165: 0 | T165: 0
A166: 9 | H166: 0 | K166: 0 | L166: 0 | M166: 0 | N166: 0 | O166: 0 | P166: 0 | Q166: 0 | R166: 0 | S166: 0 | T166: 0
A167: 10 | H167: 0 | K167: 0 | L167: 0 | M167: 0 | N167: 0 | O167: 0 | P167: 0 | Q167: 0 | R167: 0 | S167: 0 | T167: 0
A168: 11 | H168: 0 | K168: 0 | L168: 0 | M168: 0 | N168: 0 | O168: 0 | P168: 0 | Q168: 0 | R168: 0 | S168: 0 | T168: 0
A169: 12 | H169: 0 | K169: 0 | L169: 0 | M169: 0 | N169: 0 | O169: 0 | P169: 0 | Q169: 0 | R169: 0 | S169: 0 | T169: 0
A170: 13 | H170: 0 | K170: 0 | L170: 0 | M170: 0 | N170: 0 | O170: 0 | P170: 0 | Q170: 0 | R170: 0 | S170: 0 | T170: 0
A171: 14 | H171: 0 | K171: 0 | L171: 0 | M171: 0 | N171: 0 | O171: 0 | P171: 0 | Q171: 0 | R171: 0 | S171: 0 | T171: 0
A172: 15 | H172: 0 | K172: 0 | L172: 0 | M172: 0 | N172: 0 | O172: 0 | P172: 0 | Q172: 0 | R172: 0 | S172: 0 | T172: 0
A173: 16 | H173: 0 | K173: 0 | L173: 0 | M173: 0 | N173: 0 | O173: 0 | P173: 0 | Q173: 0 | R173: 0 | S173: 0 | T173: 0
A174: 17 | H174: 0 | K174: 0 | L174: 0 | M174: 0 | N174: 0 | O174: 0 | P174: 0 | Q174: 0 | R174: 0 | S174: 0 | T174: 0
A175: 18 | H175: 0 | K175: 0 | L175: 0 | M175: 0 | N175: 0 | O175: 0 | P175: 0 | Q175: 0 | R175: 0 | S175: 0 | T175: 0
A176: 19 | H176: 0 | K176: 0 | L176: 0 | M176: 0 | N176: 0 | O176: 0 | P176: 0 | Q176: 0 | R176: 0 | S176: 0 | T176: 0
A177: 20 | H177: 0 | K177: 0 | L177: 0 | M177: 0 | N177: 0 | O177: 0 | P177: 0 | Q177: 0 | R177: 0 | S177: 0 | T177: 0
A178: 21 | H178: 0 | K178: 0 | L178: 0 | M178: 0 | N178: 0 | O178: 0 | P178: 0 | Q178: 0 | R178: 0 | S178: 0 | T178: 0
A179: 22 | H179: 0 | K179: 0 | L179: 0 | M179: 0 | N179: 0 | O179: 0 | P179: 0 | Q179: 0 | R179: 0 | S179: 0 | T179: 0
A180: 23 | H180: 0 | K180: 0 | L180: 0 | M180: 0 | N180: 0 | O180: 0 | P180: 0 | Q180: 0 | R180: 0 | S180: 0 | T180: 0
A181: 24 | H181: 0 | K181: 0 | L181: 0 | M181: 0 | N181: 0 | O181: 0 | P181: 0 | Q181: 0 | R181: 0 | S181: 0 | T181: 0
A182: 25 | H182: 0 | K182: 0 | L182: 0 | M182: 0 | N182: 0 | O182: 0 | P182: 0 | Q182: 0 | R182: 0 | S182: 0 | T182: 0
A183: 26 | H183: 0 | K183: 0 | L183: 0 | M183: 0 | N183: 0 | O183: 0 | P183: 0 | Q183: 0 | R183: 0 | S183: 0 | T183: 0
A184: 27 | H184: 0 | K184: 0 | L184: 0 | M184: 0 | N184: 0 | O184: 0 | P184: 0 | Q184: 0 | R184: 0 | S184: 0 | T184: 0
A185: 28 | H185: 0 | K185: 0 | L185: 0 | M185: 0 | N185: 0 | O185: 0 | P185: 0 | Q185: 0 | R185: 0 | S185: 0 | T185: 0
A186: 29 | H186: 0 | K186: 0 | L186: 0 | M186: 0 | N186: 0 | O186: 0 | P186: 0 | Q186: 0 | R186: 0 | S186: 0 | T186: 0
A187: 30 | H187: 0 | K187: 0 | L187: 0 | M187: 0 | N187: 0 | O187: 0 | P187: 0 | Q187: 0 | R187: 0 | S187: 0 | T187: 0
A188: 31 | H188: 0 | K188: 0 | L188: 0 | M188: 0 | N188: 0 | O188: 0 | P188: 0 | Q188: 0 | R188: 0 | S188: 0 | T188: 0
A189: 32 | H189: 0 | K189: 0 | L189: 0 | M189: 0 | N189: 0 | O189: 0 | P189: 0 | Q189: 0 | R189: 0 | S189: 0 | T189: 0
A190: 33 | H190: 0 | K190: 0 | L190: 0 | M190: 0 | N190: 0 | O190: 0 | P190: 0 | Q190: 0 | R190: 0 | S190: 0 | T190: 0
A191: 34 | H191: 0 | K191: 0 | L191: 0 | M191: 0 | N191: 0 | O191: 0 | P191: 0 | Q191: 0 | R191: 0 | S191: 0 | T191: 0
A192: 35 | H192: 0 | K192: 0 | L192: 0 | M192: 0 | N192: 0 | O192: 0 | P192: 0 | Q192: 0 | R192: 0 | S192: 0 | T192: 0
A193: 36 | H193: 0 | K193: 0 | L193: 0 | M193: 0 | N193: 0 | O193: 0 | P193: 0 | Q193: 0 | R193: 0 | S193: 0 | T193: 0
A194: 37 | H194: 0 | K194: 0 | L194: 0 | M194: 0 | N194: 0 | O194: 0 | P194: 0 | Q194: 0 | R194: 0 | S194: 0 | T194: 0
A195: 38 | H195: 0 | K195: 0 | L195: 0 | M195: 0 | N195: 0 | O195: 0 | P195: 0 | Q195: 0 | R195: 0 | S195: 0 | T195: 0
A196: 39 | H196: 0 | K196: 0 | L196: 0 | M196: 0 | N196: 0 | O196: 0 | P196: 0 | Q196: 0 | R196: 0 | S196: 0 | T196: 0
A197: 40 | H197: 0 | K197: 0 | L197: 0 | M197: 0 | N197: 0 | O197: 0 | P197: 0 | Q197: 0 | R197: 0 | S197: 0 | T197: 0
B198: Subtotal - Budget Unit 4 | C198: =SUM(C157:C197) -> 0 | D198: 0 | E198: 0 | F198: 0 | G198: 0 | H198: 0 | I198: =IF(H198<>0,"ERROR: Total must equal 0!","") ->  | K198: =SUM(K158:K197) -> 0 | L198: =SUM(L158:L197) -> 0 | M198: 0 | N198: 0 | O198: 0 | P198: 0 | Q198: 0 | R198: 0 | S198: 0 | T198: 0
B200: Make sure the reclassifications match with worksheet A column 5 through 8 and the reclassification subtotal is ALWAYS equal to $0.

Sheet Worksheet A-2
B2: LGA Name: | C2: =Info!C42 -> ABC County | F2: LGA NPI: | G2: =Info!F42 -> 1200XXXX
B3: Reporting Period: | C3: =Info!C43 -> July 1, 2015 to June 30, 2016
B5: Description | C5: Salaries | D5: Benefits | E5: Other Expense by Employee | F5: Other Expense by Program | G5: TCM Expense Outside the Budget Unit | H5: Other | I5: Subtotal | J5: Explanation of Adjustments | L5: TCM | P5: Non TCM | S5: General & Admin | V5: Indirect
B6: 1 | C6: 2 | D6: 3 | E6: 4 | F6: 5 | G6: 6 | H6: 7 | I6: 8 | J6: 9 | L6: A-col.10 | M6: A-col.11 | N6: A-col.12 | O6: A-col.13 | P6: A-col.10 | Q6: A-col.11 | R6: A-col.12 | S6: A-col.10 | T6: A-col.11 | U6: A-col.12 | V6: A-col.14
B7: Budget Unit 1
A8: 1 | I8: =SUM(C8:H8) -> 0 | L8: =IF(LEFT(B8,3)="TCM", C8+D8, 0) -> 0 | M8: =IF(LEFT(B8,3)="TCM", E8, 0) -> 0 | N8: =IF(LEFT(B8,3)="TCM", F8, 0) -> 0 | O8: =IF(LEFT(B8,3)="TCM", G8, 0) -> 0 | P8: =IF(LEFT(B8,3)="Non", C8+D8, 0) -> 0 | Q8: =IF(LEFT(B8,3)="Non", E8, 0) -> 0 | R8: =IF(LEFT(B8,3)="Non", F8, 0) -> 0 | S8: =IF(LEFT(B8,3)="Gen", C8+D8, 0) -> 0 | T8: =IF(LEFT(B8,3)="Gen", E8, 0) -> 0 | U8: =IF(LEFT(B8,3)="Gen", F8, 0) -> 0 | V8: =IF(LEFT(B8,3)="Ind", H8, 0) -> 0
A9: 2 | I9: =SUM(C9:H9) -> 0 | L9: =IF(LEFT(B9,3)="TCM", C9+D9, 0) -> 0 | M9: =IF(LEFT(B9,3)="TCM", E9, 0) -> 0 | N9: =IF(LEFT(B9,3)="TCM", F9, 0) -> 0 | O9: =IF(LEFT(B9,3)="TCM", G9, 0) -> 0 | P9: =IF(LEFT(B9,3)="Non", C9+D9, 0) -> 0 | Q9: =IF(LEFT(B9,3)="Non", E9, 0) -> 0 | R9: =IF(LEFT(B9,3)="Non", F9, 0) -> 0 | S9: =IF(LEFT(B9,3)="Gen", C9+D9, 0) -> 0 | T9: =IF(LEFT(B9,3)="Gen", E9, 0) -> 0 | U9: =IF(LEFT(B9,3)="Gen", F9, 0) -> 0 | V9: =IF(LEFT(B9,3)="Ind", H9, 0) -> 0
A10: 3 | I10: 0 | L10: 0 | M10: 0 | N10: 0 | O10: 0 | P10: 0 | Q10: 0 | R10: 0 | S10: 0 | T10: 0 | U10: 0 | V10: 0
A11: 4 | I11: 0 | L11: 0 | M11: 0 | N11: 0 | O11: 0 | P11: 0 | Q11: 0 | R11: 0 | S11: 0 | T11: 0 | U11: 0 | V11: 0
A12: 5 | I12: 0 | L12: 0 | M12: 0 | N12: 0 | O12: 0 | P12: 0 | Q12: 0 | R12: 0 | S12: 0 | T12: 0 | U12: 0 | V12: 0
A13: 6 | I13: 0 | L13: 0 | M13: 0 | N13: 0 | O13: 0 | P13: 0 | Q13: 0 | R13: 0 | S13: 0 | T13: 0 | U13: 0 | V13: 0
A14: 7 | I14: 0 | L14: 0 | M14: 0 | N14: 0 | O14: 0 | P14: 0 | Q14: 0 | R14: 0 | S14: 0 | T14: 0 | U14: 0 | V14: 0
A15: 8 | I15: 0 | L15: 0 | M15: 0 | N15: 0 | O15: 0 | P15: 0 | Q15: 0 | R15: 0 | S15: 0 | T15: 0 | U15: 0 | V15: 0
A16: 9 | I16: 0 | L16: 0 | M16: 0 | N16: 0 | O16: 0 | P16: 0 | Q16: 0 | R16: 0 | S16: 0 | T16: 0 | U16: 0 | V16: 0
A17: 10 | I17: 0 | L17: 0 | M17: 0 | N17: 0 | O17: 0 | P17: 0 | Q17: 0 | R17: 0 | S17: 0 | T17: 0 | U17: 0 | V17: 0
A18: 11 | I18: 0 | L18: 0 | M18: 0 | N18: 0 | O18: 0 | P18: 0 | Q18: 0 | R18: 0 | S18: 0 | T18: 0 | U18: 0 | V18: 0
A19: 12 | I19: 0 | L19: 0 | M19: 0 | N19: 0 | O19: 0 | P19: 0 | Q19: 0 | R19: 0 | S19: 0 | T19: 0 | U19: 0 | V19: 0
A20: 13 | I20: 0 | L20: 0 | M20: 0 | N20: 0 | O20: 0 | P20: 0 | Q20: 0 | R20: 0 | S20: 0 | T20: 0 | U20: 0 | V20: 0
A21: 14 | I21: 0 | L21: 0 | M21: 0 | N21: 0 | O21: 0 | P21: 0 | Q21: 0 | R21: 0 | S21: 0 | T21: 0 | U21: 0 | V21: 0
A22: 15 | I22: 0 | L22: 0 | M22: 0 | N22: 0 | O22: 0 | P22: 0 | Q22: 0 | R22: 0 | S22: 0 | T22: 0 | U22: 0 | V22: 0
A23: 16 | I23: 0 | L23: 0 | M23: 0 | N23: 0 | O23: 0 | P23: 0 | Q23: 0 | R23: 0 | S23: 0 | T23: 0 | U23: 0 | V23: 0
A24: 17 | I24: 0 | L24: 0 | M24: 0 | N24: 0 | O24: 0 | P24: 0 | Q24: 0 | R24: 0 | S24: 0 | T24: 0 | U24: 0 | V24: 0
A25: 18 | I25: 0 | L25: 0 | M25: 0 | N25: 0 | O25: 0 | P25: 0 | Q25: 0 | R25: 0 | S25: 0 | T25: 0 | U25: 0 | V25: 0
A26: 19 | I26: 0 | L26: 0 | M26: 0 | N26: 0 | O26: 0 | P26: 0 | Q26: 0 | R26: 0 | S26: 0 | T26: 0 | U26: 0 | V26: 0
A27: 20 | I27: 0 | L27: 0 | M27: 0 | N27: 0 | O27: 0 | P27: 0 | Q27: 0 | R27: 0 | S27: 0 | T27: 0 | U27: 0 | V27: 0
A28: 21 | I28: 0 | L28: 0 | M28: 0 | N28: 0 | O28: 0 | P28: 0 | Q28: 0 | R28: 0 | S28: 0 | T28: 0 | U28: 0 | V28: 0
A29: 22 | I29: 0 | L29: 0 | M29: 0 | N29: 0 | O29: 0 | P29: 0 | Q29: 0 | R29: 0 | S29: 0 | T29: 0 | U29: 0 | V29: 0
A30: 23 | I30: 0 | L30: 0 | M30: 0 | N30: 0 | O30: 0 | P30: 0 | Q30: 0 | R30: 0 | S30: 0 | T30: 0 | U30: 0 | V30: 0
A31: 24 | I31: 0 | L31: 0 | M31: 0 | N31: 0 | O31: 0 | P31: 0 | Q31: 0 | R31: 0 | S31: 0 | T31: 0 | U31: 0 | V31: 0
A32: 25 | I32: 0 | L32: 0 | M32: 0 | N32: 0 | O32: 0 | P32: 0 | Q32: 0 | R32: 0 | S32: 0 | T32: 0 | U32: 0 | V32: 0
A33: 26 | I33: 0 | L33: 0 | M33: 0 | N33: 0 | O33: 0 | P33: 0 | Q33: 0 | R33: 0 | S33: 0 | T33: 0 | U33: 0 | V33: 0
A34: 27 | I34: 0 | L34: 0 | M34: 0 | N34: 0 | O34: 0 | P34: 0 | Q34: 0 | R34: 0 | S34: 0 | T34: 0 | U34: 0 | V34: 0
A35: 28 | I35: 0 | L35: 0 | M35: 0 | N35: 0 | O35: 0 | P35: 0 | Q35: 0 | R35: 0 | S35: 0 | T35: 0 | U35: 0 | V35: 0
A36: 29 | I36: 0 | L36: 0 | M36: 0 | N36: 0 | O36: 0 | P36: 0 | Q36: 0 | R36: 0 | S36: 0 | T36: 0 | U36: 0 | V36: 0
A37: 30 | I37: 0 | L37: 0 | M37: 0 | N37: 0 | O37: 0 | P37: 0 | Q37: 0 | R37: 0 | S37: 0 | T37: 0 | U37: 0 | V37: 0
A38: 31 | I38: 0 | L38: 0 | M38: 0 | N38: 0 | O38: 0 | P38: 0 | Q38: 0 | R38: 0 | S38: 0 | T38: 0 | U38: 0 | V38: 0
A39: 32 | I39: 0 | L39: 0 | M39: 0 | N39: 0 | O39: 0 | P39: 0 | Q39: 0 | R39: 0 | S39: 0 | T39: 0 | U39: 0 | V39: 0
A40: 33 | I40: 0 | L40: 0 | M40: 0 | N40: 0 | O40: 0 | P40: 0 | Q40: 0 | R40: 0 | S40: 0 | T40: 0 | U40: 0 | V40: 0
A41: 34 | I41: 0 | L41: 0 | M41: 0 | N41: 0 | O41: 0 | P41: 0 | Q41: 0 | R41: 0 | S41: 0 | T41: 0 | U41: 0 | V41: 0
A42: 35 | I42: 0 | L42: 0 | M42: 0 | N42: 0 | O42: 0 | P42: 0 | Q42: 0 | R42: 0 | S42: 0 | T42: 0 | U42: 0 | V42: 0
A43: 36 | I43: 0 | L43: 0 | M43: 0 | N43: 0 | O43: 0 | P43: 0 | Q43: 0 | R43: 0 | S43: 0 | T43: 0 | U43: 0 | V43: 0
A44: 37 | I44: 0 | L44: 0 | M44: 0 | N44: 0 | O44: 0 | P44: 0 | Q44: 0 | R44: 0 | S44: 0 | T44: 0 | U44: 0 | V44: 0
A45: 38 | I45: 0 | L45: 0 | M45: 0 | N45: 0 | O45: 0 | P45: 0 | Q45: 0 | R45: 0 | S45: 0 | T45: 0 | U45: 0 | V45: 0
A46: 39 | I46: 0 | L46: 0 | M46: 0 | N46: 0 | O46: 0 | P46: 0 | Q46: 0 | R46: 0 | S46: 0 | T46: 0 | U46: 0 | V46: 0
A47: 40 | I47: 0 | L47: 0 | M47: 0 | N47: 0 | O47: 0 | P47: 0 | Q47: 0 | R47: 0 | S47: 0 | T47: 0 | U47: 0 | V47: 0
C48: =SUM(C8:C47) -> 0 | D48: =SUM(D8:D47) -> 0 | E48: 0 | F48: 0 | G48: 0 | H48: 0 | I48: 0 | L48: =SUM(L8:L47) -> 0 | M48: =SUM(M8:M47) -> 0 | N48: 0 | O48: 0 | P48: 0 | Q48: 0 | R48: 0 | S48: 0 | T48: 0 | U48: 0 | V48: 0
I49: =IF(I48='Worksheet A'!Q15,"","ERROR: Total Adjustments do not match W/S A") -> 
B50: LGA Name: | C50: =Info!C42 -> ABC County | F50: LGA NPI: | G50: =Info!F42 -> 1200XXXX
B51: Reporting Period: | C51: =Info!C43 -> July 1, 2015 to June 30, 2016
B53: Description | C53: Salaries | D53: Benefits | E53: Other Expense by Employee | F53: Other Expense by Program | G53: Expense Outside the Budget Unit | H53: Other | I53: Subtotal | J53: Explanation of Adjustments | L53: TCM | P53: Non TCM | S53: General & Admin | V53: Indirect
B54: 1 | C54: 2 | D54: 3 | E54: 4 | F54: 5 | G54: 6 | H54: 7 | I54: 8 | J54: 9 | L54: A-col.10 | M54: A-col.11 | N54: A-col.12 | O54: A-col.13 | P54: A-col.10 | Q54: A-col.11 | R54: A-col.12 | S54: A-col.10 | T54: A-col.11 | U54: A-col.12 | V54: A-col.14
B55: Budget Unit 2
A56: 1 | I56: =SUM(C56:H56) -> 0 | L56: =IF(LEFT(B56,3)="TCM", C56+D56, 0) -> 0 | M56: =IF(LEFT(B56,3)="TCM", E56, 0) -> 0 | N56: =IF(LEFT(B56,3)="TCM", F56, 0) -> 0 | O56: =IF(LEFT(B56,3)="TCM", G56, 0) -> 0 | P56: =IF(LEFT(B56,3)="Non", C56+D56, 0) -> 0 | Q56: =IF(LEFT(B56,3)="Non", E56, 0) -> 0 | R56: =IF(LEFT(B56,3)="Non", F56, 0) -> 0 | S56: =IF(LEFT(B56,3)="Gen", C56+D56, 0) -> 0 | T56: =IF(LEFT(B56,3)="Gen", E56, 0) -> 0 | U56: =IF(LEFT(B56,3)="Gen", F56, 0) -> 0 | V56: =IF(LEFT(B56,3)="Ind", H56, 0) -> 0
A57: 2 | I57: =SUM(C57:H57) -> 0 | L57: =IF(LEFT(B57,3)="TCM", C57+D57, 0) -> 0 | M57: =IF(LEFT(B57,3)="TCM", E57, 0) -> 0 | N57: =IF(LEFT(B57,3)="TCM", F57, 0) -> 0 | O57: =IF(LEFT(B57,3)="TCM", G57, 0) -> 0 | P57: =IF(LEFT(B57,3)="Non", C57+D57, 0) -> 0 | Q57: =IF(LEFT(B57,3)="Non", E57, 0) -> 0 | R57: =IF(LEFT(B57,3)="Non", F57, 0) -> 0 | S57: =IF(LEFT(B57,3)="Gen", C57+D57, 0) -> 0 | T57: =IF(LEFT(B57,3)="Gen", E57, 0) -> 0 | U57: =IF(LEFT(B57,3)="Gen", F57, 0) -> 0 | V57: =IF(LEFT(B57,3)="Ind", H57, 0) -> 0
A58: 3 | I58: 0 | L58: 0 | M58: 0 | N58: 0 | O58: 0 | P58: 0 | Q58: 0 | R58: 0 | S58: 0 | T58: 0 | U58: 0 | V58: 0
A59: 4 | I59: 0 | L59: 0 | M59: 0 | N59: 0 | O59: 0 | P59: 0 | Q59: 0 | R59: 0 | S59: 0 | T59: 0 | U59: 0 | V59: 0
A60: 5 | I60: 0 | L60: 0 | M60: 0 | N60: 0 | O60: 0 | P60: 0 | Q60: 0 | R60: 0 | S60: 0 | T60: 0 | U60: 0 | V60: 0
A61: 6 | I61: 0 | L61: 0 | M61: 0 | N61: 0 | O61: 0 | P61: 0 | Q61: 0 | R61: 0 | S61: 0 | T61: 0 | U61: 0 | V61: 0
A62: 7 | I62: 0 | L62: 0 | M62: 0 | N62: 0 | O62: 0 | P62: 0 | Q62: 0 | R62: 0 | S62: 0 | T62: 0 | U62: 0 | V62: 0
A63: 8 | I63: 0 | L63: 0 | M63: 0 | N63: 0 | O63: 0 | P63: 0 | Q63: 0 | R63: 0 | S63: 0 | T63: 0 | U63: 0 | V63: 0
A64: 9 | I64: 0 | L64: 0 | M64: 0 | N64: 0 | O64: 0 | P64: 0 | Q64: 0 | R64: 0 | S64: 0 | T64: 0 | U64: 0 | V64: 0
A65: 10 | I65: 0 | L65: 0 | M65: 0 | N65: 0 | O65: 0 | P65: 0 | Q65: 0 | R65: 0 | S65: 0 | T65: 0 | U65: 0 | V65: 0
A66: 11 | I66: 0 | L66: 0 | M66: 0 | N66: 0 | O66: 0 | P66: 0 | Q66: 0 | R66: 0 | S66: 0 | T66: 0 | U66: 0 | V66: 0
A67: 12 | I67: 0 | L67: 0 | M67: 0 | N67: 0 | O67: 0 | P67: 0 | Q67: 0 | R67: 0 | S67: 0 | T67: 0 | U67: 0 | V67: 0
A68: 13 | I68: 0 | L68: 0 | M68: 0 | N68: 0 | O68: 0 | P68: 0 | Q68: 0 | R68: 0 | S68: 0 | T68: 0 | U68: 0 | V68: 0
A69: 14 | I69: 0 | L69: 0 | M69: 0 | N69: 0 | O69: 0 | P69: 0 | Q69: 0 | R69: 0 | S69: 0 | T69: 0 | U69: 0 | V69: 0
A70: 15 | I70: 0 | L70: 0 | M70: 0 | N70: 0 | O70: 0 | P70: 0 | Q70: 0 | R70: 0 | S70: 0 | T70: 0 | U70: 0 | V70: 0
A71: 16 | I71: 0 | L71: 0 | M71: 0 | N71: 0 | O71: 0 | P71: 0 | Q71: 0 | R71: 0 | S71: 0 | T71: 0 | U71: 0 | V71: 0
A72: 17 | I72: 0 | L72: 0 | M72: 0 | N72: 0 | O72: 0 | P72: 0 | Q72: 0 | R72: 0 | S72: 0 | T72: 0 | U72: 0 | V72: 0
A73: 18 | I73: 0 | L73: 0 | M73: 0 | N73: 0 | O73: 0 | P73: 0 | Q73: 0 | R73: 0 | S73: 0 | T73: 0 | U73: 0 | V73: 0
A74: 19 | I74: 0 | L74: 0 | M74: 0 | N74: 0 | O74: 0 | P74: 0 | Q74: 0 | R74: 0 | S74: 0 | T74: 0 | U74: 0 | V74: 0
A75: 20 | I75: 0 | L75: 0 | M75: 0 | N75: 0 | O75: 0 | P75: 0 | Q75: 0 | R75: 0 | S75: 0 | T75: 0 | U75: 0 | V75: 0
A76: 21 | I76: 0 | L76: 0 | M76: 0 | N76: 0 | O76: 0 | P76: 0 | Q76: 0 | R76: 0 | S76: 0 | T76: 0 | U76: 0 | V76: 0
A77: 22 | I77: 0 | L77: 0 | M77: 0 | N77: 0 | O77: 0 | P77: 0 | Q77: 0 | R77: 0 | S77: 0 | T77: 0 | U77: 0 | V77: 0
A78: 23 | I78: 0 | L78: 0 | M78: 0 | N78: 0 | O78: 0 | P78: 0 | Q78: 0 | R78: 0 | S78: 0 | T78: 0 | U78: 0 | V78: 0
A79: 24 | I79: 0 | L79: 0 | M79: 0 | N79: 0 | O79: 0 | P79: 0 | Q79: 0 | R79: 0 | S79: 0 | T79: 0 | U79: 0 | V79: 0
A80: 25 | I80: 0 | L80: 0 | M80: 0 | N80: 0 | O80: 0 | P80: 0 | Q80: 0 | R80: 0 | S80: 0 | T80: 0 | U80: 0 | V80: 0
A81: 26 | I81: 0 | L81: 0 | M81: 0 | N81: 0 | O81: 0 | P81: 0 | Q81: 0 | R81: 0 | S81: 0 | T81: 0 | U81: 0 | V81: 0
A82: 27 | I82: 0 | L82: 0 | M82: 0 | N82: 0 | O82: 0 | P82: 0 | Q82: 0 | R82: 0 | S82: 0 | T82: 0 | U82: 0 | V82: 0
A83: 28 | I83: 0 | L83: 0 | M83: 0 | N83: 0 | O83: 0 | P83: 0 | Q83: 0 | R83: 0 | S83: 0 | T83: 0 | U83: 0 | V83: 0
A84: 29 | I84: 0 | L84: 0 | M84: 0 | N84: 0 | O84: 0 | P84: 0 | Q84: 0 | R84: 0 | S84: 0 | T84: 0 | U84: 0 | V84: 0
A85: 30 | I85: 0 | L85: 0 | M85: 0 | N85: 0 | O85: 0 | P85: 0 | Q85: 0 | R85: 0 | S85: 0 | T85: 0 | U85: 0 | V85: 0
A86: 31 | I86: 0 | L86: 0 | M86: 0 | N86: 0 | O86: 0 | P86: 0 | Q86: 0 | R86: 0 | S86: 0 | T86: 0 | U86: 0 | V86: 0
A87: 32 | I87: 0 | L87: 0 | M87: 0 | N87: 0 | O87: 0 | P87: 0 | Q87: 0 | R87: 0 | S87: 0 | T87: 0 | U87: 0 | V87: 0
A88: 33 | I88: 0 | L88: 0 | M88: 0 | N88: 0 | O88: 0 | P88: 0 | Q88: 0 | R88: 0 | S88: 0 | T88: 0 | U88: 0 | V88: 0
A89: 34 | I89: 0 | L89: 0 | M89: 0 | N89: 0 | O89: 0 | P89: 0 | Q89: 0 | R89: 0 | S89: 0 | T89: 0 | U89: 0 | V89: 0
A90: 35 | I90: 0 | L90: 0 | M90: 0 | N90: 0 | O90: 0 | P90: 0 | Q90: 0 | R90: 0 | S90: 0 | T90: 0 | U90: 0 | V90: 0
A91: 36 | I91: 0 | L91: 0 | M91: 0 | N91: 0 | O91: 0 | P91: 0 | Q91: 0 | R91: 0 | S91: 0 | T91: 0 | U91: 0 | V91: 0
A92: 37 | I92: 0 | L92: 0 | M92: 0 | N92: 0 | O92: 0 | P92: 0 | Q92: 0 | R92: 0 | S92: 0 | T92: 0 | U92: 0 | V92: 0
A93: 38 | I93: 0 | L93: 0 | M93: 0 | N93: 0 | O93: 0 | P93: 0 | Q93: 0 | R93: 0 | S93: 0 | T93: 0 | U93: 0 | V93: 0
A94: 39 | I94: 0 | L94: 0 | M94: 0 | N94: 0 | O94: 0 | P94: 0 | Q94: 0 | R94: 0 | S94: 0 | T94: 0 | U94: 0 | V94: 0
A95: 40 | I95: 0 | L95: 0 | M95: 0 | N95: 0 | O95: 0 | P95: 0 | Q95: 0 | R95: 0 | S95: 0 | T95: 0 | U95: 0 | V95: 0
B96: Subtotal - Budget Unit 2 | C96: =SUM(C56:C95) -> 0 | D96: 0 | E96: 0 | F96: 0 | G96: 0 | H96: 0 | I96: 0 | L96: =SUM(L56:L95) -> 0 | M96: =SUM(M56:M95) -> 0 | N96: 0 | O96: 0 | P96: 0 | Q96: 0 | R96: 0 | S96: 0 | T96: 0 | U96: 0 | V96: 0
I97: =IF(I96='Worksheet A'!Q22,"","ERROR: Total Adjustments do not match W/S A") -> 
B98: LGA Name: | C98: =Info!C42 -> ABC County | F98: LGA NPI: | G98: =Info!F42 -> 1200XXXX
B99: Reporting Period: | C99: =Info!C43 -> July 1, 2015 to June 30, 2016
B101: Description | C101: Salaries | D101: Benefits | E101: Other Expense by Employee | F101: Other Expense by Program | G101: Expense Outside the Budget Unit | H101: Other | I101: Subtotal | J101: Explanation of Adjustments | L101: TCM | P101: Non TCM | S101: General & Admin | V101: Indirect
B102: 1 | C102: 2 | D102: 3 | E102: 4 | F102: 5 | G102: 6 | H102: 7 | I102: 8 | J102: 9 | L102: A-col.10 | M102: A-col.11 | N102: A-col.12 | O102: A-col.13 | P102: A-col.10 | Q102: A-col.11 | R102: A-col.12 | S102: A-col.10 | T102: A-col.11 | U102: A-col.12 | V102: A-col.14
B103: Budget Unit 3
A104: 1 | I104: =SUM(C104:H104) -> 0 | L104: =IF(LEFT(B104,3)="TCM", C104+D104, 0) -> 0 | M104: =IF(LEFT(B104,3)="TCM", E104, 0) -> 0 | N104: =IF(LEFT(B104,3)="TCM", F104, 0) -> 0 | O104: =IF(LEFT(B104,3)="TCM", G104, 0) -> 0 | P104: =IF(LEFT(B104,3)="Non", C104+D104, 0) -> 0 | Q104: =IF(LEFT(B104,3)="Non", E104, 0) -> 0 | R104: =IF(LEFT(B104,3)="Non", F104, 0) -> 0 | S104: =IF(LEFT(B104,3)="Gen", C104+D104, 0) -> 0 | T104: =IF(LEFT(B104,3)="Gen", E104, 0) -> 0 | U104: =IF(LEFT(B104,3)="Gen", F104, 0) -> 0 | V104: =IF(LEFT(B104,3)="Ind", H104, 0) -> 0
A105: 2 | I105: =SUM(C105:H105) -> 0 | L105: =IF(LEFT(B105,3)="TCM", C105+D105, 0) -> 0 | M105: =IF(LEFT(B105,3)="TCM", E105, 0) -> 0 | N105: =IF(LEFT(B105,3)="TCM", F105, 0) -> 0 | O105: =IF(LEFT(B105,3)="TCM", G105, 0) -> 0 | P105: =IF(LEFT(B105,3)="Non", C105+D105, 0) -> 0 | Q105: =IF(LEFT(B105,3)="Non", E105, 0) -> 0 | R105: =IF(LEFT(B105,3)="Non", F105, 0) -> 0 | S105: =IF(LEFT(B105,3)="Gen", C105+D105, 0) -> 0 | T105: =IF(LEFT(B105,3)="Gen", E105, 0) -> 0 | U105: =IF(LEFT(B105,3)="Gen", F105, 0) -> 0 | V105: =IF(LEFT(B105,3)="Ind", H105, 0) -> 0
A106: 3 | I106: 0 | L106: 0 | M106: 0 | N106: 0 | O106: 0 | P106: 0 | Q106: 0 | R106: 0 | S106: 0 | T106: 0 | U106: 0 | V106: 0
A107: 4 | I107: 0 | L107: 0 | M107: 0 | N107: 0 | O107: 0 | P107: 0 | Q107: 0 | R107: 0 | S107: 0 | T107: 0 | U107: 0 | V107: 0
A108: 5 | I108: 0 | L108: 0 | M108: 0 | N108: 0 | O108: 0 | P108: 0 | Q108: 0 | R108: 0 | S108: 0 | T108: 0 | U108: 0 | V108: 0
A109: 6 | I109: 0 | L109: 0 | M109: 0 | N109: 0 | O109: 0 | P109: 0 | Q109: 0 | R109: 0 | S109: 0 | T109: 0 | U109: 0 | V109: 0
A110: 7 | I110: 0 | L110: 0 | M110: 0 | N110: 0 | O110: 0 | P110: 0 | Q110: 0 | R110: 0 | S110: 0 | T110: 0 | U110: 0 | V110: 0
A111: 8 | I111: 0 | L111: 0 | M111: 0 | N111: 0 | O111: 0 | P111: 0 | Q111: 0 | R111: 0 | S111: 0 | T111: 0 | U111: 0 | V111: 0
A112: 9 | I112: 0 | L112: 0 | M112: 0 | N112: 0 | O112: 0 | P112: 0 | Q112: 0 | R112: 0 | S112: 0 | T112: 0 | U112: 0 | V112: 0
A113: 10 | I113: 0 | L113: 0 | M113: 0 | N113: 0 | O113: 0 | P113: 0 | Q113: 0 | R113: 0 | S113: 0 | T113: 0 | U113: 0 | V113: 0
A114: 11 | I114: 0 | L114: 0 | M114: 0 | N114: 0 | O114: 0 | P114: 0 | Q114: 0 | R114: 0 | S114: 0 | T114: 0 | U114: 0 | V114: 0
A115: 12 | I115: 0 | L115: 0 | M115: 0 | N115: 0 | O115: 0 | P115: 0 | Q115: 0 | R115: 0 | S115: 0 | T115: 0 | U115: 0 | V115: 0
A116: 13 | I116: 0 | L116: 0 | M116: 0 | N116: 0 | O116: 0 | P116: 0 | Q116: 0 | R116: 0 | S116: 0 | T116: 0 | U116: 0 | V116: 0
A117: 14 | I117: 0 | L117: 0 | M117: 0 | N117: 0 | O117: 0 | P117: 0 | Q117: 0 | R117: 0 | S117: 0 | T117: 0 | U117: 0 | V117: 0
A118: 15 | I118: 0 | L118: 0 | M118: 0 | N118: 0 | O118: 0 | P118: 0 | Q118: 0 | R118: 0 | S118: 0 | T118: 0 | U118: 0 | V118: 0
A119: 16 | I119: 0 | L119: 0 | M119: 0 | N119: 0 | O119: 0 | P119: 0 | Q119: 0 | R119: 0 | S119: 0 | T119: 0 | U119: 0 | V119: 0
A120: 17 | I120: 0 | L120: 0 | M120: 0 | N120: 0 | O120: 0 | P120: 0 | Q120: 0 | R120: 0 | S120: 0 | T120: 0 | U120: 0 | V120: 0
A121: 18 | I121: 0 | L121: 0 | M121: 0 | N121: 0 | O121: 0 | P121: 0 | Q121: 0 | R121: 0 | S121: 0 | T121: 0 | U121: 0 | V121: 0
A122: 19 | I122: 0 | L122: 0 | M122: 0 | N122: 0 | O122: 0 | P122: 0 | Q122: 0 | R122: 0 | S122: 0 | T122: 0 | U122: 0 | V122: 0
A123: 20 | I123: 0 | L123: 0 | M123: 0 | N123: 0 | O123: 0 | P123: 0 | Q123: 0 | R123: 0 | S123: 0 | T123: 0 | U123: 0 | V123: 0
A124: 21 | I124: 0 | L124: 0 | M124: 0 | N124: 0 | O124: 0 | P124: 0 | Q124: 0 | R124: 0 | S124: 0 | T124: 0 | U124: 0 | V124: 0
A125: 22 | I125: 0 | L125: 0 | M125: 0 | N125: 0 | O125: 0 | P125: 0 | Q125: 0 | R125: 0 | S125: 0 | T125: 0 | U125: 0 | V125: 0
A126: 23 | I126: 0 | L126: 0 | M126: 0 | N126: 0 | O126: 0 | P126: 0 | Q126: 0 | R126: 0 | S126: 0 | T126: 0 | U126: 0 | V126: 0
A127: 24 | I127: 0 | L127: 0 | M127: 0 | N127: 0 | O127: 0 | P127: 0 | Q127: 0 | R127: 0 | S127: 0 | T127: 0 | U127: 0 | V127: 0
A128: 25 | I128: 0 | L128: 0 | M128: 0 | N128: 0 | O128: 0 | P128: 0 | Q128: 0 | R128: 0 | S128: 0 | T128: 0 | U128: 0 | V128: 0
A129: 26 | I129: 0 | L129: 0 | M129: 0 | N129: 0 | O129: 0 | P129: 0 | Q129: 0 | R129: 0 | S129: 0 | T129: 0 | U129: 0 | V129: 0
A130: 27 | I130: 0 | L130: 0 | M130: 0 | N130: 0 | O130: 0 | P130: 0 | Q130: 0 | R130: 0 | S130: 0 | T130: 0 | U130: 0 | V130: 0
A131: 28 | I131: 0 | L131: 0 | M131: 0 | N131: 0 | O131: 0 | P131: 0 | Q131: 0 | R131: 0 | S131: 0 | T131: 0 | U131: 0 | V131: 0
A132: 29 | I132: 0 | L132: 0 | M132: 0 | N132: 0 | O132: 0 | P132: 0 | Q132: 0 | R132: 0 | S132: 0 | T132: 0 | U132: 0 | V132: 0
A133: 30 | I133: 0 | L133: 0 | M133: 0 | N133: 0 | O133: 0 | P133: 0 | Q133: 0 | R133: 0 | S133: 0 | T133: 0 | U133: 0 | V133: 0
A134: 31 | I134: 0 | L134: 0 | M134: 0 | N134: 0 | O134: 0 | P134: 0 | Q134: 0 | R134: 0 | S134: 0 | T134: 0 | U134: 0 | V134: 0
A135: 32 | I135: 0 | L135: 0 | M135: 0 | N135: 0 | O135: 0 | P135: 0 | Q135: 0 | R135: 0 | S135: 0 | T135: 0 | U135: 0 | V135: 0
A136: 33 | I136: 0 | L136: 0 | M136: 0 | N136: 0 | O136: 0 | P136: 0 | Q136: 0 | R136: 0 | S136: 0 | T136: 0 | U136: 0 | V136: 0
A137: 34 | I137: 0 | L137: 0 | M137: 0 | N137: 0 | O137: 0 | P137: 0 | Q137: 0 | R137: 0 | S137: 0 | T137: 0 | U137: 0 | V137: 0
A138: 35 | I138: 0 | L138: 0 | M138: 0 | N138: 0 | O138: 0 | P138: 0 | Q138: 0 | R138: 0 | S138: 0 | T138: 0 | U138: 0 | V138: 0
A139: 36 | I139: 0 | L139: 0 | M139: 0 | N139: 0 | O139: 0 | P139: 0 | Q139: 0 | R139: 0 | S139: 0 | T139: 0 | U139: 0 | V139: 0
A140: 37 | I140: 0 | L140: 0 | M140: 0 | N140: 0 | O140: 0 | P140: 0 | Q140: 0 | R140: 0 | S140: 0 | T140: 0 | U140: 0 | V140: 0
A141: 38 | I141: 0 | L141: 0 | M141: 0 | N141: 0 | O141: 0 | P141: 0 | Q141: 0 | R141: 0 | S141: 0 | T141: 0 | U141: 0 | V141: 0
A142: 39 | I142: 0 | L142: 0 | M142: 0 | N142: 0 | O142: 0 | P142: 0 | Q142: 0 | R142: 0 | S142: 0 | T142: 0 | U142: 0 | V142: 0
A143: 40 | I143: 0 | L143: 0 | M143: 0 | N143: 0 | O143: 0 | P143: 0 | Q143: 0 | R143: 0 | S143: 0 | T143: 0 | U143: 0 | V143: 0
B144: Subtotal - Budget Unit 3 | C144: =SUM(C104:C143) -> 0 | D144: 0 | E144: 0 | F144: 0 | G144: 0 | H144: 0 | I144: 0 | L144: =SUM(L104:L143) -> 0 | M144: =SUM(M104:M143) -> 0 | N144: 0 | O144: 0 | P144: 0 | Q144: 0 | R144: 0 | S144: 0 | T144: 0 | U144: 0 | V144: 0
I145: =IF(I144='Worksheet A'!Q29,"","ERROR: Total Adjustments do not match W/S A") -> 
B146: LGA Name: | C146: =Info!C42 -> ABC County | F146: LGA NPI: | G146: =Info!F42 -> 1200XXXX
B147: Reporting Period: | C147: =Info!C43 -> July 1, 2015 to June 30, 2016
B149: Description | C149: Salaries | D149: Benefits | E149: Other Expense by Employee | F149: Other Expense by Program | G149: Expense Outside the Budget Unit | H149: Other | I149: Subtotal | J149: Explanation of Adjustments | L149: TCM | P149: Non TCM | S149: General & Admin | V149: Indirect
B150: 1 | C150: 2 | D150: 3 | E150: 4 | F150: 5 | G150: 6 | H150: 7 | I150: 8 | J150: 9 | L150: A-col.10 | M150: A-col.11 | N150: A-col.12 | O150: A-col.13 | P150: A-col.10 | Q150: A-col.11 | R150: A-col.12 | S150: A-col.10 | T150: A-col.11 | U150: A-col.12 | V150: A-col.14
B151: Budget Unit 4
A152: 1 | I152: =SUM(C152:H152) -> 0 | L152: =IF(LEFT(B152,3)="TCM", C152+D152, 0) -> 0 | M152: =IF(LEFT(B152,3)="TCM", E152, 0) -> 0 | N152: =IF(LEFT(B152,3)="TCM", F152, 0) -> 0 | O152: =IF(LEFT(B152,3)="TCM", G152, 0) -> 0 | P152: =IF(LEFT(B152,3)="Non", C152+D152, 0) -> 0 | Q152: =IF(LEFT(B152,3)="Non", E152, 0) -> 0 | R152: =IF(LEFT(B152,3)="Non", F152, 0) -> 0 | S152: =IF(LEFT(B152,3)="Gen", C152+D152, 0) -> 0 | T152: =IF(LEFT(B152,3)="Gen", E152, 0) -> 0 | U152: =IF(LEFT(B152,3)="Gen", F152, 0) -> 0 | V152: =IF(LEFT(B152,3)="Ind", H152, 0) -> 0
A153: 2 | I153: =SUM(C153:H153) -> 0 | L153: =IF(LEFT(B153,3)="TCM", C153+D153, 0) -> 0 | M153: =IF(LEFT(B153,3)="TCM", E153, 0) -> 0 | N153: =IF(LEFT(B153,3)="TCM", F153, 0) -> 0 | O153: =IF(LEFT(B153,3)="TCM", G153, 0) -> 0 | P153: =IF(LEFT(B153,3)="Non", C153+D153, 0) -> 0 | Q153: =IF(LEFT(B153,3)="Non", E153, 0) -> 0 | R153: =IF(LEFT(B153,3)="Non", F153, 0) -> 0 | S153: =IF(LEFT(B153,3)="Gen", C153+D153, 0) -> 0 | T153: =IF(LEFT(B153,3)="Gen", E153, 0) -> 0 | U153: =IF(LEFT(B153,3)="Gen", F153, 0) -> 0 | V153: =IF(LEFT(B153,3)="Ind", H153, 0) -> 0
A154: 3 | I154: 0 | L154: 0 | M154: 0 | N154: 0 | O154: 0 | P154: 0 | Q154: 0 | R154: 0 | S154: 0 | T154: 0 | U154: 0 | V154: 0
A155: 4 | I155: 0 | L155: 0 | M155: 0 | N155: 0 | O155: 0 | P155: 0 | Q155: 0 | R155: 0 | S155: 0 | T155: 0 | U155: 0 | V155: 0
A156: 5 | I156: 0 | L156: 0 | M156: 0 | N156: 0 | O156: 0 | P156: 0 | Q156: 0 | R156: 0 | S156: 0 | T156: 0 | U156: 0 | V156: 0
A157: 6 | I157: 0 | L157: 0 | M157: 0 | N157: 0 | O157: 0 | P157: 0 | Q157: 0 | R157: 0 | S157: 0 | T157: 0 | U157: 0 | V157: 0
A158: 7 | I158: 0 | L158: 0 | M158: 0 | N158: 0 | O158: 0 | P158: 0 | Q158: 0 | R158: 0 | S158: 0 | T158: 0 | U158: 0 | V158: 0
A159: 8 | I159: 0 | L159: 0 | M159: 0 | N159: 0 | O159: 0 | P159: 0 | Q159: 0 | R159: 0 | S159: 0 | T159: 0 | U159: 0 | V159: 0
A160: 9 | I160: 0 | L160: 0 | M160: 0 | N160: 0 | O160: 0 | P160: 0 | Q160: 0 | R160: 0 | S160: 0 | T160: 0 | U160: 0 | V160: 0
A161: 10 | I161: 0 | L161: 0 | M161: 0 | N161: 0 | O161: 0 | P161: 0 | Q161: 0 | R161: 0 | S161: 0 | T161: 0 | U161: 0 | V161: 0
A162: 11 | I162: 0 | L162: 0 | M162: 0 | N162: 0 | O162: 0 | P162: 0 | Q162: 0 | R162: 0 | S162: 0 | T162: 0 | U162: 0 | V162: 0
A163: 12 | I163: 0 | L163: 0 | M163: 0 | N163: 0 | O163: 0 | P163: 0 | Q163: 0 | R163: 0 | S163: 0 | T163: 0 | U163: 0 | V163: 0
A164: 13 | I164: 0 | L164: 0 | M164: 0 | N164: 0 | O164: 0 | P164: 0 | Q164: 0 | R164: 0 | S164: 0 | T164: 0 | U164: 0 | V164: 0
A165: 14 | I165: 0 | L165: 0 | M165: 0 | N165: 0 | O165: 0 | P165: 0 | Q165: 0 | R165: 0 | S165: 0 | T165: 0 | U165: 0 | V165: 0
A166: 15 | I166: 0 | L166: 0 | M166: 0 | N166: 0 | O166: 0 | P166: 0 | Q166: 0 | R166: 0 | S166: 0 | T166: 0 | U166: 0 | V166: 0
A167: 16 | I167: 0 | L167: 0 | M167: 0 | N167: 0 | O167: 0 | P167: 0 | Q167: 0 | R167: 0 | S167: 0 | T167: 0 | U167: 0 | V167: 0
A168: 17 | I168: 0 | L168: 0 | M168: 0 | N168: 0 | O168: 0 | P168: 0 | Q168: 0 | R168: 0 | S168: 0 | T168: 0 | U168: 0 | V168: 0
A169: 18 | I169: 0 | L169: 0 | M169: 0 | N169: 0 | O169: 0 | P169: 0 | Q169: 0 | R169: 0 | S169: 0 | T169: 0 | U169: 0 | V169: 0
A170: 19 | I170: 0 | L170: 0 | M170: 0 | N170: 0 | O170: 0 | P170: 0 | Q170: 0 | R170: 0 | S170: 0 | T170: 0 | U170: 0 | V170: 0
A171: 20 | I171: 0 | L171: 0 | M171: 0 | N171: 0 | O171: 0 | P171: 0 | Q171: 0 | R171: 0 | S171: 0 | T171: 0 | U171: 0 | V171: 0
A172: 21 | I172: 0 | L172: 0 | M172: 0 | N172: 0 | O172: 0 | P172: 0 | Q172: 0 | R172: 0 | S172: 0 | T172: 0 | U172: 0 | V172: 0
A173: 22 | I173: 0 | L173: 0 | M173: 0 | N173: 0 | O173: 0 | P173: 0 | Q173: 0 | R173: 0 | S173: 0 | T173: 0 | U173: 0 | V173: 0
A174: 23 | I174: 0 | L174: 0 | M174: 0 | N174: 0 | O174: 0 | P174: 0 | Q174: 0 | R174: 0 | S174: 0 | T174: 0 | U174: 0 | V174: 0
A175: 24 | I175: 0 | L175: 0 | M175: 0 | N175: 0 | O175: 0 | P175: 0 | Q175: 0 | R175: 0 | S175: 0 | T175: 0 | U175: 0 | V175: 0
A176: 25 | I176: 0 | L176: 0 | M176: 0 | N176: 0 | O176: 0 | P176: 0 | Q176: 0 | R176: 0 | S176: 0 | T176: 0 | U176: 0 | V176: 0
A177: 26 | I177: 0 | L177: 0 | M177: 0 | N177: 0 | O177: 0 | P177: 0 | Q177: 0 | R177: 0 | S177: 0 | T177: 0 | U177: 0 | V177: 0
A178: 27 | I178: 0 | L178: 0 | M178: 0 | N178: 0 | O178: 0 | P178: 0 | Q178: 0 | R178: 0 | S178: 0 | T178: 0 | U178: 0 | V178: 0
A179: 28 | I179: 0 | L179: 0 | M179: 0 | N179: 0 | O179: 0 | P179: 0 | Q179: 0 | R179: 0 | S179: 0 | T179: 0 | U179: 0 | V179: 0
A180: 29 | I180: 0 | L180: 0 | M180: 0 | N180: 0 | O180: 0 | P180: 0 | Q180: 0 | R180: 0 | S180: 0 | T180: 0 | U180: 0 | V180: 0
A181: 30 | I181: 0 | L181: 0 | M181: 0 | N181: 0 | O181: 0 | P181: 0 | Q181: 0 | R181: 0 | S181: 0 | T181: 0 | U181: 0 | V181: 0
A182: 31 | I182: 0 | L182: 0 | M182: 0 | N182: 0 | O182: 0 | P182: 0 | Q182: 0 | R182: 0 | S182: 0 | T182: 0 | U182: 0 | V182: 0
A183: 32 | I183: 0 | L183: 0 | M183: 0 | N183: 0 | O183: 0 | P183: 0 | Q183: 0 | R183: 0 | S183: 0 | T183: 0 | U183: 0 | V183: 0
A184: 33 | I184: 0 | L184: 0 | M184: 0 | N184: 0 | O184: 0 | P184: 0 | Q184: 0 | R184: 0 | S184: 0 | T184: 0 | U184: 0 | V184: 0
A185: 34 | I185: 0 | L185: 0 | M185: 0 | N185: 0 | O185: 0 | P185: 0 | Q185: 0 | R185: 0 | S185: 0 | T185: 0 | U185: 0 | V185: 0
A186: 35 | I186: 0 | L186: 0 | M186: 0 | N186: 0 | O186: 0 | P186: 0 | Q186: 0 | R186: 0 | S186: 0 | T186: 0 | U186: 0 | V186: 0
A187: 36 | I187: 0 | L187: 0 | M187: 0 | N187: 0 | O187: 0 | P187: 0 | Q187: 0 | R187: 0 | S187: 0 | T187: 0 | U187: 0 | V187: 0
A188: 37 | I188: 0 | L188: 0 | M188: 0 | N188: 0 | O188: 0 | P188: 0 | Q188: 0 | R188: 0 | S188: 0 | T188: 0 | U188: 0 | V188: 0
A189: 38 | I189: 0 | L189: 0 | M189: 0 | N189: 0 | O189: 0 | P189: 0 | Q189: 0 | R189: 0 | S189: 0 | T189: 0 | U189: 0 | V189: 0
A190: 39 | I190: 0 | L190: 0 | M190: 0 | N190: 0 | O190: 0 | P190: 0 | Q190: 0 | R190: 0 | S190: 0 | T190: 0 | U190: 0 | V190: 0
A191: 40 | I191: 0 | L191: 0 | M191: 0 | N191: 0 | O191: 0 | P191: 0 | Q191: 0 | R191: 0 | S191: 0 | T191: 0 | U191: 0 | V191: 0
B192: Subtotal - Budget Unit 4 | C192: =SUM(C151:C191) -> 0 | D192: 0 | E192: 0 | F192: 0 | G192: 0 | H192: 0 | I192: 0 | L192: =SUM(L152:L191) -> 0 | M192: =SUM(M152:M191) -> 0 | N192: 0 | O192: 0 | P192: 0 | Q192: 0 | R192: 0 | S192: 0 | T192: 0 | U192: 0 | V192: 0
I193: =IF(I192='Worksheet A'!Q36,"","ERROR: Total Adjustments do not match W/S A") -> 

Sheet Worksheet B
B1: LGA Name: | C1: ='Worksheet A'!C2 -> ABC County | F1: LGA NPI: | G1: =Info!F42 -> 1200XXXX
B2: Reporting Period: | C2: ='Worksheet A'!C4 -> July 1, 2015 to June 30, 2016
B4: Indirect Cost Allocation | I4: Part I
B6: Description | C6: Allocation Basis (Net Expense W/S A Col. 16) | D6: Percentage to Total Salaries and Benefits | E6: Indirect Cost Subject to Allocation | F6: Allocated Indirect Cost | G6: Total Net Expense Prior to Allocation (Col. 1) | H6: Expense after Indirect Cost Allocation
C7: 1 | D7: 2 | E7: 3 | F7: 4 | G7: 5 | H7: 6
B8: Budget Unit 1
A9: 1 | B9: TCM | C9: ='Worksheet A'!R11 -> 1310461.88 | D9: =IF(C12=0,0,C9/$C$12) -> 0.8050667568 | F9: =E12*D9 -> 356794.7665 | G9: =C9 -> 1310461.88 | H9: =SUM(F9:G9) -> 1667256.647
A10: 2 | B10: Non TCM | C10: ='Worksheet A'!R12 -> 268101.0245 | D10: =IF(C12=0,0,C10/$C$12) -> 0.1647046934 | F10: =E12*D10 -> 72994.9065 | G10: =C10 -> 268101.0245 | H10: =SUM(F10:G10) -> 341095.931
A11: 3 | B11: General & Admin | C11: ='Worksheet A'!R13 -> 49205.06506 | D11: =IF(C12=0,0,C11/$C$12) -> 0.03022854975 | F11: =E12*D11 -> 13396.88698 | G11: =C11 -> 49205.06506 | H11: 62601.95204
A12: 4 | B12: Subtotal Budget Unit 1 | C12: =SUM(C9:C11) -> 1627767.97 | D12: =SUM(D9:D11) -> 1 | E12: ='Worksheet A'!V14 -> 443186.56 | F12: =SUM(F9:F11) -> 443186.56 | G12: 1627767.97 | H12: 2070954.53
B14: Budget Unit 2
A15: 5 | B15: TCM | C15: ='Worksheet A'!R18 -> 0 | D15: =IF($C$18=0,0,C15/$C$18) -> 0 | F15: =E18*D15 -> 0 | G15: =C15 -> 0 | H15: 0
A16: 6 | B16: Non TCM | C16: ='Worksheet A'!R19 -> 0 | D16: =IF($C$18=0,0,C16/$C$18) -> 0 | F16: =E18*D16 -> 0 | G16: =C16 -> 0 | H16: 0
A17: 7 | B17: General & Admin | C17: ='Worksheet A'!R20 -> 0 | D17: 0 | F17: =E18*D17 -> 0 | G17: 0 | H17: 0
A18: 8 | B18: Subtotal Budget Unit 2 | C18: =SUM(C15:C17) -> 0 | D18: =SUM(D15:D17) -> 0 | E18: ='Worksheet A'!V21 -> 0 | F18: =SUM(F15:F17) -> 0 | G18: 0 | H18: 0
B20: Budget Unit 3
A21: 9 | B21: TCM | C21: ='Worksheet A'!R25 -> 0 | D21: =IF($C$24=0,0,C21/$C$24) -> 0 | F21: =E24*D21 -> 0 | G21: =C21 -> 0 | H21: 0
A22: 10 | B22: Non TCM | C22: ='Worksheet A'!R26 -> 0 | D22: =IF($C$24=0,0,C22/$C$24) -> 0 | F22: =E24*D22 -> 0 | G22: =C22 -> 0 | H22: 0
A23: 11 | B23: General & Admin | C23: ='Worksheet A'!R27 -> 0 | D23: 0 | F23: =E24*D23 -> 0 | G23: 0 | H23: 0
A24: 12 | B24: Subtotal Budget Unit 3 | C24: =SUM(C21:C23) -> 0 | D24: 0 | E24: ='Worksheet A'!V28 -> 0 | F24: =SUM(F21:F23) -> 0 | G24: 0 | H24: 0
B26: Budget Unit 4
A27: 13 | B27: TCM | C27: ='Worksheet A'!R32 -> 0 | D27: =IF($C$30=0,0,C27/$C$30) -> 0 | F27: =E30*D27 -> 0 | G27: =C27 -> 0 | H27: 0
A28: 14 | B28: Non TCM | C28: ='Worksheet A'!R33 -> 0 | D28: =IF($C$30=0,0,C28/$C$30) -> 0 | F28: =E30*D28 -> 0 | G28: =C28 -> 0 | H28: 0
A29: 15 | B29: General & Admin | C29: ='Worksheet A'!R34 -> 0 | D29: 0 | F29: =E30*D29 -> 0 | G29: 0 | H29: 0
A30: 16 | B30: Subtotal Budget Unit 4 | C30: =SUM(C27:C29) -> 0 | D30: 0 | E30: ='Worksheet A'!V35 -> 0 | F30: =SUM(F27:F29) -> 0 | G30: 0 | H30: 0
A32: 17 | B32: Total | E32: =E12+E18+E24+E30 -> 443186.56 | F32: =F12+F18+F24+F30 -> 443186.56 | G32: =G12+G18+G24+G30 -> 1627767.97 | H32: =H12+H18+H24+H30 -> 2070954.53
B36: LGA Name: | C36: ='Worksheet A'!C2 -> ABC County | F36: LGA NPI: | G36: =Info!F42 -> 1200XXXX
B37: Reporting Period: | C37: ='Worksheet A'!C4 -> July 1, 2015 to June 30, 2016
B39: Time Survey Allocation | I39: Part II
B41: Description | C41: Expense after Indirect Cost Allocation | D41: Other Expense by Employees | E41: Reported Expense before Time Survey Allocation | F41: TCM Expense Subject to Time Survey Allocation | G41: TCM Time Survey Result | H41: Allocation of TCM Expense per Time Survey Result | I41: Total Expense after Time Survey Allocation
C42: 7 | D42: 8 | E42: 9 | F42: 10 | G42: 11 | H42: 12 | I42: 13
B43: Budget Unit 1
A44: 1 | B44: TCM | C44: =H9 -> 1667256.647 | D44: ='Worksheet A'!S11 -> 0 | E44: =SUM(C44:D44) -> 1667256.647 | F44: =E44 -> 1667256.647 | G44: ='Worksheet C'!F8 -> 0.6424867413 | H44: =G44*$F$44 -> 1071190.29 | I44: =H44 -> 1071190.29
A45: 2 | B45: Non TCM | C45: =H10 -> 341095.931 | D45: ='Worksheet A'!S12 -> 0 | E45: =SUM(C45:D45) -> 341095.931 | G45: ='Worksheet C'!F9 -> 0.2400824985 | H45: =G45*$F$44 -> 400279.1415 | I45: =E45+H45 -> 741375.0725
A46: 3 | B46: General & Admin | C46: =H11 -> 62601.95204 | D46: ='Worksheet A'!S13 -> 0 | E46: 62601.95204 | G46: ='Worksheet C'!F10 -> 0.1174307602 | H46: =G46*$F$44 -> 195787.2154 | I46: =E46+H46 -> 258389.1675
A47: 4 | B47: Subtotal Budget Unit 1 | C47: =SUM(C44:C46) -> 2070954.53 | D47: =SUM(D44:D46) -> 0 | E47: 2070954.53 | F47: =SUM(F44:F46) -> 1667256.647 | G47: =SUM(G44:G46) -> 1 | H47: =SUM(H44:H46) -> 1667256.647 | I47: =SUM(I44:I46) -> 2070954.53
B49: Budget Unit 2
A50: 5 | B50: TCM | C50: =H15 -> 0 | D50: ='Worksheet A'!S18 -> 0 | E50: 0 | F50: =E50 -> 0 | G50: ='Worksheet C'!F17 -> 0 | H50: =G50*$F$50 -> 0 | I50: =H50 -> 0
A51: 6 | B51: Non TCM | C51: =H16 -> 0 | D51: ='Worksheet A'!S19 -> 0 | E51: 0 | G51: ='Worksheet C'!F18 -> 0 | H51: =G51*$F$50 -> 0 | I51: =H51+E51 -> 0
A52: 7 | B52: General & Admin | C52: =H17 -> 0 | D52: ='Worksheet A'!S20 -> 0 | E52: 0 | G52: ='Worksheet C'!F19 -> 0 | H52: =G52*$F$50 -> 0 | I52: =E52+H52 -> 0
A53: 8 | B53: Subtotal Budget Unit 2 | C53: =SUM(C50:C52) -> 0 | D53: =SUM(D50:D52) -> 0 | E53: 0 | F53: =SUM(F50:F52) -> 0 | G53: =SUM(G50:G52) -> 0 | H53: =SUM(H50:H52) -> 0 | I53: =SUM(I50:I52) -> 0
B55: Budget Unit 3
A56: 9 | B56: TCM | C56: =H21 -> 0 | D56: ='Worksheet A'!S25 -> 0 | E56: 0 | F56: =E56 -> 0 | G56: ='Worksheet C'!F26 -> 0 | H56: =F56*G56 -> 0 | I56: =H56 -> 0
A57: 10 | B57: Non TCM | C57: =H22 -> 0 | D57: ='Worksheet A'!S26 -> 0 | E57: 0 | G57: ='Worksheet C'!F27 -> 0 | H57: =F56*G57 -> 0 | I57: =E57+H57 -> 0
A58: 11 | B58: General & Admin | C58: =H23 -> 0 | D58: ='Worksheet A'!S27 -> 0 | E58: 0 | G58: ='Worksheet C'!F28 -> 0 | H58: =F56*G58 -> 0 | I58: =E58+H58 -> 0
A59: 12 | B59: Subtotal Budget Unit 3 | C59: =SUM(C56:C58) -> 0 | D59: =SUM(D56:D58) -> 0 | E59: 0 | F59: =SUM(F56:F58) -> 0 | G59: =SUM(G56:G58) -> 0 | H59: =SUM(H56:H58) -> 0 | I59: =SUM(I56:I58) -> 0
B61: Budget Unit 4
A62: 13 | B62: TCM | C62: =H27 -> 0 | D62: ='Worksheet A'!S32 -> 0 | E62: 0 | F62: =E62 -> 0 | G62: ='Worksheet C'!F35 -> 0 | H62: =F62*G62 -> 0 | I62: =H62 -> 0
A63: 14 | B63: Non TCM | C63: =H28 -> 0 | D63: ='Worksheet A'!S33 -> 0 | E63: 0 | G63: ='Worksheet C'!F36 -> 0 | H63: =F62*G63 -> 0 | I63: =E63+H63 -> 0
A64: 15 | B64: General & Admin | C64: =H29 -> 0 | D64: ='Worksheet A'!S34 -> 0 | E64: 0 | G64: ='Worksheet C'!F37 -> 0 | H64: =F62*G64 -> 0 | I64: =E64+H64 -> 0
A65: 16 | B65: Subtotal Budget Unit 4 | C65: =SUM(C62:C64) -> 0 | D65: =SUM(D62:D64) -> 0 | E65: 0 | F65: =SUM(F62:F64) -> 0 | G65: =SUM(G62:G64) -> 0 | H65: =SUM(H62:H64) -> 0 | I65: =SUM(I62:I64) -> 0
A67: 17 | B67: Total | C67: =C47+C53+C59+C65 -> 2070954.53 | D67: =D47+D53+D59+D65 -> 0 | E67: =E47+E53+E59+E65 -> 2070954.53 | F67: =F47+F53+F59+F65 -> 1667256.647 | H67: =H47+H53+H59+H65 -> 1667256.647 | I67: =I47+I53+I59+I65 -> 2070954.53
B70: LGA Name: | C70: ='Worksheet A'!C2 -> ABC County | F70: LGA NPI: | G70: =Info!F42 -> 1200XXXX
B71: Reporting Period: | C71: ='Worksheet A'!C4 -> July 1, 2015 to June 30, 2016
B73: General & Administration Allocation | I73: Part III
B75: Description | C75: Total Expense after Time Survey Allocation | D75: Other Expense by Program | E75: Total Expense prior to G & A Cost Allocation | F75: G & A Cost Allocation Basis (TCM Cost and NonTCM Cost) | G75: Percentage of TCM Cost | H75: G & A Cost Subject to Allocation | I75: G & A Cost Allocated to TCM & NonTCM
C76: 14 | D76: 15 | E76: 16 | F76: 17 | G76: 18 | H76: 19 | I76: 20
B77: Budget Unit 1
A78: 1 | B78: TCM | C78: =I44 -> 1071190.29 | D78: ='Worksheet A'!T11 -> 2165.44 | E78: =SUM(C78:D78) -> 1073355.73 | F78: =E78 -> 1073355.73 | G78: =IF(F81=0,0,F78/F81) -> 0.591468293 | I78: =H80*G78 -> 152828.9998
A79: 2 | B79: Non TCM | C79: =I45 -> 741375.0725 | D79: ='Worksheet A'!T12 -> 0 | E79: =SUM(C79:D79) -> 741375.0725 | F79: =E79 -> 741375.0725 | G79: =IF(F81=0,0,F79/F81) -> 0.408531707 | I79: =H80*G79 -> 105560.1677
A80: 3 | B80: General & Admin | C80: =I46 -> 258389.1675 | D80: ='Worksheet A'!T13 -> 0 | E80: 258389.1675 | H80: =E80 -> 258389.1675
A81: 4 | B81: Subtotal Budget Unit 1 | C81: =I47 -> 2070954.53 | D81: =SUM(D78:D80) -> 2165.44 | E81: =SUM(E78:E80) -> 2073119.97 | F81: =SUM(F78:F80) -> 1814730.803 | G81: =SUM(G78:G80) -> 1 | H81: =H80 -> 258389.1675 | I81: =SUM(I78:I80) -> 258389.1675
B83: Budget Unit 2
A84: 5 | B84: TCM | C84: =I50 -> 0 | D84: ='Worksheet A'!T18 -> 0 | E84: 0 | F84: =E84 -> 0 | G84: =IF(F87=0,0,F84/F87) -> 0 | I84: =H86*G84 -> 0
A85: 6 | B85: Non TCM | C85: =I51 -> 0 | D85: ='Worksheet A'!T19 -> 0 | E85: 0 | F85: =E85 -> 0 | G85: =IF(F87=0,0,F85/F87) -> 0 | I85: =H86*G85 -> 0
A86: 7 | B86: General & Admin | C86: =I52 -> 0 | D86: ='Worksheet A'!T20 -> 0 | E86: 0 | H86: =E86 -> 0
A87: 8 | B87: Subtotal Budget Unit 2 | C87: =I53 -> 0 | D87: =SUM(D84:D86) -> 0 | E87: =SUM(E84:E86) -> 0 | F87: =SUM(F84:F86) -> 0 | G87: =SUM(G84:G86) -> 0 | H87: =SUM(H86) -> 0 | I87: =SUM(I84:I86) -> 0
B89: Budget Unit 3
A90: 9 | B90: TCM | C90: =I56 -> 0 | D90: ='Worksheet A'!T25 -> 0 | E90: =SUM(C90:D90) -> 0 | F90: =E90 -> 0 | G90: =IF(F93=0,0,F90/F93) -> 0 | I90: =H92*G90 -> 0
A91: 10 | B91: Non TCM | C91: =I57 -> 0 | D91: ='Worksheet A'!T26 -> 0 | E91: =SUM(C91:D91) -> 0 | F91: =E91 -> 0 | G91: =IF(F93=0,0,F91/F93) -> 0 | I91: =H92*G91 -> 0
A92: 11 | B92: General & Admin | C92: =I58 -> 0 | D92: ='Worksheet A'!T27 -> 0 | E92: 0 | H92: =E92 -> 0
A93: 12 | B93: Subtotal Budget Unit 3 | C93: =I59 -> 0 | D93: =SUM(D90:D92) -> 0 | E93: =SUM(E90:E92) -> 0 | F93: =SUM(F90:F92) -> 0 | G93: =SUM(G90:G92) -> 0 | H93: =SUM(H92) -> 0 | I93: =SUM(I90:I92) -> 0
B95: Budget Unit 4
A96: 13 | B96: TCM | C96: =I62 -> 0 | D96: ='Worksheet A'!T32 -> 0 | E96: =SUM(C96:D96) -> 0 | F96: =E96 -> 0 | G96: =IF(F99=0,0,F96/F99) -> 0 | I96: =H98*G96 -> 0
A97: 14 | B97: Non TCM | C97: =I63 -> 0 | D97: ='Worksheet A'!T33 -> 0 | E97: =SUM(C97:D97) -> 0 | F97: =E97 -> 0 | G97: =IF(F99=0,0,F97/F99) -> 0 | I97: =H98*G97 -> 0
A98: 15 | B98: General & Admin | C98: =I64 -> 0 | D98: ='Worksheet A'!T34 -> 0 | E98: 0 | H98: =E98 -> 0
A99: 16 | B99: Subtotal Budget Unit 4 | C99: =I65 -> 0 | D99: =SUM(D96:D98) -> 0 | E99: =SUM(E96:E98) -> 0 | F99: =SUM(F96:F98) -> 0 | G99: =SUM(G96:G98) -> 0 | H99: =SUM(H98) -> 0 | I99: =SUM(I96:I98) -> 0
A101: 17 | B101: Total | C101: =I67 -> 2070954.53 | D101: =D81+D87+D93+D99 -> 2165.44 | E101: 2073119.97 | H101: =H80+H86+H92+H98 -> 258389.1675 | I101: =I81+I87+I93+I99 -> 258389.1675
B104: LGA Name: | C104: ='Worksheet A'!C2 -> ABC County | F104: LGA NPI: | G104: =Info!F42 -> 1200XXXX
B105: Reporting Period: | C105: ='Worksheet A'!C4 -> July 1, 2015 to June 30, 2016
B107: TCM Program Cost for TCM Services Provided by Governmental Entity | I107: Part IV
B109: Description | C109: G & A Cost Allocated to TCM & NonTCM | D109: TCM and NonTCM prior to G &A Allocation | E109: Total Cost after G & A Allocation | F109: Percentage of TCM Cost to Total | G109: TCM Expense Outside the Budget Unit | H109: Total Net Expenses
C110: 21 | D110: 22 | E110: 23 | F110: 24 | G110: 25 | H110: 26
B111: Budget Unit 1
A112: 1 | B112: TCM | C112: =I78 -> 152828.9998 | D112: =F78 -> 1073355.73 | E112: =SUM(C112:D112) -> 1226184.73 | F112: =IF(E112=0,0,E112/E115) -> 0.591468293 | G112: ='Worksheet A'!U11 -> 0 | H112: =E112+G112 -> 1226184.73
A113: 2 | B113: Non TCM | C113: =I79 -> 105560.1677 | D113: =F79 -> 741375.0725 | E113: =SUM(C113:D113) -> 846935.2401 | F113: =IF(E113=0,0,E113/E115) -> 0.408531707 | H113: =E113+G113 -> 846935.2401
A114: 3 | B114: General & Admin
A115: 4 | B115: Subtotal Budget Unit 1 | C115: =SUM(C112:C114) -> 258389.1675 | D115: =SUM(D112:D114) -> 1814730.803 | E115: =SUM(E112:E114) -> 2073119.97 | F115: =SUM(F112:F114) -> 1 | G115: =G112 -> 0 | H115: =SUM(H112:H113) -> 2073119.97
B117: Budget Unit 2
A118: 5 | B118: TCM | C118: =I84 -> 0 | D118: =F84 -> 0 | E118: =SUM(C118:D118) -> 0 | F118: =IF(E118=0,0,E118/E121) -> 0 | G118: ='Worksheet A'!U18 -> 0 | H118: =E118+G118 -> 0
A119: 6 | B119: Non TCM | C119: =I85 -> 0 | D119: =F85 -> 0 | E119: =SUM(C119:D119) -> 0 | F119: =IF(E119=0,0,E119/E121) -> 0 | H119: =E119+G119 -> 0
A120: 7 | B120: General & Admin
A121: 8 | B121: Subtotal Budget Unit 2 | C121: =SUM(C118:C120) -> 0 | D121: =SUM(D118:D120) -> 0 | E121: =SUM(E118:E120) -> 0 | F121: =SUM(F118:F120) -> 0 | G121: =G118 -> 0 | H121: =SUM(H118:H119) -> 0
B123: Budget Unit 3
A124: 9 | B124: TCM | C124: =I90 -> 0 | D124: =F90 -> 0 | E124: =SUM(C124:D124) -> 0 | F124: =IF(E124=0,0,E124/E127) -> 0 | G124: ='Worksheet A'!U25 -> 0 | H124: =E124+G124 -> 0
A125: 10 | B125: Non TCM | C125: =I91 -> 0 | D125: =F91 -> 0 | E125: =SUM(C125:D125) -> 0 | F125: =IF(E125=0,0,E125/E127) -> 0 | H125: =E125+G125 -> 0
A126: 11 | B126: General & Admin
A127: 12 | B127: Subtotal Budget Unit 3 | C127: =SUM(C124:C126) -> 0 | D127: =SUM(D124:D126) -> 0 | E127: =SUM(E124:E126) -> 0 | F127: =SUM(F124:F126) -> 0 | G127: =G124 -> 0 | H127: =SUM(H124:H125) -> 0
B129: Budget Unit 4
A130: 13 | B130: TCM | C130: =I96 -> 0 | D130: =F96 -> 0 | E130: =SUM(C130:D130) -> 0 | F130: =IF(E130=0,0,E130/E133) -> 0 | G130: ='Worksheet A'!U32 -> 0 | H130: =E130+G130 -> 0
A131: 14 | B131: Non TCM | C131: =I97 -> 0 | D131: =F97 -> 0 | E131: =SUM(C131:D131) -> 0 | F131: =IF(E131=0,0,E131/E133) -> 0 | H131: =E131+G131 -> 0
A132: 15 | B132: General & Admin
A133: 16 | B133: Subtotal Budget Unit 4 | C133: =SUM(C130:C132) -> 0 | D133: =SUM(D130:D132) -> 0 | E133: =SUM(E130:E132) -> 0 | F133: =SUM(F130:F132) -> 0 | G133: =G130 -> 0 | H133: =SUM(H130:H131) -> 0
A135: 17 | B135: Total | C135: =C115+C121+C127+C133 -> 258389.1675 | D135: =D115+D121+D127+D133 -> 1814730.803 | E135: =E115+E121+E127+E133 -> 2073119.97 | G135: =G115+G121+G127+G133 -> 0 | H135: =H115+H121+H127+H133 -> 2073119.97

Sheet Worksheet C
B2: LGA Name: | C2: ='Worksheet A'!C2 -> ABC County | E2: LGA NPI: | F2: =Info!F42 -> 1200XXXX
B3: Reporting Period: | C3: ='Worksheet A'!C4 -> July 1, 2015 to June 30, 2016
B5: Budget Unit 1
B6: Categories | D6: Hours | E6: Average | F6: PTO Redistribution
D7: 1 | E7: 2 | F7: 3
A8: 1 | B8: Total "TCM" Time Survey hours = | D8: 13628.75 | E8: =IF(D12=0,0,D8/D12) -> 0.5379734344 | F8: =IF(E8+E9+E10=0,0,(E8/(E8+E9+E10)*E11)+E8) -> 0.6424867413
A9: 2 | B9: Total "Other/Direct Service/MAA" Time Survey hours = | D9: 5092.75 | E9: =IF(D12=0,0,D9/D12) -> 0.2010282827 | F9: =IF(E8+E9+E10=0,0,(E9/(E8+E9+E10)*E11)+E9) -> 0.2400824985
A10: 3 | B10: Total "Gen Admin" Time Survey Hours = | D10: 2491 | E10: =IF(D12=0,0,D10/D12) -> 0.09832830047 | F10: =IF(E8+E9+E10=0,0,(E10/(E8+E9+E10)*E11)+E10) -> 0.1174307602
A11: 4 | B11: Total "PTO" Time Survey Hours = | D11: 4121 | E11: =IF(D12=0,0,D11/D12) -> 0.1626699824
A12: 5 | B12: Total Time Survey Hours = | D12: =SUM(D8:D11) -> 25333.5 | E12: =SUM(E8:E11) -> 1 | F12: =SUM(F8:F10) -> 1
B14: Budget Unit 2
B15: Categories | D15: Hours | E15: Average | F15: PTO Redistribution
D16: 1 | E16: 2 | F16: 3
A17: 6 | B17: Total "TCM" Time Survey hours = | E17: =IF(D21=0,0,D17/D21) -> 0 | F17: =IF(E17+E18+E19=0,0,(E17/(E17+E18+E19)*E20)+E17) -> 0
A18: 7 | B18: Total "Other/Direct Service/MAA" Time Survey hours = | E18: =IF(D21=0,0,D18/D21) -> 0 | F18: =IF(E17+E18+E19=0,0,(E18/(E17+E18+E19)*E20)+E18) -> 0
A19: 8 | B19: Total "Gen Admin" Time Survey Hours = | E19: =IF(D21=0,0,D19/D21) -> 0 | F19: =IF(E17+E18+E19=0,0,(E19/(E17+E18+E19)*E20)+E19) -> 0
A20: 9 | B20: Total "PTO" Time Survey Hours = | E20: =IF(D21=0,0,D20/D21) -> 0
A21: 10 | B21: Total Time Survey Hours = | D21: =SUM(D17:D20) -> 0 | E21: =SUM(E17:E20) -> 0 | F21: =SUM(F17:F19) -> 0
B23: Budget Unit 3
B24: Categories | D24: Hours | E24: Average | F24: PTO Redistribution
D25: 1 | E25: 2 | F25: 3
A26: 11 | B26: Total "TCM" Time Survey hours = | E26: =IF(D30=0,0,D26/D30) -> 0 | F26: =IF(E26+E27+E28=0,0,(E26/(E26+E27+E28)*E29)+E26) -> 0
A27: 12 | B27: Total "Other/Direct Service/MAA" Time Survey hours = | E27: =IF(D30=0,0,D27/D30) -> 0 | F27: =IF(E26+E27+E28=0,0,(E27/(E26+E27+E28)*E29)+E27) -> 0
A28: 13 | B28: Total "Gen Admin" Time Survey Hours = | E28: =IF(D30=0,0,D28/D30) -> 0 | F28: =IF(E26+E27+E28=0,0,(E28/(E26+E27+E28)*E29)+E28) -> 0
A29: 14 | B29: Total "PTO" Time Survey Hours = | E29: =IF(D30=0,0,D29/D30) -> 0
A30: 15 | B30: Total Time Survey Hours = | D30: =SUM(D26:D29) -> 0 | E30: =SUM(E26:E29) -> 0 | F30: =SUM(F26:F28) -> 0
B32: Budget Unit 4
B33: Categories | D33: Hours | E33: Average | F33: PTO Redistribution
D34: 1 | E34: 2 | F34: 3
A35: 16 | B35: Total "TCM" Time Survey hours = | E35: =IF(D39=0,0,D35/D39) -> 0 | F35: =IF(E35+E36+E37=0,0,(E35/(E35+E36+E37)*E38)+E35) -> 0
A36: 17 | B36: Total "Other/Direct Service/MAA" Time Survey hours = | E36: =IF(D39=0,0,D36/D39) -> 0 | F36: =IF(E35+E36+E37=0,0,(E36/(E35+E36+E37)*E38)+E36) -> 0
A37: 18 | B37: Total "Gen Admin" Time Survey Hours = | E37: =IF(D39=0,0,D37/D39) -> 0 | F37: =IF(E35+E36+E37=0,0,(E37/(E35+E36+E37)*E38)+E37) -> 0
A38: 19 | B38: Total "PTO" Time Survey Hours = | E38: =IF(D39=0,0,D38/D39) -> 0
A39: 20 | B39: Total Time Survey Hours = | D39: =SUM(D35:D38) -> 0 | E39: =SUM(E35:E38) -> 0 | F39: =SUM(F35:F37) -> 0

Sheet Worksheet D
B2: LGA Name: | C2: =Info!C42 -> ABC County | F2: LGA NPI: | G2: =Info!F42 -> 1200XXXX
B3: Reporting Period: | C3: =Info!C43 -> July 1, 2015 to June 30, 2016
B5: Funding Description | D5: Types | E5: Total Funding | F5: Funding Restricted to Non-TCM | G5: Funding Available for TCM | H5: % of Funding Allocation to TCM | I5: Funding to TCM | J5: Adjustments | K5: Net Public Funding to TCM | L5: % of Claimable Medi-Cal Encounters | M5: Eligible CPE for Reimburse-ment
B6: 1 | C6: 2 | D6: 3 | E6: 4 | F6: 5 | G6: 6 | H6: 7 | I6: 8 | J6: 9 | K6: 10 | L6: 11 | M6: 12
B7: Funding Name | C7: Contributing Agency
B8: Budget Unit 1
A9: 1 | B9: State-Other | C9: State | D9: Local/State | E9: 2700 | F9: =E9 -> 2700 | G9: =E9-F9 -> 0 | I9: =G9*H9 -> 0 | K9: =I9+J9 -> 0 | L9: =IF(K9=0,0,'Worksheet F'!$H$11*'Worksheet F'!$I$11) -> 0 | M9: =K9*L9 -> 0
A10: 2 | B10: Fed-Medi-Cal Administration | C10: Federal | D10: Federal | E10: 195411 | G10: =E10-F10 -> 195411 | H10: 1 | I10: =G10*H10 -> 195411 | K10: =I10+J10 -> 195411 | L10: =IF(K10=0,0,'Worksheet F'!$H$11*'Worksheet F'!$I$11) -> 0.9381578947 | M10: =K10*L10 -> 183326.3724
A11: 3 | B11: Fed Maternal Child Health | C11: Federal | D11: Federal | E11: 988693 | F11: =E11 -> 988693 | G11: 0 | I11: 0 | K11: 0 | L11: =IF(K11=0,0,'Worksheet F'!$H$11*'Worksheet F'!$I$11) -> 0 | M11: 0
A12: 4 | B12: Federal-Other | C12: Federal | D12: Federal | E12: 18440 | F12: =E12 -> 18440 | G12: 0 | I12: 0 | K12: 0 | L12: =IF(K12=0,0,'Worksheet F'!$H$11*'Worksheet F'!$I$11) -> 0 | M12: 0
A13: 5 | B13: Other Services | C13: Donations | D13: Private | E13: 1600 | F13: =E13 -> 1600 | G13: 0 | I13: 0 | K13: 0 | L13: =IF(K13=0,0,'Worksheet F'!$H$11*'Worksheet F'!$I$11) -> 0 | M13: 0
A14: 6 | B14: General Fund Contribution | C14: County | D14: Local/State | E14: 805000 | F14: 578312 | G14: 226688 | H14: 1 | I14: 226688 | J14: 61276 | K14: 287964 | L14: =IF(K14=0,0,'Worksheet F'!$H$11*'Worksheet F'!$I$11) -> 0.9381578947 | M14: 270155.7
A15: 7 | G15: 0 | I15: 0 | K15: 0 | L15: =IF(K15=0,0,'Worksheet F'!$H$11*'Worksheet F'!$I$11) -> 0 | M15: 0
A16: 8 | G16: 0 | I16: 0 | K16: 0 | L16: =IF(K16=0,0,'Worksheet F'!$H$11*'Worksheet F'!$I$11) -> 0 | M16: 0
A17: 9 | G17: 0 | I17: 0 | K17: 0 | L17: =IF(K17=0,0,'Worksheet F'!$H$11*'Worksheet F'!$I$11) -> 0 | M17: 0
A18: 10 | G18: 0 | I18: 0 | K18: 0 | L18: =IF(K18=0,0,'Worksheet F'!$H$11*'Worksheet F'!$I$11) -> 0 | M18: 0
A19: 11 | G19: 0 | I19: 0 | K19: 0 | L19: =IF(K19=0,0,'Worksheet F'!$H$11*'Worksheet F'!$I$11) -> 0 | M19: 0
A20: 12 | G20: 0 | I20: 0 | K20: 0 | L20: =IF(K20=0,0,'Worksheet F'!$H$11*'Worksheet F'!$I$11) -> 0 | M20: 0
A21: 13 | G21: 0 | I21: 0 | K21: 0 | L21: =IF(K21=0,0,'Worksheet F'!$H$11*'Worksheet F'!$I$11) -> 0 | M21: 0
A22: 14 | G22: 0 | I22: 0 | K22: 0 | L22: =IF(K22=0,0,'Worksheet F'!$H$11*'Worksheet F'!$I$11) -> 0 | M22: 0
A23: 15 | G23: 0 | I23: 0 | K23: 0 | L23: =IF(K23=0,0,'Worksheet F'!$H$11*'Worksheet F'!$I$11) -> 0 | M23: 0
A24: 16 | G24: 0 | I24: 0 | K24: 0 | L24: =IF(K24=0,0,'Worksheet F'!$H$11*'Worksheet F'!$I$11) -> 0 | M24: 0
A25: 17 | G25: 0 | I25: 0 | K25: 0 | L25: =IF(K25=0,0,'Worksheet F'!$H$11*'Worksheet F'!$I$11) -> 0 | M25: 0
A26: 18 | G26: 0 | I26: 0 | K26: 0 | L26: =IF(K26=0,0,'Worksheet F'!$H$11*'Worksheet F'!$I$11) -> 0 | M26: 0
A27: 19 | G27: 0 | I27: 0 | K27: 0 | L27: =IF(K27=0,0,'Worksheet F'!$H$11*'Worksheet F'!$I$11) -> 0 | M27: 0
A28: 20 | G28: 0 | I28: 0 | K28: 0 | L28: =IF(K28=0,0,'Worksheet F'!$H$11*'Worksheet F'!$I$11) -> 0 | M28: 0
A29: 21 | G29: 0 | I29: 0 | K29: 0 | L29: =IF(K29=0,0,'Worksheet F'!$H$11*'Worksheet F'!$I$11) -> 0 | M29: 0
A30: 22 | G30: 0 | I30: 0 | K30: 0 | L30: =IF(K30=0,0,'Worksheet F'!$H$11*'Worksheet F'!$I$11) -> 0 | M30: 0
A31: 23 | G31: 0 | I31: 0 | K31: 0 | L31: =IF(K31=0,0,'Worksheet F'!$H$11*'Worksheet F'!$I$11) -> 0 | M31: 0
A32: 24 | G32: 0 | I32: 0 | K32: 0 | L32: =IF(K32=0,0,'Worksheet F'!$H$11*'Worksheet F'!$I$11) -> 0 | M32: 0
A33: 25 | G33: 0 | I33: 0 | K33: 0 | L33: =IF(K33=0,0,'Worksheet F'!$H$11*'Worksheet F'!$I$11) -> 0 | M33: 0
A34: 26 | G34: 0 | I34: 0 | K34: 0 | L34: =IF(K34=0,0,'Worksheet F'!$H$11*'Worksheet F'!$I$11) -> 0 | M34: 0
A35: 27 | G35: 0 | I35: 0 | K35: 0 | L35: =IF(K35=0,0,'Worksheet F'!$H$11*'Worksheet F'!$I$11) -> 0 | M35: 0
A36: 28 | G36: 0 | I36: 0 | K36: 0 | L36: =IF(K36=0,0,'Worksheet F'!$H$11*'Worksheet F'!$I$11) -> 0 | M36: 0
A37: 29 | G37: 0 | I37: 0 | K37: 0 | L37: =IF(K37=0,0,'Worksheet F'!$H$11*'Worksheet F'!$I$11) -> 0 | M37: 0
A38: 30 | G38: 0 | I38: 0 | K38: 0 | L38: =IF(K38=0,0,'Worksheet F'!$H$11*'Worksheet F'!$I$11) -> 0 | M38: 0
A39: 31 | G39: 0 | I39: 0 | K39: 0 | L39: =IF(K39=0,0,'Worksheet F'!$H$11*'Worksheet F'!$I$11) -> 0 | M39: 0
A40: 32 | G40: 0 | I40: 0 | K40: 0 | L40: =IF(K40=0,0,'Worksheet F'!$H$11*'Worksheet F'!$I$11) -> 0 | M40: 0
A41: 33 | G41: 0 | I41: 0 | K41: 0 | L41: =IF(K41=0,0,'Worksheet F'!$H$11*'Worksheet F'!$I$11) -> 0 | M41: 0
A42: 34 | G42: 0 | I42: 0 | K42: 0 | L42: =IF(K42=0,0,'Worksheet F'!$H$11*'Worksheet F'!$I$11) -> 0 | M42: 0
A43: 35 | G43: 0 | I43: 0 | K43: 0 | L43: =IF(K43=0,0,'Worksheet F'!$H$11*'Worksheet F'!$I$11) -> 0 | M43: 0
A44: 36 | G44: 0 | I44: 0 | K44: 0 | L44: =IF(K44=0,0,'Worksheet F'!$H$11*'Worksheet F'!$I$11) -> 0 | M44: 0
A45: 37 | G45: 0 | I45: 0 | K45: 0 | L45: =IF(K45=0,0,'Worksheet F'!$H$11*'Worksheet F'!$I$11) -> 0 | M45: 0
A46: 38 | G46: 0 | I46: 0 | K46: 0 | L46: =IF(K46=0,0,'Worksheet F'!$H$11*'Worksheet F'!$I$11) -> 0 | M46: =K46*L46 -> 0
B47: Overall Funding | E47: =SUM(E9:E46) -> 2011844 | F47: =SUM(F9:F46) -> 1589745 | G47: =SUM(G9:G46) -> 422099 | I47: =SUM(I9:I46) -> 422099 | J47: =SUM(J9:J46) -> 61276 | K47: =SUM(K9:K46) -> 483375 | M47: =SUM(M9:M46) -> 453482.0724
J48: =IF(ROUND(J47,2)=ROUND('Worksheet D-1'!D42,2),"","ERROR: Adjustments do not match with W/S D-1 col.3!") -> 
B50: LGA Name: | C50: =C2 -> ABC County | F50: LGA NPI: | G50: =Info!F42 -> 1200XXXX
B51: Reporting Period: | C51: =C3 -> July 1, 2015 to June 30, 2016
B53: Funding Description | D53: Types | E53: Total Funding | F53: Funding Restricted to Non-TCM | G53: Funding Available for TCM | H53: % of Funding Allocation to TCM | I53: Funding to TCM | J53: Adjustments | K53: Net Public Funding to TCM | L53: % of Claimable Medi-Cal Encounters | M53: Eligible CPE for Reimburse-ment
B54: 1 | C54: 2 | D54: 3 | E54: 4 | F54: 5 | G54: 6 | H54: 7 | I54: 8 | J54: 9 | K54: 10 | L54: 11 | M54: 12
B55: Funding Name | C55: Contributing Agency
B56: Budget Unit 2
A57: 1 | G57: =E57-F57 -> 0 | I57: =G57*H57 -> 0 | J57: 0 | K57: =I57+J57 -> 0 | L57: =IF(K57=0,0,'Worksheet F'!$H$12*'Worksheet F'!$I$12) -> 0 | M57: =K57*L57 -> 0
A58: 2 | G58: =E58-F58 -> 0 | I58: =G58*H58 -> 0 | K58: =I58+J58 -> 0 | L58: =IF(K58=0,0,'Worksheet F'!$H$12*'Worksheet F'!$I$12) -> 0 | M58: =K58*L58 -> 0
A59: 3 | G59: 0 | I59: 0 | K59: 0 | L59: =IF(K59=0,0,'Worksheet F'!$H$12*'Worksheet F'!$I$12) -> 0 | M59: 0
A60: 4 | G60: 0 | I60: 0 | K60: 0 | L60: =IF(K60=0,0,'Worksheet F'!$H$12*'Worksheet F'!$I$12) -> 0 | M60: 0
A61: 5 | G61: 0 | I61: 0 | K61: 0 | L61: =IF(K61=0,0,'Worksheet F'!$H$12*'Worksheet F'!$I$12) -> 0 | M61: 0
A62: 6 | G62: 0 | I62: 0 | K62: 0 | L62: =IF(K62=0,0,'Worksheet F'!$H$12*'Worksheet F'!$I$12) -> 0 | M62: 0
A63: 7 | G63: 0 | I63: 0 | K63: 0 | L63: =IF(K63=0,0,'Worksheet F'!$H$12*'Worksheet F'!$I$12) -> 0 | M63: 0
A64: 8 | G64: 0 | I64: 0 | K64: 0 | L64: =IF(K64=0,0,'Worksheet F'!$H$12*'Worksheet F'!$I$12) -> 0 | M64: 0
A65: 9 | G65: 0 | I65: 0 | K65: 0 | L65: =IF(K65=0,0,'Worksheet F'!$H$12*'Worksheet F'!$I$12) -> 0 | M65: 0
A66: 10 | G66: 0 | I66: 0 | K66: 0 | L66: =IF(K66=0,0,'Worksheet F'!$H$12*'Worksheet F'!$I$12) -> 0 | M66: 0
A67: 11 | G67: 0 | I67: 0 | K67: 0 | L67: =IF(K67=0,0,'Worksheet F'!$H$12*'Worksheet F'!$I$12) -> 0 | M67: 0
A68: 12 | G68: 0 | I68: 0 | K68: 0 | L68: =IF(K68=0,0,'Worksheet F'!$H$12*'Worksheet F'!$I$12) -> 0 | M68: 0
A69: 13 | G69: 0 | I69: 0 | K69: 0 | L69: =IF(K69=0,0,'Worksheet F'!$H$12*'Worksheet F'!$I$12) -> 0 | M69: 0
A70: 14 | G70: 0 | I70: 0 | K70: 0 | L70: =IF(K70=0,0,'Worksheet F'!$H$12*'Worksheet F'!$I$12) -> 0 | M70: 0
A71: 15 | G71: 0 | I71: 0 | K71: 0 | L71: =IF(K71=0,0,'Worksheet F'!$H$12*'Worksheet F'!$I$12) -> 0 | M71: 0
A72: 16 | G72: 0 | I72: 0 | K72: 0 | L72: =IF(K72=0,0,'Worksheet F'!$H$12*'Worksheet F'!$I$12) -> 0 | M72: 0
A73: 17 | G73: 0 | I73: 0 | K73: 0 | L73: =IF(K73=0,0,'Worksheet F'!$H$12*'Worksheet F'!$I$12) -> 0 | M73: 0
A74: 18 | G74: 0 | I74: 0 | K74: 0 | L74: =IF(K74=0,0,'Worksheet F'!$H$12*'Worksheet F'!$I$12) -> 0 | M74: 0
A75: 19 | G75: 0 | I75: 0 | K75: 0 | L75: =IF(K75=0,0,'Worksheet F'!$H$12*'Worksheet F'!$I$12) -> 0 | M75: 0
A76: 20 | G76: 0 | I76: 0 | K76: 0 | L76: =IF(K76=0,0,'Worksheet F'!$H$12*'Worksheet F'!$I$12) -> 0 | M76: 0
A77: 21 | G77: 0 | I77: 0 | K77: 0 | L77: =IF(K77=0,0,'Worksheet F'!$H$12*'Worksheet F'!$I$12) -> 0 | M77: 0
A78: 22 | G78: 0 | I78: 0 | K78: 0 | L78: =IF(K78=0,0,'Worksheet F'!$H$12*'Worksheet F'!$I$12) -> 0 | M78: 0
A79: 23 | G79: 0 | I79: 0 | K79: 0 | L79: =IF(K79=0,0,'Worksheet F'!$H$12*'Worksheet F'!$I$12) -> 0 | M79: 0
A80: 24 | G80: 0 | I80: 0 | K80: 0 | L80: =IF(K80=0,0,'Worksheet F'!$H$12*'Worksheet F'!$I$12) -> 0 | M80: 0
A81: 25 | G81: 0 | I81: 0 | K81: 0 | L81: =IF(K81=0,0,'Worksheet F'!$H$12*'Worksheet F'!$I$12) -> 0 | M81: 0
A82: 26 | G82: 0 | I82: 0 | K82: 0 | L82: =IF(K82=0,0,'Worksheet F'!$H$12*'Worksheet F'!$I$12) -> 0 | M82: 0
A83: 27 | G83: 0 | I83: 0 | K83: 0 | L83: =IF(K83=0,0,'Worksheet F'!$H$12*'Worksheet F'!$I$12) -> 0 | M83: 0
A84: 28 | G84: 0 | I84: 0 | K84: 0 | L84: =IF(K84=0,0,'Worksheet F'!$H$12*'Worksheet F'!$I$12) -> 0 | M84: 0
A85: 29 | G85: 0 | I85: 0 | K85: 0 | L85: =IF(K85=0,0,'Worksheet F'!$H$12*'Worksheet F'!$I$12) -> 0 | M85: 0
A86: 30 | G86: 0 | I86: 0 | K86: 0 | L86: =IF(K86=0,0,'Worksheet F'!$H$12*'Worksheet F'!$I$12) -> 0 | M86: 0
A87: 31 | G87: 0 | I87: 0 | K87: 0 | L87: =IF(K87=0,0,'Worksheet F'!$H$12*'Worksheet F'!$I$12) -> 0 | M87: 0
A88: 32 | G88: 0 | I88: 0 | K88: 0 | L88: =IF(K88=0,0,'Worksheet F'!$H$12*'Worksheet F'!$I$12) -> 0 | M88: 0
A89: 33 | G89: 0 | I89: 0 | K89: 0 | L89: =IF(K89=0,0,'Worksheet F'!$H$12*'Worksheet F'!$I$12) -> 0 | M89: 0
A90: 34 | G90: 0 | I90: 0 | K90: 0 | L90: =IF(K90=0,0,'Worksheet F'!$H$12*'Worksheet F'!$I$12) -> 0 | M90: 0
A91: 35 | G91: 0 | I91: 0 | K91: 0 | L91: =IF(K91=0,0,'Worksheet F'!$H$12*'Worksheet F'!$I$12) -> 0 | M91: 0
A92: 36 | G92: 0 | I92: 0 | K92: 0 | L92: =IF(K92=0,0,'Worksheet F'!$H$12*'Worksheet F'!$I$12) -> 0 | M92: 0
A93: 37 | G93: 0 | I93: 0 | K93: 0 | L93: =IF(K93=0,0,'Worksheet F'!$H$12*'Worksheet F'!$I$12) -> 0 | M93: 0
A94: 38 | G94: 0 | I94: 0 | K94: 0 | L94: =IF(K94=0,0,'Worksheet F'!$H$12*'Worksheet F'!$I$12) -> 0 | M94: =K94*L94 -> 0
B95: Overall Funding | E95: =SUM(E57:E94) -> 0 | F95: =SUM(F57:F94) -> 0 | G95: =SUM(G57:G94) -> 0 | I95: =SUM(I57:I94) -> 0 | J95: =SUM(J57:J94) -> 0 | K95: =I95+J95 -> 0 | M95: =SUM(M57:M94) -> 0
J96: =IF(ROUND(J95,2)=ROUND('Worksheet D-1'!D86,2),"","ERROR: Adjustments do not match with W/S D-1 col.3!") -> 
B98: LGA Name: | C98: =C2 -> ABC County | F98: LGA NPI: | G98: =Info!F42 -> 1200XXXX
B99: Reporting Period: | C99: =C3 -> July 1, 2015 to June 30, 2016
B101: Funding Description | D101: Types | E101: Total Funding | F101: Funding Restricted to Non-TCM | G101: Funding Available for TCM | H101: % of Funding Allocation to TCM | I101: Funding to TCM | J101: Adjustments | K101: Net Public Funding to TCM | L101: % of Claimable Medi-Cal Encounters | M101: Eligible CPE for Reimburse-ment
B102: 1 | C102: 2 | D102: 3 | E102: 4 | F102: 5 | G102: 6 | H102: 7 | I102: 8 | J102: 9 | K102: 10 | L102: 11 | M102: 12
B103: Funding Name | C103: Contributing Agency
B104: Budget Unit 3
A105: 1 | G105: =E105-F105 -> 0 | I105: =G105*H105 -> 0 | J105: 0 | K105: =I105+J105 -> 0 | L105: =IF(K105=0,0,'Worksheet F'!$H$13*'Worksheet F'!$I$13) -> 0 | M105: =K105*L105 -> 0
A106: 2 | G106: =E106-F106 -> 0 | I106: =G106*H106 -> 0 | K106: =I106+J106 -> 0 | L106: =IF(K106=0,0,'Worksheet F'!$H$13*'Worksheet F'!$I$13) -> 0 | M106: =K106*L106 -> 0
A107: 3 | G107: 0 | I107: 0 | K107: 0 | L107: =IF(K107=0,0,'Worksheet F'!$H$13*'Worksheet F'!$I$13) -> 0 | M107: 0
A108: 4 | G108: 0 | I108: 0 | K108: 0 | L108: =IF(K108=0,0,'Worksheet F'!$H$13*'Worksheet F'!$I$13) -> 0 | M108: 0
A109: 5 | G109: 0 | I109: 0 | K109: 0 | L109: =IF(K109=0,0,'Worksheet F'!$H$13*'Worksheet F'!$I$13) -> 0 | M109: 0
A110: 6 | G110: 0 | I110: 0 | K110: 0 | L110: =IF(K110=0,0,'Worksheet F'!$H$13*'Worksheet F'!$I$13) -> 0 | M110: 0
A111: 7 | G111: 0 | I111: 0 | K111: 0 | L111: =IF(K111=0,0,'Worksheet F'!$H$13*'Worksheet F'!$I$13) -> 0 | M111: 0
A112: 8 | G112: 0 | I112: 0 | K112: 0 | L112: =IF(K112=0,0,'Worksheet F'!$H$13*'Worksheet F'!$I$13) -> 0 | M112: 0
A113: 9 | G113: 0 | I113: 0 | K113: 0 | L113: =IF(K113=0,0,'Worksheet F'!$H$13*'Worksheet F'!$I$13) -> 0 | M113: 0
A114: 10 | G114: 0 | I114: 0 | K114: 0 | L114: =IF(K114=0,0,'Worksheet F'!$H$13*'Worksheet F'!$I$13) -> 0 | M114: 0
A115: 11 | G115: 0 | I115: 0 | K115: 0 | L115: =IF(K115=0,0,'Worksheet F'!$H$13*'Worksheet F'!$I$13) -> 0 | M115: 0
A116: 12 | G116: 0 | I116: 0 | K116: 0 | L116: =IF(K116=0,0,'Worksheet F'!$H$13*'Worksheet F'!$I$13) -> 0 | M116: 0
A117: 13 | G117: 0 | I117: 0 | K117: 0 | L117: =IF(K117=0,0,'Worksheet F'!$H$13*'Worksheet F'!$I$13) -> 0 | M117: 0
A118: 14 | G118: 0 | I118: 0 | K118: 0 | L118: =IF(K118=0,0,'Worksheet F'!$H$13*'Worksheet F'!$I$13) -> 0 | M118: 0
A119: 15 | G119: 0 | I119: 0 | K119: 0 | L119: =IF(K119=0,0,'Worksheet F'!$H$13*'Worksheet F'!$I$13) -> 0 | M119: 0
A120: 16 | G120: 0 | I120: 0 | K120: 0 | L120: =IF(K120=0,0,'Worksheet F'!$H$13*'Worksheet F'!$I$13) -> 0 | M120: 0
A121: 17 | G121: 0 | I121: 0 | K121: 0 | L121: =IF(K121=0,0,'Worksheet F'!$H$13*'Worksheet F'!$I$13) -> 0 | M121: 0
A122: 18 | G122: 0 | I122: 0 | K122: 0 | L122: =IF(K122=0,0,'Worksheet F'!$H$13*'Worksheet F'!$I$13) -> 0 | M122: 0
A123: 19 | G123: 0 | I123: 0 | K123: 0 | L123: =IF(K123=0,0,'Worksheet F'!$H$13*'Worksheet F'!$I$13) -> 0 | M123: 0
A124: 20 | G124: 0 | I124: 0 | K124: 0 | L124: =IF(K124=0,0,'Worksheet F'!$H$13*'Worksheet F'!$I$13) -> 0 | M124: 0
A125: 21 | G125: 0 | I125: 0 | K125: 0 | L125: =IF(K125=0,0,'Worksheet F'!$H$13*'Worksheet F'!$I$13) -> 0 | M125: 0
A126: 22 | G126: 0 | I126: 0 | K126: 0 | L126: =IF(K126=0,0,'Worksheet F'!$H$13*'Worksheet F'!$I$13) -> 0 | M126: 0
A127: 23 | G127: 0 | I127: 0 | K127: 0 | L127: =IF(K127=0,0,'Worksheet F'!$H$13*'Worksheet F'!$I$13) -> 0 | M127: 0
A128: 24 | G128: 0 | I128: 0 | K128: 0 | L128: =IF(K128=0,0,'Worksheet F'!$H$13*'Worksheet F'!$I$13) -> 0 | M128: 0
A129: 25 | G129: 0 | I129: 0 | K129: 0 | L129: =IF(K129=0,0,'Worksheet F'!$H$13*'Worksheet F'!$I$13) -> 0 | M129: 0
A130: 26 | G130: 0 | I130: 0 | K130: 0 | L130: =IF(K130=0,0,'Worksheet F'!$H$13*'Worksheet F'!$I$13) -> 0 | M130: 0
A131: 27 | G131: 0 | I131: 0 | K131: 0 | L131: =IF(K131=0,0,'Worksheet F'!$H$13*'Worksheet F'!$I$13) -> 0 | M131: 0
A132: 28 | G132: 0 | I132: 0 | K132: 0 | L132: =IF(K132=0,0,'Worksheet F'!$H$13*'Worksheet F'!$I$13) -> 0 | M132: 0
A133: 29 | G133: 0 | I133: 0 | K133: 0 | L133: =IF(K133=0,0,'Worksheet F'!$H$13*'Worksheet F'!$I$13) -> 0 | M133: 0
A134: 30 | G134: 0 | I134: 0 | K134: 0 | L134: =IF(K134=0,0,'Worksheet F'!$H$13*'Worksheet F'!$I$13) -> 0 | M134: 0
A135: 31 | G135: 0 | I135: 0 | K135: 0 | L135: =IF(K135=0,0,'Worksheet F'!$H$13*'Worksheet F'!$I$13) -> 0 | M135: 0
A136: 32 | G136: 0 | I136: 0 | K136: 0 | L136: =IF(K136=0,0,'Worksheet F'!$H$13*'Worksheet F'!$I$13) -> 0 | M136: 0
A137: 33 | G137: 0 | I137: 0 | K137: 0 | L137: =IF(K137=0,0,'Worksheet F'!$H$13*'Worksheet F'!$I$13) -> 0 | M137: 0
A138: 34 | G138: 0 | I138: 0 | K138: 0 | L138: =IF(K138=0,0,'Worksheet F'!$H$13*'Worksheet F'!$I$13) -> 0 | M138: 0
A139: 35 | G139: 0 | I139: 0 | K139: 0 | L139: =IF(K139=0,0,'Worksheet F'!$H$13*'Worksheet F'!$I$13) -> 0 | M139: 0
A140: 36 | G140: 0 | I140: 0 | K140: 0 | L140: =IF(K140=0,0,'Worksheet F'!$H$13*'Worksheet F'!$I$13) -> 0 | M140: 0
A141: 37 | G141: 0 | I141: 0 | K141: 0 | L141: =IF(K141=0,0,'Worksheet F'!$H$13*'Worksheet F'!$I$13) -> 0 | M141: 0
A142: 38 | G142: 0 | I142: 0 | K142: 0 | L142: =IF(K142=0,0,'Worksheet F'!$H$13*'Worksheet F'!$I$13) -> 0 | M142: =K142*L142 -> 0
B143: Overall Funding | E143: =SUM(E105:E142) -> 0 | F143: =SUM(F105:F142) -> 0 | G143: =SUM(G105:G142) -> 0 | I143: =SUM(I105:I142) -> 0 | J143: =SUM(J105:J142) -> 0 | K143: =SUM(K105:K142) -> 0 | M143: =SUM(M105:M142) -> 0
J144: =IF(ROUND(J143,2)=ROUND('Worksheet D-1'!D130,2),"","ERROR: Adjustments do not match with W/S D-1 col.3!") -> 
B146: LGA Name: | C146: =C2 -> ABC County | F146: LGA NPI: | G146: =Info!F42 -> 1200XXXX
B147: Reporting Period: | C147: =C3 -> July 1, 2015 to June 30, 2016
B149: Funding Description | D149: Types | E149: Total Funding | F149: Funding Restricted to Non-TCM | G149: Funding Available for TCM | H149: % of Funding Allocation to TCM | I149: Funding to TCM | J149: Adjustments | K149: Net Funding to TCM | L149: % of Claimable Medi-Cal Encounters | M149: Eligible CPE for Reimburse-ment
B150: 1 | C150: 2 | D150: 3 | E150: 4 | F150: 5 | G150: 6 | H150: 7 | I150: 8 | J150: 9 | K150: 10 | L150: 11 | M150: 12
B151: Funding Name | C151: Contributing Agency
B152: Budget Unit 4
A153: 1 | G153: =E153-F153 -> 0 | I153: =G153*H153 -> 0 | J153: 0 | K153: =I153+J153 -> 0 | L153: =IF(K153=0,0,'Worksheet F'!$H$14*'Worksheet F'!$I$14) -> 0 | M153: =K153*L153 -> 0
A154: 2 | G154: =E154-F154 -> 0 | I154: =G154*H154 -> 0 | K154: =I154+J154 -> 0 | L154: =IF(K154=0,0,'Worksheet F'!$H$14*'Worksheet F'!$I$14) -> 0 | M154: =K154*L154 -> 0
A155: 3 | G155: 0 | I155: 0 | K155: 0 | L155: =IF(K155=0,0,'Worksheet F'!$H$14*'Worksheet F'!$I$14) -> 0 | M155: 0
A156: 4 | G156: 0 | I156: 0 | K156: 0 | L156: =IF(K156=0,0,'Worksheet F'!$H$14*'Worksheet F'!$I$14) -> 0 | M156: 0
A157: 5 | G157: 0 | I157: 0 | K157: 0 | L157: =IF(K157=0,0,'Worksheet F'!$H$14*'Worksheet F'!$I$14) -> 0 | M157: 0
A158: 6 | G158: 0 | I158: 0 | K158: 0 | L158: =IF(K158=0,0,'Worksheet F'!$H$14*'Worksheet F'!$I$14) -> 0 | M158: 0
A159: 7 | G159: 0 | I159: 0 | K159: 0 | L159: =IF(K159=0,0,'Worksheet F'!$H$14*'Worksheet F'!$I$14) -> 0 | M159: 0
A160: 8 | G160: 0 | I160: 0 | K160: 0 | L160: =IF(K160=0,0,'Worksheet F'!$H$14*'Worksheet F'!$I$14) -> 0 | M160: 0
A161: 9 | G161: 0 | I161: 0 | K161: 0 | L161: =IF(K161=0,0,'Worksheet F'!$H$14*'Worksheet F'!$I$14) -> 0 | M161: 0
A162: 10 | G162: 0 | I162: 0 | K162: 0 | L162: =IF(K162=0,0,'Worksheet F'!$H$14*'Worksheet F'!$I$14) -> 0 | M162: 0
A163: 11 | G163: 0 | I163: 0 | K163: 0 | L163: =IF(K163=0,0,'Worksheet F'!$H$14*'Worksheet F'!$I$14) -> 0 | M163: 0
A164: 12 | G164: 0 | I164: 0 | K164: 0 | L164: =IF(K164=0,0,'Worksheet F'!$H$14*'Worksheet F'!$I$14) -> 0 | M164: 0
A165: 13 | G165: 0 | I165: 0 | K165: 0 | L165: =IF(K165=0,0,'Worksheet F'!$H$14*'Worksheet F'!$I$14) -> 0 | M165: 0
A166: 14 | G166: 0 | I166: 0 | K166: 0 | L166: =IF(K166=0,0,'Worksheet F'!$H$14*'Worksheet F'!$I$14) -> 0 | M166: 0
A167: 15 | G167: 0 | I167: 0 | K167: 0 | L167: =IF(K167=0,0,'Worksheet F'!$H$14*'Worksheet F'!$I$14) -> 0 | M167: 0
A168: 16 | G168: 0 | I168: 0 | K168: 0 | L168: =IF(K168=0,0,'Worksheet F'!$H$14*'Worksheet F'!$I$14) -> 0 | M168: 0
A169: 17 | G169: 0 | I169: 0 | K169: 0 | L169: =IF(K169=0,0,'Worksheet F'!$H$14*'Worksheet F'!$I$14) -> 0 | M169: 0
A170: 18 | G170: 0 | I170: 0 | K170: 0 | L170: =IF(K170=0,0,'Worksheet F'!$H$14*'Worksheet F'!$I$14) -> 0 | M170: 0
A171: 19 | G171: 0 | I171: 0 | K171: 0 | L171: =IF(K171=0,0,'Worksheet F'!$H$14*'Worksheet F'!$I$14) -> 0 | M171: 0
A172: 20 | G172: 0 | I172: 0 | K172: 0 | L172: =IF(K172=0,0,'Worksheet F'!$H$14*'Worksheet F'!$I$14) -> 0 | M172: 0
A173: 21 | G173: 0 | I173: 0 | K173: 0 | L173: =IF(K173=0,0,'Worksheet F'!$H$14*'Worksheet F'!$I$14) -> 0 | M173: 0
A174: 22 | G174: 0 | I174: 0 | K174: 0 | L174: =IF(K174=0,0,'Worksheet F'!$H$14*'Worksheet F'!$I$14) -> 0 | M174: 0
A175: 23 | G175: 0 | I175: 0 | K175: 0 | L175: =IF(K175=0,0,'Worksheet F'!$H$14*'Worksheet F'!$I$14) -> 0 | M175: 0
A176: 24 | G176: 0 | I176: 0 | K176: 0 | L176: =IF(K176=0,0,'Worksheet F'!$H$14*'Worksheet F'!$I$14) -> 0 | M176: 0
A177: 25 | G177: 0 | I177: 0 | K177: 0 | L177: =IF(K177=0,0,'Worksheet F'!$H$14*'Worksheet F'!$I$14) -> 0 | M177: 0
A178: 26 | G178: 0 | I178: 0 | K178: 0 | L178: =IF(K178=0,0,'Worksheet F'!$H$14*'Worksheet F'!$I$14) -> 0 | M178: 0
A179: 27 | G179: 0 | I179: 0 | K179: 0 | L179: =IF(K179=0,0,'Worksheet F'!$H$14*'Worksheet F'!$I$14) -> 0 | M179: 0
A180: 28 | G180: 0 | I180: 0 | K180: 0 | L180: =IF(K180=0,0,'Worksheet F'!$H$14*'Worksheet F'!$I$14) -> 0 | M180: 0
A181: 29 | G181: 0 | I181: 0 | K181: 0 | L181: =IF(K181=0,0,'Worksheet F'!$H$14*'Worksheet F'!$I$14) -> 0 | M181: 0
A182: 30 | G182: 0 | I182: 0 | K182: 0 | L182: =IF(K182=0,0,'Worksheet F'!$H$14*'Worksheet F'!$I$14) -> 0 | M182: 0
A183: 31 | G183: 0 | I183: 0 | K183: 0 | L183: =IF(K183=0,0,'Worksheet F'!$H$14*'Worksheet F'!$I$14) -> 0 | M183: 0
A184: 32 | G184: 0 | I184: 0 | K184: 0 | L184: =IF(K184=0,0,'Worksheet F'!$H$14*'Worksheet F'!$I$14) -> 0 | M184: 0
A185: 33 | G185: 0 | I185: 0 | K185: 0 | L185: =IF(K185=0,0,'Worksheet F'!$H$14*'Worksheet F'!$I$14) -> 0 | M185: 0
A186: 34 | G186: 0 | I186: 0 | K186: 0 | L186: =IF(K186=0,0,'Worksheet F'!$H$14*'Worksheet F'!$I$14) -> 0 | M186: 0
A187: 35 | G187: 0 | I187: 0 | K187: 0 | L187: =IF(K187=0,0,'Worksheet F'!$H$14*'Worksheet F'!$I$14) -> 0 | M187: 0
A188: 36 | G188: 0 | I188: 0 | K188: 0 | L188: =IF(K188=0,0,'Worksheet F'!$H$14*'Worksheet F'!$I$14) -> 0 | M188: 0
A189: 37 | G189: 0 | I189: 0 | K189: 0 | L189: =IF(K189=0,0,'Worksheet F'!$H$14*'Worksheet F'!$I$14) -> 0 | M189: 0
A190: 38 | G190: 0 | I190: 0 | K190: 0 | L190: =IF(K190=0,0,'Worksheet F'!$H$14*'Worksheet F'!$I$14) -> 0 | M190: =K190*L190 -> 0
B191: Overall Funding | E191: =SUM(E153:E190) -> 0 | F191: =SUM(F153:F190) -> 0 | G191: =SUM(G153:G190) -> 0 | I191: =SUM(I153:I190) -> 0 | J191: =SUM(J153:J190) -> 0 | K191: =SUM(K153:K190) -> 0 | M191: =SUM(M153:M190) -> 0
J192: =IF(ROUND(J191,2)=ROUND('Worksheet D-1'!D174,2),"","ERROR: Adjustments do not match with W/S D-1 col.3!") -> 

Sheet Worksheet D-1
B2: ='Worksheet D'!B2 -> LGA Name: | C2: =Info!C42 -> ABC County
B3: ='Worksheet D'!F2 -> LGA NPI: | C3: =Info!F42 -> 1200XXXX
B4: ='Worksheet D'!B3 -> Reporting Period: | C4: =Info!C43 -> July 1, 2015 to June 30, 2016
B6: Funding Description | C6: Types | D6: Amounts | E6: Explanation of Adjustment
B7: 1 | C7: 2 | D7: 3 | E7: 4
B8: Budget Unit 1
A9: 1 | B9: Gen Fund Contribution (Net County Cost) | C9: Local/State | D9: 61276 | E9: Funding that covers the shortage of the BU if the total program revenue is less than total program cost
A10: 2
A11: 3
A12: 4
A13: 5
A14: 6
A15: 7
A16: 8
A17: 9
A18: 10
A19: 11
A20: 12
A21: 13
A22: 14
A23: 15
A24: 16
A25: 17
A26: 18
A27: 19
A28: 20
A29: 21
A30: 22
A31: 23
A32: 24
A33: 25
A34: 26
A35: 27
A36: 28
A37: 29
A38: 30
A39: 31
A40: 32
A41: 33
B42: Total Funding Adjustments | D42: =SUM(D9:D41) -> 61276 | E42: =IF(ROUND(D42,2)=ROUND('Worksheet D'!J47,2),"","ERROR: Adjustments do not match with W/S D col.9!") -> 
B44: Make sure your adjustments total match with worksheet D column 9.
B46: LGA Name: | C46: =C2 -> ABC County
B47: LGA NPI: | C47: =C3 -> 1200XXXX
B48: Reporting Period: | C48: =C4 -> July 1, 2015 to June 30, 2016
B50: Funding Description | C50: Types | D50: Amounts | E50: Explanation of Adjustment
B51: 1 | C51: 2 | D51: 3 | E51: 4
B52: Budget Unit 2
A53: 1
A54: 2
A55: 3
A56: 4
A57: 5
A58: 6
A59: 7
A60: 8
A61: 9
A62: 10
A63: 11
A64: 12
A65: 13
A66: 14
A67: 15
A68: 16
A69: 17
A70: 18
A71: 19
A72: 20
A73: 21
A74: 22
A75: 23
A76: 24
A77: 25
A78: 26
A79: 27
A80: 28
A81: 29
A82: 30
A83: 31
A84: 32
A85: 33
B86: Total Funding Adjustments | D86: =SUM(D53:D85) -> 0 | E86: =IF(ROUND(D86,2)=ROUND('Worksheet D'!J95,2),"","ERROR: Adjustments do not match with W/S D col.9!") -> 
B88: Make sure your adjustments total match with worksheet D column 9.
B90: LGA Name: | C90: =C2 -> ABC County
B91: LGA NPI: | C91: =C3 -> 1200XXXX
B92: Reporting Period: | C92: =C4 -> July 1, 2015 to June 30, 2016
B94: Funding Description | C94: Types | D94: Amounts | E94: Explanation of Adjustment
B95: 1 | C95: 2 | D95: 3 | E95: 4
B96: Budget Unit 3
A97: 1
A98: 2
A99: 3
A100: 4
A101: 5
A102: 6
A103: 7
A104: 8
A105: 9
A106: 10
A107: 11
A108: 12
A109: 13
A110: 14
A111: 15
A112: 16
A113: 17
A114: 18
A115: 19
A116: 20
A117: 21
A118: 22
A119: 23
A120: 24
A121: 25
A122: 26
A123: 27
A124: 28
A125: 29
A126: 30
A127: 31
A128: 32
A129: 33
B130: Total Funding Adjustments | D130: =SUM(D97:D129) -> 0 | E130: =IF(ROUND(D130,2)=ROUND('Worksheet D'!J143,2),"","ERROR: Adjustments do no match with W/S D col.9!") -> 
B132: Make sure your adjustments total match with worksheet D column 9.
B134: LGA Name: | C134: =C2 -> ABC County
B135: LGA NPI: | C135: =C3 -> 1200XXXX
B136: Reporting Period: | C136: =C4 -> July 1, 2015 to June 30, 2016
B138: Funding Description | C138: Types | D138: Amounts | E138: Explanation of Adjustment
B139: 1 | C139: 2 | D139: 3 | E139: 4
B140: Budget Unit 4
A141: 1
A142: 2
A143: 3
A144: 4
A145: 5
A146: 6
A147: 7
A148: 8
A149: 9
A150: 10
A151: 11
A152: 12
A153: 13
A154: 14
A155: 15
A156: 16
A157: 17
A158: 18
A159: 19
A160: 20
A161: 21
A162: 22
A163: 23
A164: 24
A165: 25
A166: 26
A167: 27
A168: 28
A169: 29
A170: 30
A171: 31
A172: 32
A173: 33
B174: Total Funding Adjustments | D174: =SUM(D141:D173) -> 0 | E174: =IF(ROUND(D174,2)=ROUND('Worksheet D'!J191,2),"","ERROR: Adjustments do not match with W/S D col.9!") -> 
B176: Make sure your adjustments total match with worksheet D column 9.

Sheet Worksheet E
B2: LGA Name: | C2: =Info!C42 -> ABC County | F2: LGA NPI: | G2: =Info!F42 -> 1200XXXX
B3: Reporting Period: | C3: =Info!C43 -> July 1, 2015 to June 30, 2016
B5: Funding Payment Description | D5: Types | E5: Total Funding | F5: Funding Restricted to Non-TCM | G5: Funding Available for TCM | H5: % of Funding Allocation to TCM | I5: Funding to TCM | J5: Adjustments | K5: Net Public Funding Payment to TCM | L5: % of Claimable Medi-Cal Encounters | M5: Eligible CPE for Reimburse-ment
B6: 1 | C6: 2 | D6: 3 | E6: 4 | F6: 5 | G6: 6 | H6: 7 | I6: 8 | J6: 9 | K6: 10 | L6: 11 | M6: 12
B7: Funding Name | C7: Contributing Agency
B8: Contractor 1
A9: 1 | B9: XYZ CBO | C9: Public Health | D9: Local/State | E9: 10000 | G9: =E9-F9 -> 10000 | H9: 0.642487 | I9: =G9*H9 -> 6424.87 | J9: 0 | K9: =I9+J9 -> 6424.87 | L9: =IF(K9=0,0,'Worksheet F'!$H$18*'Worksheet F'!$I$18) -> 0.7692307692 | M9: =K9*L9 -> 4942.207692
A10: 2 | C10: First 5 | D10: Local/State | E10: 25000 | G10: =E10-F10 -> 25000 | H10: 0.642487 | I10: =G10*H10 -> 16062.175 | K10: =I10+J10 -> 16062.175 | L10: =IF(K10=0,0,'Worksheet F'!$H$18*'Worksheet F'!$I$18) -> 0.7692307692 | M10: =K10*L10 -> 12355.51923
A11: 3 | G11: 0 | I11: 0 | K11: 0 | L11: =IF(K11=0,0,'Worksheet F'!$H$18*'Worksheet F'!$I$18) -> 0 | M11: 0
A12: 4 | G12: 0 | I12: 0 | K12: 0 | L12: =IF(K12=0,0,'Worksheet F'!$H$18*'Worksheet F'!$I$18) -> 0 | M12: 0
A13: 5 | G13: 0 | I13: 0 | K13: 0 | L13: =IF(K13=0,0,'Worksheet F'!$H$18*'Worksheet F'!$I$18) -> 0 | M13: 0
A14: 6 | G14: 0 | I14: 0 | K14: 0 | L14: =IF(K14=0,0,'Worksheet F'!$H$18*'Worksheet F'!$I$18) -> 0 | M14: 0
A15: 7 | G15: 0 | I15: 0 | K15: 0 | L15: =IF(K15=0,0,'Worksheet F'!$H$18*'Worksheet F'!$I$18) -> 0 | M15: 0
A16: 8 | G16: 0 | I16: 0 | K16: 0 | L16: =IF(K16=0,0,'Worksheet F'!$H$18*'Worksheet F'!$I$18) -> 0 | M16: 0
A17: 9 | G17: 0 | I17: 0 | K17: 0 | L17: =IF(K17=0,0,'Worksheet F'!$H$18*'Worksheet F'!$I$18) -> 0 | M17: 0
A18: 10 | G18: 0 | I18: 0 | K18: 0 | L18: =IF(K18=0,0,'Worksheet F'!$H$18*'Worksheet F'!$I$18) -> 0 | M18: 0
A19: 11 | G19: 0 | I19: 0 | K19: 0 | L19: =IF(K19=0,0,'Worksheet F'!$H$18*'Worksheet F'!$I$18) -> 0 | M19: 0
A20: 12 | G20: 0 | I20: 0 | K20: 0 | L20: =IF(K20=0,0,'Worksheet F'!$H$18*'Worksheet F'!$I$18) -> 0 | M20: 0
A21: 13 | G21: 0 | I21: 0 | K21: 0 | L21: =IF(K21=0,0,'Worksheet F'!$H$18*'Worksheet F'!$I$18) -> 0 | M21: 0
A22: 14 | G22: 0 | I22: 0 | K22: 0 | L22: =IF(K22=0,0,'Worksheet F'!$H$18*'Worksheet F'!$I$18) -> 0 | M22: 0
A23: 15 | G23: 0 | I23: 0 | K23: 0 | L23: =IF(K23=0,0,'Worksheet F'!$H$18*'Worksheet F'!$I$18) -> 0 | M23: 0
A24: 16 | G24: 0 | I24: 0 | K24: 0 | L24: =IF(K24=0,0,'Worksheet F'!$H$18*'Worksheet F'!$I$18) -> 0 | M24: 0
A25: 17 | G25: 0 | I25: 0 | K25: 0 | L25: =IF(K25=0,0,'Worksheet F'!$H$18*'Worksheet F'!$I$18) -> 0 | M25: 0
A26: 18 | G26: 0 | I26: 0 | K26: 0 | L26: =IF(K26=0,0,'Worksheet F'!$H$18*'Worksheet F'!$I$18) -> 0 | M26: 0
A27: 19 | G27: 0 | I27: 0 | K27: 0 | L27: =IF(K27=0,0,'Worksheet F'!$H$18*'Worksheet F'!$I$18) -> 0 | M27: 0
A28: 20 | G28: 0 | I28: 0 | K28: 0 | L28: =IF(K28=0,0,'Worksheet F'!$H$18*'Worksheet F'!$I$18) -> 0 | M28: 0
A29: 21 | G29: 0 | I29: 0 | K29: 0 | L29: =IF(K29=0,0,'Worksheet F'!$H$18*'Worksheet F'!$I$18) -> 0 | M29: 0
A30: 22 | G30: 0 | I30: 0 | K30: 0 | L30: =IF(K30=0,0,'Worksheet F'!$H$18*'Worksheet F'!$I$18) -> 0 | M30: 0
A31: 23 | G31: 0 | I31: 0 | K31: 0 | L31: =IF(K31=0,0,'Worksheet F'!$H$18*'Worksheet F'!$I$18) -> 0 | M31: 0
A32: 24 | G32: 0 | I32: 0 | K32: 0 | L32: =IF(K32=0,0,'Worksheet F'!$H$18*'Worksheet F'!$I$18) -> 0 | M32: 0
A33: 25 | G33: 0 | I33: 0 | K33: 0 | L33: =IF(K33=0,0,'Worksheet F'!$H$18*'Worksheet F'!$I$18) -> 0 | M33: 0
A34: 26 | G34: 0 | I34: 0 | K34: 0 | L34: =IF(K34=0,0,'Worksheet F'!$H$18*'Worksheet F'!$I$18) -> 0 | M34: 0
A35: 27 | G35: 0 | I35: 0 | K35: 0 | L35: =IF(K35=0,0,'Worksheet F'!$H$18*'Worksheet F'!$I$18) -> 0 | M35: 0
A36: 28 | G36: 0 | I36: 0 | K36: 0 | L36: =IF(K36=0,0,'Worksheet F'!$H$18*'Worksheet F'!$I$18) -> 0 | M36: 0
A37: 29 | G37: 0 | I37: 0 | K37: 0 | L37: =IF(K37=0,0,'Worksheet F'!$H$18*'Worksheet F'!$I$18) -> 0 | M37: 0
A38: 30 | G38: 0 | I38: 0 | K38: 0 | L38: =IF(K38=0,0,'Worksheet F'!$H$18*'Worksheet F'!$I$18) -> 0 | M38: 0
A39: 31 | G39: 0 | I39: 0 | K39: 0 | L39: =IF(K39=0,0,'Worksheet F'!$H$18*'Worksheet F'!$I$18) -> 0 | M39: 0
A40: 32 | G40: 0 | I40: 0 | K40: 0 | L40: =IF(K40=0,0,'Worksheet F'!$H$18*'Worksheet F'!$I$18) -> 0 | M40: 0
A41: 33 | G41: 0 | I41: 0 | K41: 0 | L41: =IF(K41=0,0,'Worksheet F'!$H$18*'Worksheet F'!$I$18) -> 0 | M41: 0
A42: 34 | G42: 0 | I42: 0 | K42: 0 | L42: =IF(K42=0,0,'Worksheet F'!$H$18*'Worksheet F'!$I$18) -> 0 | M42: 0
A43: 35 | G43: 0 | I43: 0 | K43: 0 | L43: =IF(K43=0,0,'Worksheet F'!$H$18*'Worksheet F'!$I$18) -> 0 | M43: 0
A44: 36 | G44: 0 | I44: 0 | K44: 0 | L44: =IF(K44=0,0,'Worksheet F'!$H$18*'Worksheet F'!$I$18) -> 0 | M44: 0
A45: 37 | G45: 0 | I45: 0 | K45: 0 | L45: =IF(K45=0,0,'Worksheet F'!$H$18*'Worksheet F'!$I$18) -> 0 | M45: 0
A46: 38 | G46: 0 | I46: 0 | K46: 0 | L46: =IF(K46=0,0,'Worksheet F'!$H$18*'Worksheet F'!$I$18) -> 0 | M46: 0
B47: Overall Funding | E47: =SUM(E9:E46) -> 35000 | F47: =SUM(F9:F46) -> 0 | G47: =SUM(G9:G46) -> 35000 | I47: =SUM(I9:I46) -> 22487.045 | J47: =SUM(J9:J46) -> 0 | K47: =SUM(K9:K46) -> 22487.045 | M47: =SUM(M9:M46) -> 17297.72692
J48: =IF(ROUND(J47,2)=ROUND('Worksheet E-1'!D42,2),"","Adjustments do not match with W/S E-1 col.3!") -> 
B50: LGA Name: | C50: =C2 -> ABC County | F50: LGA NPI: | G50: =Info!F42 -> 1200XXXX
B51: Reporting Period: | C51: =C3 -> July 1, 2015 to June 30, 2016
B53: Funding Payment Description | D53: Types | E53: Total Funding | F53: Funding Restricted to Non-TCM | G53: Funding Available for TCM | H53: % of Funding Allocation to TCM | I53: Funding to TCM | J53: Adjustments | K53: Net Public Funding Payment to TCM | L53: % of Claimable Medi-Cal Encounters | M53: Eligible CPE for Reimburse-ment
B54: 1 | C54: 2 | D54: 3 | E54: 4 | F54: 5 | G54: 6 | H54: 7 | I54: 8 | J54: 9 | K54: 10 | L54: 11 | M54: 12
B55: Funding Name | C55: Contributing Agency
B56: Contractor 2
A57: 1 | G57: =E57-F57 -> 0 | I57: =G57*H57 -> 0 | J57: 0 | K57: =I57+J57 -> 0 | L57: =IF(K57=0,0,'Worksheet F'!$H$19*'Worksheet F'!$I$19) -> 0 | M57: =K57*L57 -> 0
A58: 2 | G58: =E58-F58 -> 0 | I58: =G58*H58 -> 0 | K58: =I58+J58 -> 0 | L58: =IF(K58=0,0,'Worksheet F'!$H$19*'Worksheet F'!$I$19) -> 0 | M58: =K58*L58 -> 0
A59: 3 | G59: 0 | I59: 0 | K59: 0 | L59: =IF(K59=0,0,'Worksheet F'!$H$19*'Worksheet F'!$I$19) -> 0 | M59: 0
A60: 4 | G60: 0 | I60: 0 | K60: 0 | L60: =IF(K60=0,0,'Worksheet F'!$H$19*'Worksheet F'!$I$19) -> 0 | M60: 0
A61: 5 | G61: 0 | I61: 0 | K61: 0 | L61: =IF(K61=0,0,'Worksheet F'!$H$19*'Worksheet F'!$I$19) -> 0 | M61: 0
A62: 6 | G62: 0 | I62: 0 | K62: 0 | L62: =IF(K62=0,0,'Worksheet F'!$H$19*'Worksheet F'!$I$19) -> 0 | M62: 0
A63: 7 | G63: 0 | I63: 0 | K63: 0 | L63: =IF(K63=0,0,'Worksheet F'!$H$19*'Worksheet F'!$I$19) -> 0 | M63: 0
A64: 8 | G64: 0 | I64: 0 | K64: 0 | L64: =IF(K64=0,0,'Worksheet F'!$H$19*'Worksheet F'!$I$19) -> 0 | M64: 0
A65: 9 | G65: 0 | I65: 0 | K65: 0 | L65: =IF(K65=0,0,'Worksheet F'!$H$19*'Worksheet F'!$I$19) -> 0 | M65: 0
A66: 10 | G66: 0 | I66: 0 | K66: 0 | L66: =IF(K66=0,0,'Worksheet F'!$H$19*'Worksheet F'!$I$19) -> 0 | M66: 0
A67: 11 | G67: 0 | I67: 0 | K67: 0 | L67: =IF(K67=0,0,'Worksheet F'!$H$19*'Worksheet F'!$I$19) -> 0 | M67: 0
A68: 12 | G68: 0 | I68: 0 | K68: 0 | L68: =IF(K68=0,0,'Worksheet F'!$H$19*'Worksheet F'!$I$19) -> 0 | M68: 0
A69: 13 | G69: 0 | I69: 0 | K69: 0 | L69: =IF(K69=0,0,'Worksheet F'!$H$19*'Worksheet F'!$I$19) -> 0 | M69: 0
A70: 14 | G70: 0 | I70: 0 | K70: 0 | L70: =IF(K70=0,0,'Worksheet F'!$H$19*'Worksheet F'!$I$19) -> 0 | M70: 0
A71: 15 | G71: 0 | I71: 0 | K71: 0 | L71: =IF(K71=0,0,'Worksheet F'!$H$19*'Worksheet F'!$I$19) -> 0 | M71: 0
A72: 16 | G72: 0 | I72: 0 | K72: 0 | L72: =IF(K72=0,0,'Worksheet F'!$H$19*'Worksheet F'!$I$19) -> 0 | M72: 0
A73: 17 | G73: 0 | I73: 0 | K73: 0 | L73: =IF(K73=0,0,'Worksheet F'!$H$19*'Worksheet F'!$I$19) -> 0 | M73: 0
A74: 18 | G74: 0 | I74: 0 | K74: 0 | L74: =IF(K74=0,0,'Worksheet F'!$H$19*'Worksheet F'!$I$19) -> 0 | M74: 0
A75: 19 | G75: 0 | I75: 0 | K75: 0 | L75: =IF(K75=0,0,'Worksheet F'!$H$19*'Worksheet F'!$I$19) -> 0 | M75: 0
A76: 20 | G76: 0 | I76: 0 | K76: 0 | L76: =IF(K76=0,0,'Worksheet F'!$H$19*'Worksheet F'!$I$19) -> 0 | M76: 0
A77: 21 | G77: 0 | I77: 0 | K77: 0 | L77: =IF(K77=0,0,'Worksheet F'!$H$19*'Worksheet F'!$I$19) -> 0 | M77: 0
A78: 22 | G78: 0 | I78: 0 | K78: 0 | L78: =IF(K78=0,0,'Worksheet F'!$H$19*'Worksheet F'!$I$19) -> 0 | M78: 0
A79: 23 | G79: 0 | I79: 0 | K79: 0 | L79: =IF(K79=0,0,'Worksheet F'!$H$19*'Worksheet F'!$I$19) -> 0 | M79: 0
A80: 24 | G80: 0 | I80: 0 | K80: 0 | L80: =IF(K80=0,0,'Worksheet F'!$H$19*'Worksheet F'!$I$19) -> 0 | M80: 0
A81: 25 | G81: 0 | I81: 0 | K81: 0 | L81: =IF(K81=0,0,'Worksheet F'!$H$19*'Worksheet F'!$I$19) -> 0 | M81: 0
A82: 26 | G82: 0 | I82: 0 | K82: 0 | L82: =IF(K82=0,0,'Worksheet F'!$H$19*'Worksheet F'!$I$19) -> 0 | M82: 0
A83: 27 | G83: 0 | I83: 0 | K83: 0 | L83: =IF(K83=0,0,'Worksheet F'!$H$19*'Worksheet F'!$I$19) -> 0 | M83: 0
A84: 28 | G84: 0 | I84: 0 | K84: 0 | L84: =IF(K84=0,0,'Worksheet F'!$H$19*'Worksheet F'!$I$19) -> 0 | M84: 0
A85: 29 | G85: 0 | I85: 0 | K85: 0 | L85: =IF(K85=0,0,'Worksheet F'!$H$19*'Worksheet F'!$I$19) -> 0 | M85: 0
A86: 30 | G86: 0 | I86: 0 | K86: 0 | L86: =IF(K86=0,0,'Worksheet F'!$H$19*'Worksheet F'!$I$19) -> 0 | M86: 0
A87: 31 | G87: 0 | I87: 0 | K87: 0 | L87: =IF(K87=0,0,'Worksheet F'!$H$19*'Worksheet F'!$I$19) -> 0 | M87: 0
A88: 32 | G88: 0 | I88: 0 | K88: 0 | L88: =IF(K88=0,0,'Worksheet F'!$H$19*'Worksheet F'!$I$19) -> 0 | M88: 0
A89: 33 | G89: 0 | I89: 0 | K89: 0 | L89: =IF(K89=0,0,'Worksheet F'!$H$19*'Worksheet F'!$I$19) -> 0 | M89: 0
A90: 34 | G90: 0 | I90: 0 | K90: 0 | L90: =IF(K90=0,0,'Worksheet F'!$H$19*'Worksheet F'!$I$19) -> 0 | M90: 0
A91: 35 | G91: 0 | I91: 0 | K91: 0 | L91: =IF(K91=0,0,'Worksheet F'!$H$19*'Worksheet F'!$I$19) -> 0 | M91: 0
A92: 36 | G92: 0 | I92: 0 | K92: 0 | L92: =IF(K92=0,0,'Worksheet F'!$H$19*'Worksheet F'!$I$19) -> 0 | M92: 0
A93: 37 | G93: 0 | I93: 0 | K93: 0 | L93: =IF(K93=0,0,'Worksheet F'!$H$19*'Worksheet F'!$I$19) -> 0 | M93: 0
A94: 38 | G94: 0 | I94: 0 | K94: 0 | L94: =IF(K94=0,0,'Worksheet F'!$H$19*'Worksheet F'!$I$19) -> 0 | M94: 0
B95: Overall Funding | E95: =SUM(E57:E94) -> 0 | F95: =SUM(F57:F94) -> 0 | G95: =SUM(G57:G94) -> 0 | I95: =SUM(I57:I94) -> 0 | J95: =SUM(J57:J94) -> 0 | K95: =SUM(K57:K94) -> 0 | M95: =SUM(M57:M94) -> 0
J96: =IF(ROUND(J95,2)=ROUND('Worksheet E-1'!D86,2),"","Adjustments do not match with W/S E-1 col.3!") -> 
B98: LGA Name: | C98: =C50 -> ABC County | F98: LGA NPI: | G98: =Info!F42 -> 1200XXXX
B99: Reporting Period: | C99: =C51 -> July 1, 2015 to June 30, 2016
B101: Funding Payment Description | D101: Types | E101: Total Funding Payment | F101: Funding Restricted to Non-TCM | G101: Funding Available for TCM | H101: % of Funding Allocation to TCM | I101: Funding to TCM | J101: Adjustments | K101: Net Public Funding Payment to TCM | L101: % of Claimable Medi-Cal Encounters | M101: Eligible CPE for Reimburse-ment
B102: 1 | C102: 2 | D102: 3 | E102: 4 | F102: 5 | G102: 6 | H102: 7 | I102: 8 | J102: 9 | K102: 10 | L102: 11 | M102: 12
B103: Funding Name | C103: Contributing Agency
B104: Contractor 3
A105: 1 | G105: =E105-F105 -> 0 | I105: =G105*H105 -> 0 | J105: 0 | K105: =I105+J105 -> 0 | L105: =IF(K105=0,0,'Worksheet F'!$H$20*'Worksheet F'!$I$20) -> 0 | M105: =K105*L105 -> 0
A106: 2 | G106: =E106-F106 -> 0 | I106: =G106*H106 -> 0 | K106: =I106+J106 -> 0 | L106: =IF(K106=0,0,'Worksheet F'!$H$20*'Worksheet F'!$I$20) -> 0 | M106: =K106*L106 -> 0
A107: 3 | G107: 0 | I107: 0 | K107: 0 | L107: =IF(K107=0,0,'Worksheet F'!$H$20*'Worksheet F'!$I$20) -> 0 | M107: 0
A108: 4 | G108: 0 | I108: 0 | K108: 0 | L108: =IF(K108=0,0,'Worksheet F'!$H$20*'Worksheet F'!$I$20) -> 0 | M108: 0
A109: 5 | G109: 0 | I109: 0 | K109: 0 | L109: =IF(K109=0,0,'Worksheet F'!$H$20*'Worksheet F'!$I$20) -> 0 | M109: 0
A110: 6 | G110: 0 | I110: 0 | K110: 0 | L110: =IF(K110=0,0,'Worksheet F'!$H$20*'Worksheet F'!$I$20) -> 0 | M110: 0
A111: 7 | G111: 0 | I111: 0 | K111: 0 | L111: =IF(K111=0,0,'Worksheet F'!$H$20*'Worksheet F'!$I$20) -> 0 | M111: 0
A112: 8 | G112: 0 | I112: 0 | K112: 0 | L112: =IF(K112=0,0,'Worksheet F'!$H$20*'Worksheet F'!$I$20) -> 0 | M112: 0
A113: 9 | G113: 0 | I113: 0 | K113: 0 | L113: =IF(K113=0,0,'Worksheet F'!$H$20*'Worksheet F'!$I$20) -> 0 | M113: 0
A114: 10 | G114: 0 | I114: 0 | K114: 0 | L114: =IF(K114=0,0,'Worksheet F'!$H$20*'Worksheet F'!$I$20) -> 0 | M114: 0
A115: 11 | G115: 0 | I115: 0 | K115: 0 | L115: =IF(K115=0,0,'Worksheet F'!$H$20*'Worksheet F'!$I$20) -> 0 | M115: 0
A116: 12 | G116: 0 | I116: 0 | K116: 0 | L116: =IF(K116=0,0,'Worksheet F'!$H$20*'Worksheet F'!$I$20) -> 0 | M116: 0
A117: 13 | G117: 0 | I117: 0 | K117: 0 | L117: =IF(K117=0,0,'Worksheet F'!$H$20*'Worksheet F'!$I$20) -> 0 | M117: 0
A118: 14 | G118: 0 | I118: 0 | K118: 0 | L118: =IF(K118=0,0,'Worksheet F'!$H$20*'Worksheet F'!$I$20) -> 0 | M118: 0
A119: 15 | G119: 0 | I119: 0 | K119: 0 | L119: =IF(K119=0,0,'Worksheet F'!$H$20*'Worksheet F'!$I$20) -> 0 | M119: 0
A120: 16 | G120: 0 | I120: 0 | K120: 0 | L120: =IF(K120=0,0,'Worksheet F'!$H$20*'Worksheet F'!$I$20) -> 0 | M120: 0
A121: 17 | G121: 0 | I121: 0 | K121: 0 | L121: =IF(K121=0,0,'Worksheet F'!$H$20*'Worksheet F'!$I$20) -> 0 | M121: 0
A122: 18 | G122: 0 | I122: 0 | K122: 0 | L122: =IF(K122=0,0,'Worksheet F'!$H$20*'Worksheet F'!$I$20) -> 0 | M122: 0
A123: 19 | G123: 0 | I123: 0 | K123: 0 | L123: =IF(K123=0,0,'Worksheet F'!$H$20*'Worksheet F'!$I$20) -> 0 | M123: 0
A124: 20 | G124: 0 | I124: 0 | K124: 0 | L124: =IF(K124=0,0,'Worksheet F'!$H$20*'Worksheet F'!$I$20) -> 0 | M124: 0
A125: 21 | G125: 0 | I125: 0 | K125: 0 | L125: =IF(K125=0,0,'Worksheet F'!$H$20*'Worksheet F'!$I$20) -> 0 | M125: 0
A126: 22 | G126: 0 | I126: 0 | K126: 0 | L126: =IF(K126=0,0,'Worksheet F'!$H$20*'Worksheet F'!$I$20) -> 0 | M126: 0
A127: 23 | G127: 0 | I127: 0 | K127: 0 | L127: =IF(K127=0,0,'Worksheet F'!$H$20*'Worksheet F'!$I$20) -> 0 | M127: 0
A128: 24 | G128: 0 | I128: 0 | K128: 0 | L128: =IF(K128=0,0,'Worksheet F'!$H$20*'Worksheet F'!$I$20) -> 0 | M128: 0
A129: 25 | G129: 0 | I129: 0 | K129: 0 | L129: =IF(K129=0,0,'Worksheet F'!$H$20*'Worksheet F'!$I$20) -> 0 | M129: 0
A130: 26 | G130: 0 | I130: 0 | K130: 0 | L130: =IF(K130=0,0,'Worksheet F'!$H$20*'Worksheet F'!$I$20) -> 0 | M130: 0
A131: 27 | G131: 0 | I131: 0 | K131: 0 | L131: =IF(K131=0,0,'Worksheet F'!$H$20*'Worksheet F'!$I$20) -> 0 | M131: 0
A132: 28 | G132: 0 | I132: 0 | K132: 0 | L132: =IF(K132=0,0,'Worksheet F'!$H$20*'Worksheet F'!$I$20) -> 0 | M132: 0
A133: 29 | G133: 0 | I133: 0 | K133: 0 | L133: =IF(K133=0,0,'Worksheet F'!$H$20*'Worksheet F'!$I$20) -> 0 | M133: 0
A134: 30 | G134: 0 | I134: 0 | K134: 0 | L134: =IF(K134=0,0,'Worksheet F'!$H$20*'Worksheet F'!$I$20) -> 0 | M134: 0
A135: 31 | G135: 0 | I135: 0 | K135: 0 | L135: =IF(K135=0,0,'Worksheet F'!$H$20*'Worksheet F'!$I$20) -> 0 | M135: 0
A136: 32 | G136: 0 | I136: 0 | K136: 0 | L136: =IF(K136=0,0,'Worksheet F'!$H$20*'Worksheet F'!$I$20) -> 0 | M136: 0
A137: 33 | G137: 0 | I137: 0 | K137: 0 | L137: =IF(K137=0,0,'Worksheet F'!$H$20*'Worksheet F'!$I$20) -> 0 | M137: 0
A138: 34 | G138: 0 | I138: 0 | K138: 0 | L138: =IF(K138=0,0,'Worksheet F'!$H$20*'Worksheet F'!$I$20) -> 0 | M138: 0
A139: 35 | G139: 0 | I139: 0 | K139: 0 | L139: =IF(K139=0,0,'Worksheet F'!$H$20*'Worksheet F'!$I$20) -> 0 | M139: 0
A140: 36 | G140: 0 | I140: 0 | K140: 0 | L140: =IF(K140=0,0,'Worksheet F'!$H$20*'Worksheet F'!$I$20) -> 0 | M140: 0
A141: 37 | G141: 0 | I141: 0 | K141: 0 | L141: =IF(K141=0,0,'Worksheet F'!$H$20*'Worksheet F'!$I$20) -> 0 | M141: 0
A142: 38 | G142: 0 | I142: 0 | K142: 0 | L142: =IF(K142=0,0,'Worksheet F'!$H$20*'Worksheet F'!$I$20) -> 0 | M142: 0
B143: Overall Funding | E143: =SUM(E105:E142) -> 0 | F143: =SUM(F105:F142) -> 0 | G143: =SUM(G105:G142) -> 0 | I143: =SUM(I105:I142) -> 0 | J143: =SUM(J105:J142) -> 0 | K143: 0 | M143: =SUM(M105:M142) -> 0
J144: =IF(ROUND(J143,2)=ROUND('Worksheet E-1'!D130,2),"","ERROR - Adjustments do not match with W/S E-1 col.3!") -> 
B146: LGA Name: | C146: =C2 -> ABC County | F146: LGA NPI: | G146: =Info!F42 -> 1200XXXX
B147: Reporting Period: | C147: =C3 -> July 1, 2015 to June 30, 2016
B149: Funding Payment Description | D149: Types | E149: Total Funding Payment | F149: Funding Restricted to Non-TCM | G149: Funding Available for TCM | H149: % of Funding Allocation to TCM | I149: Funding to TCM | J149: Adjustments | K149: Net Public Funding Payment to TCM | L149: % of Claimable Medi-Cal Encounters | M149: Eligible CPE for Reimburse-ment
B150: 1 | C150: 2 | D150: 3 | E150: 4 | F150: 5 | G150: 6 | H150: 7 | I150: 8 | J150: 9 | K150: 10 | L150: 11 | M150: 12
B151: Funding Name | C151: Contributing Agency
B152: Contractor 4
A153: 1 | G153: =E153-F153 -> 0 | I153: =G153*H153 -> 0 | J153: 0 | K153: =I153+J153 -> 0 | L153: =IF(K153=0,0,'Worksheet F'!$H$21*'Worksheet F'!$I$21) -> 0 | M153: =K153*L153 -> 0
A154: 2 | G154: =E154-F154 -> 0 | I154: =G154*H154 -> 0 | K154: =I154+J154 -> 0 | L154: =IF(K154=0,0,'Worksheet F'!$H$21*'Worksheet F'!$I$21) -> 0 | M154: =K154*L154 -> 0
A155: 3 | G155: 0 | I155: 0 | K155: 0 | L155: =IF(K155=0,0,'Worksheet F'!$H$21*'Worksheet F'!$I$21) -> 0 | M155: 0
A156: 4 | G156: 0 | I156: 0 | K156: 0 | L156: =IF(K156=0,0,'Worksheet F'!$H$21*'Worksheet F'!$I$21) -> 0 | M156: 0
A157: 5 | G157: 0 | I157: 0 | K157: 0 | L157: =IF(K157=0,0,'Worksheet F'!$H$21*'Worksheet F'!$I$21) -> 0 | M157: 0
A158: 6 | G158: 0 | I158: 0 | K158: 0 | L158: =IF(K158=0,0,'Worksheet F'!$H$21*'Worksheet F'!$I$21) -> 0 | M158: 0
A159: 7 | G159: 0 | I159: 0 | K159: 0 | L159: =IF(K159=0,0,'Worksheet F'!$H$21*'Worksheet F'!$I$21) -> 0 | M159: 0
A160: 8 | G160: 0 | I160: 0 | K160: 0 | L160: =IF(K160=0,0,'Worksheet F'!$H$21*'Worksheet F'!$I$21) -> 0 | M160: 0
A161: 9 | G161: 0 | I161: 0 | K161: 0 | L161: =IF(K161=0,0,'Worksheet F'!$H$21*'Worksheet F'!$I$21) -> 0 | M161: 0
A162: 10 | G162: 0 | I162: 0 | K162: 0 | L162: =IF(K162=0,0,'Worksheet F'!$H$21*'Worksheet F'!$I$21) -> 0 | M162: 0
A163: 11 | G163: 0 | I163: 0 | K163: 0 | L163: =IF(K163=0,0,'Worksheet F'!$H$21*'Worksheet F'!$I$21) -> 0 | M163: 0
A164: 12 | G164: 0 | I164: 0 | K164: 0 | L164: =IF(K164=0,0,'Worksheet F'!$H$21*'Worksheet F'!$I$21) -> 0 | M164: 0
A165: 13 | G165: 0 | I165: 0 | K165: 0 | L165: =IF(K165=0,0,'Worksheet F'!$H$21*'Worksheet F'!$I$21) -> 0 | M165: 0
A166: 14 | G166: 0 | I166: 0 | K166: 0 | L166: =IF(K166=0,0,'Worksheet F'!$H$21*'Worksheet F'!$I$21) -> 0 | M166: 0
A167: 15 | G167: 0 | I167: 0 | K167: 0 | L167: =IF(K167=0,0,'Worksheet F'!$H$21*'Worksheet F'!$I$21) -> 0 | M167: 0
A168: 16 | G168: 0 | I168: 0 | K168: 0 | L168: =IF(K168=0,0,'Worksheet F'!$H$21*'Worksheet F'!$I$21) -> 0 | M168: 0
A169: 17 | G169: 0 | I169: 0 | K169: 0 | L169: =IF(K169=0,0,'Worksheet F'!$H$21*'Worksheet F'!$I$21) -> 0 | M169: 0
A170: 18 | G170: 0 | I170: 0 | K170: 0 | L170: =IF(K170=0,0,'Worksheet F'!$H$21*'Worksheet F'!$I$21) -> 0 | M170: 0
A171: 19 | G171: 0 | I171: 0 | K171: 0 | L171: =IF(K171=0,0,'Worksheet F'!$H$21*'Worksheet F'!$I$21) -> 0 | M171: 0
A172: 20 | G172: 0 | I172: 0 | K172: 0 | L172: =IF(K172=0,0,'Worksheet F'!$H$21*'Worksheet F'!$I$21) -> 0 | M172: 0
A173: 21 | G173: 0 | I173: 0 | K173: 0 | L173: =IF(K173=0,0,'Worksheet F'!$H$21*'Worksheet F'!$I$21) -> 0 | M173: 0
A174: 22 | G174: 0 | I174: 0 | K174: 0 | L174: =IF(K174=0,0,'Worksheet F'!$H$21*'Worksheet F'!$I$21) -> 0 | M174: 0
A175: 23 | G175: 0 | I175: 0 | K175: 0 | L175: =IF(K175=0,0,'Worksheet F'!$H$21*'Worksheet F'!$I$21) -> 0 | M175: 0
A176: 24 | G176: 0 | I176: 0 | K176: 0 | L176: =IF(K176=0,0,'Worksheet F'!$H$21*'Worksheet F'!$I$21) -> 0 | M176: 0
A177: 25 | G177: 0 | I177: 0 | K177: 0 | L177: =IF(K177=0,0,'Worksheet F'!$H$21*'Worksheet F'!$I$21) -> 0 | M177: 0
A178: 26 | G178: 0 | I178: 0 | K178: 0 | L178: =IF(K178=0,0,'Worksheet F'!$H$21*'Worksheet F'!$I$21) -> 0 | M178: 0
A179: 27 | G179: 0 | I179: 0 | K179: 0 | L179: =IF(K179=0,0,'Worksheet F'!$H$21*'Worksheet F'!$I$21) -> 0 | M179: 0
A180: 28 | G180: 0 | I180: 0 | K180: 0 | L180: =IF(K180=0,0,'Worksheet F'!$H$21*'Worksheet F'!$I$21) -> 0 | M180: 0
A181: 29 | G181: 0 | I181: 0 | K181: 0 | L181: =IF(K181=0,0,'Worksheet F'!$H$21*'Worksheet F'!$I$21) -> 0 | M181: 0
A182: 30 | G182: 0 | I182: 0 | K182: 0 | L182: =IF(K182=0,0,'Worksheet F'!$H$21*'Worksheet F'!$I$21) -> 0 | M182: 0
A183: 31 | G183: 0 | I183: 0 | K183: 0 | L183: =IF(K183=0,0,'Worksheet F'!$H$21*'Worksheet F'!$I$21) -> 0 | M183: 0
A184: 32 | G184: 0 | I184: 0 | K184: 0 | L184: =IF(K184=0,0,'Worksheet F'!$H$21*'Worksheet F'!$I$21) -> 0 | M184: 0
A185: 33 | G185: 0 | I185: 0 | K185: 0 | L185: =IF(K185=0,0,'Worksheet F'!$H$21*'Worksheet F'!$I$21) -> 0 | M185: 0
A186: 34 | G186: 0 | I186: 0 | K186: 0 | L186: =IF(K186=0,0,'Worksheet F'!$H$21*'Worksheet F'!$I$21) -> 0 | M186: 0
A187: 35 | G187: 0 | I187: 0 | K187: 0 | L187: =IF(K187=0,0,'Worksheet F'!$H$21*'Worksheet F'!$I$21) -> 0 | M187: 0
A188: 36 | G188: 0 | I188: 0 | K188: 0 | L188: =IF(K188=0,0,'Worksheet F'!$H$21*'Worksheet F'!$I$21) -> 0 | M188: 0
A189: 37 | G189: 0 | I189: 0 | K189: 0 | L189: =IF(K189=0,0,'Worksheet F'!$H$21*'Worksheet F'!$I$21) -> 0 | M189: 0
A190: 38 | G190: 0 | I190: 0 | K190: 0 | L190: =IF(K190=0,0,'Worksheet F'!$H$21*'Worksheet F'!$I$21) -> 0 | M190: 0
B191: Overall Funding | E191: =SUM(E153:E190) -> 0 | F191: =SUM(F153:F190) -> 0 | G191: =SUM(G153:G190) -> 0 | I191: =SUM(I153:I190) -> 0 | J191: =SUM(J153:J190) -> 0 | K191: =SUM(K153:K190) -> 0 | M191: =SUM(M153:M190) -> 0
J192: =IF(ROUND(J191,2)=ROUND('Worksheet E-1'!D174,2),"","ERROR - Adjustments do not match with W/S E-1 col.3!") -> 
B194: LGA Name: | C194: =C50 -> ABC County | F194: LGA NPI: | G194: =Info!F42 -> 1200XXXX
B195: Reporting Period: | C195: =C51 -> July 1, 2015 to June 30, 2016
B197: Funding Payment Description | D197: Types | E197: Total Funding Payment | F197: Funding Restricted to Non-TCM | G197: Funding Available for TCM | H197: % of Funding Allocation to TCM | I197: Funding to TCM | J197: Adjustments | K197: Net Public Funding Payment to TCM | L197: % of Claimable Medi-Cal Encounters | M197: Eligible CPE for Reimburse-ment
B198: 1 | C198: 2 | D198: 3 | E198: 4 | F198: 5 | G198: 6 | H198: 7 | I198: 8 | J198: 9 | K198: 10 | L198: 11 | M198: 12
B199: Funding Name | C199: Contributing Agency
B200: Contractor 5
A201: 1 | G201: =E201-F201 -> 0 | I201: =G201*H201 -> 0 | J201: 0 | K201: =I201+J201 -> 0 | L201: =IF(K201=0,0,'Worksheet F'!$H$22*'Worksheet F'!$I$22) -> 0 | M201: =K201*L201 -> 0
A202: 2 | G202: =E202-F202 -> 0 | I202: =G202*H202 -> 0 | K202: =I202+J202 -> 0 | L202: =IF(K202=0,0,'Worksheet F'!$H$22*'Worksheet F'!$I$22) -> 0 | M202: =K202*L202 -> 0
A203: 3 | G203: 0 | I203: 0 | K203: 0 | L203: =IF(K203=0,0,'Worksheet F'!$H$22*'Worksheet F'!$I$22) -> 0 | M203: 0
A204: 4 | G204: 0 | I204: 0 | K204: 0 | L204: =IF(K204=0,0,'Worksheet F'!$H$22*'Worksheet F'!$I$22) -> 0 | M204: 0
A205: 5 | G205: 0 | I205: 0 | K205: 0 | L205: =IF(K205=0,0,'Worksheet F'!$H$22*'Worksheet F'!$I$22) -> 0 | M205: 0
A206: 6 | G206: 0 | I206: 0 | K206: 0 | L206: =IF(K206=0,0,'Worksheet F'!$H$22*'Worksheet F'!$I$22) -> 0 | M206: 0
A207: 7 | G207: 0 | I207: 0 | K207: 0 | L207: =IF(K207=0,0,'Worksheet F'!$H$22*'Worksheet F'!$I$22) -> 0 | M207: 0
A208: 8 | G208: 0 | I208: 0 | K208: 0 | L208: =IF(K208=0,0,'Worksheet F'!$H$22*'Worksheet F'!$I$22) -> 0 | M208: 0
A209: 9 | G209: 0 | I209: 0 | K209: 0 | L209: =IF(K209=0,0,'Worksheet F'!$H$22*'Worksheet F'!$I$22) -> 0 | M209: 0
A210: 10 | G210: 0 | I210: 0 | K210: 0 | L210: =IF(K210=0,0,'Worksheet F'!$H$22*'Worksheet F'!$I$22) -> 0 | M210: 0
... 352 more rows

Sheet Worksheet E-1
B2: LGA Name: | C2: =Info!C42 -> ABC County
B3: LGA NPI: | C3: =Info!F42 -> 1200XXXX
B4: Reporting Period: | C4: =Info!C43 -> July 1, 2015 to June 30, 2016
B6: Funding Description | C6: Types | D6: Amounts | E6: Explanation of Adjustment
B7: 1 | C7: 2 | D7: 3 | E7: 4
B8: Contractor 1
A9: 1
A10: 2
A11: 3
A12: 4
A13: 5
A14: 6
A15: 7
A16: 8
A17: 9
A18: 10
A19: 11
A20: 12
A21: 13
A22: 14
A23: 15
A24: 16
A25: 17
A26: 18
A27: 19
A28: 20
A29: 21
A30: 22
A31: 23
A32: 24
A33: 25
A34: 26
A35: 27
A36: 28
A37: 29
A38: 30
A39: 31
A40: 32
A41: 33
B42: Total Funding Adjustments | D42: =SUM(D9:D41) -> 0 | E42: =IF(ROUND(D42,2)=ROUND('Worksheet E'!J47,2),"","Adjustments do not match with W/S E col.9!") -> 
B44: Make sure your adjustment total match with worksheet E column 9.
B46: LGA Name: | C46: =C2 -> ABC County
B47: LGA NPI: | C47: =C3 -> 1200XXXX
B48: Reporting Period: | C48: =C4 -> July 1, 2015 to June 30, 2016
B50: Funding Description | C50: Types | D50: Amounts | E50: Explanation of Adjustment
B51: 1 | C51: 2 | D51: 3 | E51: 4
B52: Contractor 2
A53: 1
A54: 2
A55: 3
A56: 4
A57: 5
A58: 6
A59: 7
A60: 8
A61: 9
A62: 10
A63: 11
A64: 12
A65: 13
A66: 14
A67: 15
A68: 16
A69: 17
A70: 18
A71: 19
A72: 20
A73: 21
A74: 22
A75: 23
A76: 24
A77: 25
A78: 26
A79: 27
A80: 28
A81: 29
A82: 30
A83: 31
A84: 32
A85: 33
B86: Total Funding Adjustments | D86: =SUM(D53:D85) -> 0 | E86: =IF(ROUND(D86,2)=ROUND('Worksheet E'!J95,2),"","Adjustments do not match with W/S E col.9!") -> 
B88: Make sure your adjustment total match with worksheet E column 9.
B90: LGA Name: | C90: =C2 -> ABC County
B91: LGA NPI: | C91: =C3 -> 1200XXXX
B92: Reporting Period: | C92: =C4 -> July 1, 2015 to June 30, 2016
B94: Funding Description | C94: Types | D94: Amounts | E94: Explanation of Adjustment
B95: 1 | C95: 2 | D95: 3 | E95: 4
B96: Contractor 3
A97: 1
A98: 2
A99: 3
A100: 4
A101: 5
A102: 6
A103: 7
A104: 8
A105: 9
A106: 10
A107: 11
A108: 12
A109: 13
A110: 14
A111: 15
A112: 16
A113: 17
A114: 18
A115: 19
A116: 20
A117: 21
A118: 22
A119: 23
A120: 24
A121: 25
A122: 26
A123: 27
A124: 28
A125: 29
A126: 30
A127: 31
A128: 32
A129: 33
B130: Total Funding Adjustments | D130: =SUM(D97:D129) -> 0 | E130: =IF(ROUND(D130,2)=ROUND('Worksheet E'!J143,2),"","ERROR: Adjustments do not match with W/S E col.9!") -> 
B132: Make sure your adjustment total match with worksheet E column 9.
B134: LGA Name: | C134: =C2 -> ABC County
B135: LGA NPI: | C135: =C3 -> 1200XXXX
B136: Reporting Period: | C136: =C4 -> July 1, 2015 to June 30, 2016
B138: Funding Description | C138: Types | D138: Amounts | E138: Explanation of Adjustment
B139: 1 | C139: 2 | D139: 3 | E139: 4
B140: Contractor 4
A141: 1
A142: 2
A143: 3
A144: 4
A145: 5
A146: 6
A147: 7
A148: 8
A149: 9
A150: 10
A151: 11
A152: 12
A153: 13
A154: 14
A155: 15
A156: 16
A157: 17
A158: 18
A159: 19
A160: 20
A161: 21
A162: 22
A163: 23
A164: 24
A165: 25
A166: 26
A167: 27
A168: 28
A169: 29
A170: 30
A171: 31
A172: 32
A173: 33
B174: Total Funding Adjustments | D174: =SUM(D141:D173) -> 0 | E174: =IF(ROUND(D174,2)=ROUND('Worksheet E'!J191,2),"","ERROR: Adjustments do not match with W/S E col.9!") -> 
B176: Make sure your adjustment total match with worksheet E column 9.
B178: LGA Name: | C178: =C2 -> ABC County
B179: LGA NPI: | C179: =C3 -> 1200XXXX
B180: Reporting Period: | C180: =C4 -> July 1, 2015 to June 30, 2016
B182: Funding Description | C182: Types | D182: Amounts | E182: Explanation of Adjustment
B183: 1 | C183: 2 | D183: 3 | E183: 4
B184: Contractor 5
A185: 1
A186: 2
A187: 3
A188: 4
A189: 5
A190: 6
A191: 7
A192: 8
A193: 9
A194: 10
A195: 11
A196: 12
A197: 13
A198: 14
A199: 15
A200: 16
A201: 17
A202: 18
A203: 19
A204: 20
A205: 21
A206: 22
A207: 23
A208: 24
A209: 25
A210: 26
A211: 27
A212: 28
A213: 29
A214: 30
... 292 more rows

Sheet Worksheet F
B2: LGA Name: | C2: =Info!C42 -> ABC County | F2: LGA NPI: | G2: =Info!F42 -> 1200XXXX
B3: Reporting Period: | C3: =Info!C43 -> July 1, 2015 to June 30, 2016
B5: TCM Encounter Summary | I5: Part I
C7: Medi-Cal Encounters
B8: Description | C8: Claimable | D8: Non Claimable | E8: Subtotal | F8: Non Medi-Cal Encounters | G8: Total | H8: Medi-Cal Encounters to Total Encounters Percentage | I8: Claimable Medi-Cal Encounters to Total Medi-Cal Encounters Percentage
C9: 1 | D9: 2 | E9: 3 | F9: 4 | G9: 5 | H9: 6 | I9: 7
B10: LGA/LGA Governmental Subcontractors
A11: 1 | B11: Budget Unit 1 | C11: 1426 | E11: =SUM(C11:D11) -> 1426 | F11: 94 | G11: =E11+F11 -> 1520 | H11: =IF(G11=0,0,E11/G11) -> 0.9381578947 | I11: =IF(E11=0,0,C11/E11) -> 1
A12: 2 | B12: Budget Unit 2 | E12: =SUM(C12:D12) -> 0 | G12: =E12+F12 -> 0 | H12: =IF(G12=0,0,E12/G12) -> 0 | I12: =IF(E12=0,0,C12/E12) -> 0
A13: 3 | B13: Budget Unit 3 | E13: 0 | G13: 0 | H13: 0 | I13: 0
A14: 4 | B14: Budget Unit 4 | E14: 0 | G14: 0 | H14: 0 | I14: 0
A15: 5 | B15: LGA/LPE Subtotal | C15: =SUM(C11:C14) -> 1426 | D15: =SUM(D11:D14) -> 0 | E15: =SUM(E11:E14) -> 1426 | F15: =SUM(F11:F14) -> 94 | G15: =SUM(G11:G14) -> 1520 | H15: 0.9381578947 | I15: 1
B17: LGA Non-Governmental Subcontractors
A18: 6 | B18: Contractor 1 | C18: 250 | E18: =SUM(C18:D18) -> 250 | F18: 75 | G18: =SUM(E18:F18) -> 325 | H18: =IF(G18=0,0,E18/G18) -> 0.7692307692 | I18: =IF(E18=0,0,C18/E18) -> 1
A19: 7 | B19: Contractor 2 | E19: =SUM(C19:D19) -> 0 | G19: =SUM(E19:F19) -> 0 | H19: =IF(G19=0,0,E19/G19) -> 0 | I19: =IF(E19=0,0,C19/E19) -> 0
A20: 8 | B20: Contractor 3 | E20: 0 | G20: 0 | H20: 0 | I20: 0
A21: 9 | B21: Contractor 4 | E21: 0 | G21: 0 | H21: 0 | I21: 0
A22: 10 | B22: Contractor 5 | E22: =SUM(C22:D22) -> 0 | G22: =SUM(E22:F22) -> 0 | H22: =IF(G22=0,0,E22/G22) -> 0 | I22: =IF(E22=0,0,C22/E22) -> 0
A23: 11 | B23: Contractor 6 | E23: 0 | G23: 0 | H23: 0 | I23: 0
A24: 12 | B24: Contractor 7 | E24: 0 | G24: 0 | H24: 0 | I24: 0
A25: 13 | B25: Contractor 8 | E25: 0 | G25: 0 | H25: 0 | I25: 0
A26: 14 | B26: Contractor 9 | E26: 0 | G26: 0 | H26: 0 | I26: 0
A27: 15 | B27: Contractor 10 | E27: 0 | G27: 0 | H27: 0 | I27: 0
A28: 16 | B28: Contractor 11 | E28: 0 | G28: 0 | H28: 0 | I28: 0
A29: 17 | B29: Contractor 12 | E29: 0 | G29: 0 | H29: 0 | I29: 0
A30: 18 | B30: Contractor Subtotal | C30: =SUM(C18:C29) -> 250 | D30: =SUM(D18:D29) -> 0 | E30: 250 | F30: 75 | G30: 325 | H30: 0.7692307692 | I30: 1
A32: 19 | B32: Total | C32: =C15+C30 -> 1676 | D32: =D15+D30 -> 0 | E32: =E15+E30 -> 1676 | F32: =F15+F30 -> 169 | G32: =G15+G30 -> 1845 | H32: =IF(G32=0,0,E32/G32) -> 0.908401084 | I32: =IF(E32=0,0,C32/E32) -> 1
B39: LGA Name: | C39: =Info!C42 -> ABC County | F39: LGA NPI: | G39: =Info!F42 -> 1200XXXX
B40: Reporting Period: | C40: =Info!C43 -> July 1, 2015 to June 30, 2016
B42: Summary of Claimable Medi-Cal TCM Encounter | I42: Part II
B45: Description | C45: FMAP 1 | D45: FMAP 2 | E45: FMAP 3 | F45: FMAP 4 | G45: Total Claimable
C46: 1 | D46: 2 | E46: 3 | F46: 4 | G46: 5
A47: 1 | B47: FMAP Rate | C47: 0.5
A48: 2 | B48: Claimable Medi-Cal Encounter | C48: 1426 | G48: =SUM(C48:F48) -> 1426 | H48: =IF(ROUND(G48,0)=ROUND('Worksheet F'!C32,0),"","Error: Does not equal Part I, col.1 Total!") -> Error: Does not equal Part I, col.1 Total!
A49: 3 | B49: Percentage of Total Claimable | C49: =IFERROR(C48/$G$48,"") -> 1 | D49: =IFERROR(D48/$G$48,"") -> 0 | E49: 0 | F49: 0 | G49: 1

Sheet Worksheet G
B2: LGA Name: | C2: =Info!C42 -> ABC County | O2: LGA Name: | P2: =C2 -> ABC County
B3: LGA NPI: | C3: =Info!F42 -> 1200XXXX | O3: LGA NPI: | P3: =C3 -> 1200XXXX
B4: Reporting Period: | C4: =Info!C43 -> July 1, 2015 to June 30, 2016 | O4: Reporting Period: | P4: =C4 -> July 1, 2015 to June 30, 2016
B8: Summary of Medi-Cal Reimbursement per Individual Budget Unit/Subcontractor | L8: Part I | O8: Summary of LGA TCM Reimbursement Settlement | V8: Part II
Q9: FMAP Rate | R9: FMAP Percentage | S9: Amount
D10: Budget Unit | H10: Subcontractors | Q10: 1 | R10: 2 | S10: 3
D11: Unit 1 | E11: Unit 2 | F11: Unit 3 | G11: Unit 4 | H11: Contractor 1 | I11: Contractor 2 | J11: Contractor 3 | K11: Contractor 4 | N11: 1 | O11: Maximum Medi-Cal Reimbursable Amount (W/S G part I, line 9 col. 17) | S11: =L36 -> 470779.7993
B12: Total Program Cost and Encounter Rate | D12: 1 | E12: 2 | F12: 3 | G12: 4 | H12: 5 | I12: 6 | J12: 7 | K12: 8 | N12: 2.1 | O12: Maximum Medi-Cal Reimbursement per FMAP 1 | Q12: ='Worksheet F'!C47 -> 0.5 | R12: ='Worksheet F'!C49 -> 1 | S12: =IFERROR(Q12*R12*$S$11,"") -> 235389.8996
A13: 1 | B13: Total TCM Program Cost (W/S B Col. 26 and W/S E Col. 10) | D13: ='Worksheet B'!H112 -> 1226184.73 | E13: ='Worksheet B'!H118 -> 0 | F13: ='Worksheet B'!H124 -> 0 | G13: ='Worksheet B'!H130 -> 0 | H13: ='Worksheet E'!K47 -> 22487.045 | I13: ='Worksheet E'!K95 -> 0 | J13: ='Worksheet E'!K143 -> 0 | K13: ='Worksheet E'!K191 -> 0 | N13: 2.2 | O13: Maximum Medi-Cal Reimbursement per FMAP 2 | Q13: ='Worksheet F'!D47 -> 0 | R13: ='Worksheet F'!D49 -> 0 | S13: =IFERROR(Q13*R13*$S$11,"") -> 0
A14: 2 | B14: Total TCM Encounters (W/S F Part I, Col. 5) | D14: ='Worksheet F'!G11 -> 1520 | E14: ='Worksheet F'!G12 -> 0 | F14: ='Worksheet F'!G13 -> 0 | G14: ='Worksheet F'!G14 -> 0 | H14: ='Worksheet F'!G18 -> 325 | I14: ='Worksheet F'!G19 -> 0 | J14: ='Worksheet F'!G20 -> 0 | K14: ='Worksheet F'!G21 -> 0 | N14: 2.3 | O14: Maximum Medi-Cal Reimbursement per FMAP 3 | Q14: ='Worksheet F'!E47 -> 0 | R14: ='Worksheet F'!E49 -> 0 | S14: =IFERROR(Q14*R14*$S$11,"") -> 0
A15: 3 | B15: TCM Program Cost Per Encounter (Line 1 / Line 2) | D15: =IF(D14=0,0,D13/D14) -> 806.7004802 | E15: =IF(E14=0,0,E13/E14) -> 0 | F15: 0 | G15: 0 | H15: 69.19090769 | I15: 0 | J15: 0 | K15: 0 | N15: 2.4 | O15: Maximum Medi-Cal Reimbursement per FMAP 4 | Q15: ='Worksheet F'!F47 -> 0 | R15: ='Worksheet F'!F49 -> 0 | S15: =IFERROR(Q15*R15*$S$11,"") -> 0
B16: Calculated Maximum Medi-Cal Reimbursement | N16: 2 | O16: Maximum Medi-Cal Reimbursement - Total (line 2.1 + line 2.2 + line 2.3 + line 2.4) | S16: =SUM(S12:S15) -> 235389.8996
A17: 4 | B17: TCM Reimbursable Cost per Encounter (Line 3) | D17: =D15 -> 806.7004802 | E17: 0 | F17: 0 | G17: 0 | H17: 69.19090769 | I17: 0 | J17: 0 | K17: 0 | N17: 3.1 | O17: Interim Payments Received | S17: -96197
A18: 5 | B18: Total TCM Medi-Cal Claimable Encounters | D18: ='Worksheet F'!C11 -> 1426 | E18: ='Worksheet F'!C12 -> 0 | F18: ='Worksheet F'!C13 -> 0 | G18: ='Worksheet F'!C14 -> 0 | H18: ='Worksheet F'!C18 -> 250 | I18: ='Worksheet F'!C19 -> 0 | J18: ='Worksheet F'!C20 -> 0 | K18: ='Worksheet F'!C21 -> 0 | N18: 3.2 | O18: Invoice Submitted Pending | S18: -56774
A19: 6 | B19: TCM Medi-Cal Reimbursable Cost (Line 4 * Line 5) | D19: =D17*D18 -> 1150354.885 | E19: =E17*E18 -> 0 | F19: 0 | G19: 0 | H19: 17297.72692 | I19: 0 | J19: 0 | K19: 0 | N19: 3 | O19: Interim Payments - Total (line 3.1 + line 3.2) | S19: =SUM(S17:S18) -> -152971
A20: 7 | B20: CPE Funding to TCM Program (W/S D, E Col. 12) | D20: ='Worksheet D'!M47 -> 453482.0724 | E20: ='Worksheet D'!M95 -> 0 | F20: ='Worksheet D'!M143 -> 0 | G20: ='Worksheet D'!M191 -> 0 | H20: ='Worksheet E'!M47 -> 17297.72692 | I20: ='Worksheet E'!M95 -> 0 | J20: ='Worksheet E'!M143 -> 0 | K20: ='Worksheet E'!M191 -> 0 | N20: 4 | O20: Other Coverage
A21: 8 | B21: Over/<Under> Funding (Line 7 - Line 6) | D21: =D20-D19 -> -696872.8124 | E21: =E20-E19 -> 0 | F21: 0 | G21: 0 | H21: 0 | I21: 0 | J21: 0 | K21: 0 | N21: 5 | O21: Balance Due LGA/(State) [subject to DHCS Reconciliations] (line 2 + line 3 + line 4) | S21: =IFERROR(S16+S19+S20,"") -> 82418.89965
A22: 9 | B22: Maximum Medi-Cal Reimbursable Amount (lesser of line 6 or line 7) | D22: =IF(D19>D20,D20,D19) -> 453482.0724 | E22: 0 | F22: 0 | G22: 0 | H22: 17297.72692 | I22: 0 | J22: 0 | K22: 0
D24: Subcontractors
D25: Contractor 5 | E25: Contractor 6 | F25: Contractor 7 | G25: Contractor 8 | H25: Contractor 9 | I25: Contractor 10 | J25: Contractor 11 | K25: Contractor 12 | L25: Total
B26: Total Program Cost and Encounter Rate | D26: 9 | E26: 10 | F26: 11 | G26: 12 | H26: 13 | I26: 14 | J26: 15 | K26: 16 | L26: 17
A27: 1 | B27: Total TCM Program Cost (W/S E Col. 10) | D27: ='Worksheet E'!K239 -> 0 | E27: ='Worksheet E'!K287 -> 0 | F27: ='Worksheet E'!K335 -> 0 | G27: ='Worksheet E'!K383 -> 0 | H27: ='Worksheet E'!K431 -> 0 | I27: ='Worksheet E'!K479 -> 0 | J27: ='Worksheet E'!K527 -> 0 | K27: ='Worksheet E'!K575 -> 0 | L27: =D13+E13+F13+G13+H13+I13+J13+K13+D27+E27+F27+G27+H27+I27+J27+K27 -> 1248671.775
A28: 2 | B28: Total TCM Encounters (W/S F Part I, Col. 5) | D28: ='Worksheet F'!G22 -> 0 | E28: ='Worksheet F'!G23 -> 0 | F28: ='Worksheet F'!G24 -> 0 | G28: ='Worksheet F'!G25 -> 0 | H28: ='Worksheet F'!G26 -> 0 | I28: ='Worksheet F'!G27 -> 0 | J28: ='Worksheet F'!G28 -> 0 | K28: ='Worksheet F'!G29 -> 0 | L28: =D14+E14+F14+G14+H14+I14+J14+K14+D28+E28+F28+G28+H28+I28+J28+K28 -> 1845
A29: 3 | B29: TCM Program Cost Per Encounter | D29: =IF(D28=0,0,D27/D28) -> 0 | E29: =IF(E28=0,0,E27/E28) -> 0 | F29: 0 | G29: 0 | H29: 0 | I29: 0 | J29: 0 | K29: 0
B30: Calculated Maximum Medi-Cal Reimbursement | O30: Newly Established Interim Medi-Cal TCM Encounter Payment Rate (IMTEPR) | S30: Amount | V30: Part III
A31: 4 | B31: TCM Reimbursable Cost per Encounter | D31: =D29 -> 0 | E31: 0 | F31: 0 | G31: 0 | H31: 0 | I31: 0 | J31: 0 | K31: 0 | S31: 1
A32: 5 | B32: Total TCM Medi-Cal Claimable Encounters | D32: ='Worksheet F'!C22 -> 0 | E32: ='Worksheet F'!C23 -> 0 | F32: ='Worksheet F'!C24 -> 0 | G32: ='Worksheet F'!C25 -> 0 | H32: ='Worksheet F'!C26 -> 0 | I32: ='Worksheet F'!C27 -> 0 | J32: ='Worksheet F'!C28 -> 0 | K32: ='Worksheet F'!C29 -> 0 | N32: 6 | O32: Total TCM Program Cost (W/S G part I, line 1 col. 17) | S32: =L27 -> 1248671.775
A33: 6 | B33: TCM Medi-Cal Reimbursable Cost | D33: =D31*D32 -> 0 | E33: =E31*E32 -> 0 | F33: 0 | G33: 0 | H33: 0 | I33: 0 | J33: 0 | K33: 0 | N33: 7 | O33: Total TCM Encounters (W/S G part I, line 2 col. 17) | S33: =L28 -> 1845
A34: 7 | B34: CPE Funding to TCM Program (W/S E Col. 12) | D34: ='Worksheet E'!M239 -> 0 | E34: ='Worksheet E'!M287 -> 0 | F34: ='Worksheet E'!M335 -> 0 | G34: ='Worksheet E'!M383 -> 0 | H34: ='Worksheet E'!M431 -> 0 | I34: ='Worksheet E'!M479 -> 0 | J34: ='Worksheet E'!M527 -> 0 | K34: ='Worksheet E'!M575 -> 0 | N34: 8 | O34: IMTEPR (Line 6 / Line 7) | S34: =IF(S33=0,0,S32/S33) -> 676.7868699
A35: 8 | B35: Over/<Under> Funding | D35: =D34-D33 -> 0 | E35: =E34-E33 -> 0 | F35: 0 | G35: 0 | H35: 0 | I35: 0 | J35: 0 | K35: 0
A36: 9 | B36: Maximum Medi-Cal Reimbursable Amount | D36: =IF(D33>D34,D34,D33) -> 0 | E36: 0 | F36: 0 | G36: 0 | H36: 0 | I36: 0 | J36: 0 | K36: 0 | L36: =D22+E22+F22+G22+H22+I22+J22+K22+D36+E36+F36+G36+H36+I36+J36+K36 -> 470779.7993

Sheet Print Menu
AA1: 1
B2: To print, select a worksheet(s) below: | AA2: 2 | AB2: Print All Worksheets
AA4: 3
AA5: 4 | AB5: Cover
AA6: 5 | AB6: Info
AA7: 6
AA8: 7 | AB8: Worksheet A
AA9: 8 | AB9: Worksheet A-1
AA10: 9 | AB10: Worksheet A-2
AA11: 10
AA12: 11 | AB12: Worksheet B
AA13: 12
AA14: 13 | AB14: Worksheet C
AA15: 14
AA16: 15 | AB16: Worksheet D
AA17: 16 | AB17: Worksheet D-1
AA18: 17
AA19: 18 | AB19: Worksheet E
AA20: 19 | AB20: Worksheet E-1
AA21: 20
AA22: 21 | AB22: Worksheet F
AA23: 22
AA24: 23 | AB24: Worksheet G
AA26: Goto Worksheet
AA27: 1 | AB27: =LOOKUP(AA27,AA1:AB24) -> 

Sheet Sheet4 (hidden)
A2: TCM
A3: Non TCM
A4: General & Admin
A5: Indirect
A9: Private
A10: Local/State
A11: Federal
A12: Mixed
A16: Private
A17: Local/State
A18: Federal
A19: Mixed

Sheet Sheet1 (hidden)
A2: Option: | B2: Go To | D2: Worksheet | F2: Page | I2: Go or Print
B3: Print | E3: All Worksheets | G3: All
E4: Worksheet A | G4: 1
E5: Worksheet A | G5: 2
G6: 3

Sheet Sheet2 (hidden)

Sheet Sheet3 (hidden)

Sheet Sheet5 (hidden)
